Workbook

Sheet Introduksjon 2022
A1: Resultatliste Oslo Cup 2022
A5: - Oslo Cup arrangeres av Oslo Skikrets i samarbeid med IRS, Heming, Ready, Njård, Ljan og Kjelsås
A6: - 8 renn, arrangert av de samarbeidende klubbene, inngår i Oslo Cup
A7: - Det konkurreres i separate årsklasser, J11, G11, J12 og G12
A8: - Sammenlagtresultatene beregnes med World Cup poeng + deltakerpoeng.
A9: - De fem beste resultatene er tellende sammenlagt, men alle deltakerpoengene teller med i totalresultatet
A10: - Premiering av de tre beste sammenlagt i hver klasse
A13: Poengsystem:
A14: - World Cup poeng for plasseringer (100 poeng for seier, 80 for andre plass osv).
A15: - De fem beste resultatene er tellende i sammendraget
A16: - Det gis 5 deltakerpoeng pr. renn, uanhengig av resultat og om resultatet er tellende i sammendraget
A19: Forklaring på overskriften i resultatlistene:
A20: - Plass = plassering i rennet
A21: - Res. = resultatpoeng etter World Cup skala
A22: - Del. = deltakerpoeng, 5 poeng for deltakelse
A23: - Tot. = totalpoeng for rennet, sum av resultatpoeng og deltakerpoeng
A24: - Resultater/poeng som ikke er tellende for de som har kjørt flere enn seks renn er markert/skravert med grått

Sheet J11 2022
A1: Resultatliste Oslo Cup 2022- Jenter 11 år
I3: IRS Rennet | J3: Ljan Rennet | K3: Njård Rennet | L3: Ready Rennet | M3: Telenor Arena Cup | N3: Kidsbühel | O3: Oslo Alpinfestival SL | P3: Oslo Alpinfestival SSL | S3: IRS Rennet | T3: Ljan Rennet | U3: Njård Rennet | V3: Ready Rennet | W3: Telenor Arena Cup | X3: Kidsbühel | Y3: Oslo Alpinfestival SL | Z3: Oslo Alpinfestival SSL | AB3: --------IRS Rennet---------- | AG3: ----------Ljan Rennet--------- | AL3: ------Kidsbühel-------- | AQ3: --------Njård Rennet---------- | AV3: --------Ready Rennet--------- | BA3: -----Telenor Arena Cup---- | BF3: ---Oslo Alpinfestival SL--- | BK3: ---Oslo Alpinfestival SSL---
G4: Antall | I4: 2022-01-29 | J4: 2022-01-30 | K4: 2022-02-04 | L4: 2022-02-05 | M4: 2022-02-16 | N4: 2022-02-02 | O4: 2022-03-12 | P4: 2022-03-13 | R4: Poeng | S4: 2022-01-29 | T4: 2022-01-30 | U4: 2022-02-04 | V4: 2022-02-05 | W4: 2022-02-16 | X4: 2022-02-02 | Y4: 2022-03-12 | Z4: 2022-03-13 | AC4: --------Poeng-------- | AH4: --------Poeng-------- | AM4: -------Poeng--------- | AR4: -------Poeng--------- | AW4: -------Poeng--------- | BB4: -------Poeng--------- | BG4: -------Poeng--------- | BL4: -------Poeng--------- | BR4: Løpere med | BS4: Løpere med | BT4: Løpere med | BU4: Løpere med | BV4: Løpere med | BW4: Løpere med | BX4: Løpere med | BY4: Løpere med
A5: Plass | B5: Plass | C5: Etternavn | D5: Fornavn | E5: Klubb | F5: Poeng | G5: renn | I5: ------------------------------Plassering i rennene--------------------------------- | R5: brutto | S5: ----------------Resultatpoeng hvis mer enn 5 renn---------------- | AB5: Plass | AC5: Res. | AD5: Del. | AE5: Tot. | AG5: Plass | AH5: Res. | AI5: Del. | AJ5: Tot. | AL5: Plass | AM5: Res. | AN5: Del. | AO5: Tot. | AQ5: Plass | AR5: Res. | AS5: Del. | AT5: Tot. | AV5: Plass | AW5: Res. | AX5: Del. | AY5: Tot. | BA5: Plass | BB5: Res. | BC5: Del. | BD5: Tot. | BF5: Plass | BG5: Res. | BH5: Del. | BI5: Tot. | BK5: Plass | BL5: Res. | BM5: Del. | BN5: Tot. | BP5: Plass | BQ5: Poeng | BR5: 8 renn | BS5: 7 renn | BT5: 6 renn | BU5: 5 renn | BV5: 4 renn | BW5: 3 renn | BX5: 2 renn | BY5: kun 1 renn
A6: =IF(F6<F5,BP6,A5) -> 1 | B6: 1 | C6: Braute | D6: Solveig Elouise | E6: Ready | F6: =IF(G6<5,"",(R6-SUM(SMALL(S6:Z6,{1;2;3})))) -> 351 | G6: =(IF(AD6=5,1,0)+IF(AI6=5,1,0)+IF(AS6=5,1,0)+IF(AX6=5,1,0)+IF(BC6=5,1,0)+IF(AN6=5,1,0)+IF(BH6=5,1,0)+IF(BM6=5,1,0)) -> 7 | I6: =IF(AB6="","",AB6) -> 3 | J6: =IF(AG6="","",AG6) -> 2 | K6: =IF(AQ6="","",AQ6) ->  | L6: =IF(AV6="","",AV6) -> 7 | M6: =IF(BA6="","",BA6) -> DNF | N6: =IF(AL6="","",AL6) -> 2 | O6: =IF(BF6="","",BF6) -> DNS | P6: =IF(BK6="","",BK6) -> 3 | R6: =AE6+AJ6+AT6+AY6+BD6+AO6+BI6+BN6 -> 351 | S6: =IF($G6>=5,IF(AC6="","",AC6),"") -> 60 | T6: =IF($G6>=5,IF(AH6="","",AH6),"") -> 80 | U6: =IF($G6>=5,IF(AR6="","",AR6),"") -> 0 | V6: =IF($G6>=5,IF(AW6="","",AW6),"") -> 36 | W6: =IF($G6>=5,IF(BB6="","",BB6),"") -> 0 | X6: =IF($G6>=5,IF(AM6="","",AM6),"") -> 80 | Y6: =IF($G6>=5,IF(BG6="","",BG6),"") -> 0 | Z6: =IF($G6>=5,IF(BL6="","",BL6),"") -> 60 | AB6: 3 | AC6: =IF(ISNUMBER(AB6),(VLOOKUP(AB6,$BP$6:$BQ$50,2)),0) -> 60 | AD6: =IF(AB6<>"",5,0) -> 5 | AE6: =AC6+AD6 -> 65 | AG6: 2 | AH6: =IF(ISNUMBER(AG6),(VLOOKUP(AG6,$BP$6:$BQ$50,2)),0) -> 80 | AI6: =IF(AG6<>"",5,0) -> 5 | AJ6: =AH6+AI6 -> 85 | AL6: 2 | AM6: =IF(ISNUMBER(AL6),(VLOOKUP(AL6,$BP$6:$BQ$50,2)),0) -> 80 | AN6: =IF(AL6<>"",5,0) -> 5 | AO6: =AM6+AN6 -> 85 | AR6: =IF(ISNUMBER(AQ6),(VLOOKUP(AQ6,$BP$6:$BQ$50,2)),0) -> 0 | AS6: =IF(AQ6<>"",5,0) -> 0 | AT6: =AR6+AS6 -> 0 | AV6: 7 | AW6: =IF(ISNUMBER(AV6),(VLOOKUP(AV6,$BP$6:$BQ$50,2)),0) -> 36 | AX6: =IF(AV6<>"",5,0) -> 5 | AY6: =AW6+AX6 -> 41 | BA6: DNF | BB6: =IF(ISNUMBER(BA6),(VLOOKUP(BA6,$BP$6:$BQ$50,2)),0) -> 0 | BC6: =IF(BA6<>"",5,0) -> 5 | BD6: =BB6+BC6 -> 5 | BF6: DNS | BG6: =IF(ISNUMBER(BF6),(VLOOKUP(BF6,$BP$6:$BQ$50,2)),0) -> 0 | BH6: =IF(BF6<>"",5,0) -> 5 | BI6: =BG6+BH6 -> 5 | BK6: 3 | BL6: =IF(ISNUMBER(BK6),(VLOOKUP(BK6,$BP$6:$BQ$50,2)),0) -> 60 | BM6: =IF(BK6<>"",5,0) -> 5 | BN6: =BL6+BM6 -> 65 | BP6: 1 | BQ6: 100 | BR6: =IF($G6=8,1,0) -> 0 | BS6: =IF($G6=7,1,0) -> 1 | BT6: =IF($G6=6,1,0) -> 0 | BU6: =IF($G6=5,1,0) -> 0 | BV6: =IF($G6=4,1,0) -> 0 | BW6: =IF($G6=3,1,0) -> 0 | BX6: =IF($G6=2,1,0) -> 0 | BY6: =IF($G6=1,1,0) -> 0
A7: 2 | B7: 2 | C7: Halvorsen | D7: Heddy | E7: Heming | F7: =IF(G7<5,"",(R7-SUM(SMALL(S7:Z7,{1;2;3})))) -> 280 | G7: 7 | I7: 1 | J7: DSQ | L7: 4 | M7: 4 | N7: 5 | O7: DNS | P7: DNS | R7: 280 | S7: =IF($G7>=5,IF(AC7="","",AC7),"") -> 100 | T7: =IF($G7>=5,IF(AH7="","",AH7),"") -> 0 | U7: =IF($G7>=5,IF(AR7="","",AR7),"") -> 0 | V7: =IF($G7>=5,IF(AW7="","",AW7),"") -> 50 | W7: =IF($G7>=5,IF(BB7="","",BB7),"") -> 50 | X7: =IF($G7>=5,IF(AM7="","",AM7),"") -> 45 | Y7: =IF($G7>=5,IF(BG7="","",BG7),"") -> 0 | Z7: =IF($G7>=5,IF(BL7="","",BL7),"") -> 0 | AB7: 1 | AC7: 100 | AD7: 5 | AE7: 105 | AG7: DSQ | AH7: 0 | AI7: 5 | AJ7: 5 | AL7: 5 | AM7: 45 | AN7: 5 | AO7: 50 | AR7: 0 | AS7: 0 | AT7: 0 | AV7: 4 | AW7: 50 | AX7: 5 | AY7: =AW7+AX7 -> 55 | BA7: 4 | BB7: 50 | BC7: 5 | BD7: 55 | BF7: DNS | BG7: 0 | BH7: 5 | BI7: 5 | BK7: DNS | BL7: 0 | BM7: 5 | BN7: 5 | BP7: 2 | BQ7: 80 | BR7: =IF($G7=8,1,0) -> 0 | BS7: 1 | BT7: 0 | BU7: 0 | BV7: 0 | BW7: 0 | BX7: 0 | BY7: 0
A8: 2 | C8: Grohshenning | D8: Louise | E8: Heming | F8: =IF(G8<5,"",(R8-SUM(SMALL(S8:Z8,{1;2;3})))) ->  | G8: 3 | I8: 2 | M8: 5 | N8: 1 | R8: 240 | AB8: 2 | AC8: 80 | AD8: 5 | AE8: 85 | AH8: 0 | AI8: 0 | AJ8: 0 | AL8: 1 | AM8: 100 | AN8: 5 | AO8: 105 | AR8: 0 | AS8: 0 | AT8: 0 | AW8: 0 | AX8: 0 | AY8: =AW8+AX8 -> 0 | BA8: 5 | BB8: 45 | BC8: 5 | BD8: 50 | BG8: 0 | BH8: 0 | BI8: 0 | BL8: 0 | BM8: 0 | BN8: 0 | BP8: 3 | BQ8: 60 | BR8: 0 | BS8: 0 | BT8: 0 | BU8: 0 | BV8: 0 | BW8: 1 | BX8: 0 | BY8: 0
A9: 4 | B9: 3 | C9: Toverud | D9: Anna Margrete | E9: Ingierkollen Rustad | F9: =IF(G9<5,"",(R9-SUM(SMALL(S9:Z9,{1;2;3})))) -> 235 | G9: 5 | I9: 4 | L9: 11 | M9: 15 | N9: 6 | O9: 2 | R9: 235 | S9: 50 | T9: 0 | U9: 0 | V9: 24 | W9: 16 | X9: 40 | Y9: 80 | Z9: 0 | AB9: 4 | AC9: 50 | AD9: 5 | AE9: 55 | AH9: 0 | AI9: 0 | AJ9: 0 | AL9: 6 | AM9: 40 | AN9: 5 | AO9: 45 | AR9: 0 | AS9: 0 | AT9: 0 | AV9: 11 | AW9: 24 | AX9: 5 | AY9: 29 | BA9: 15 | BB9: 16 | BC9: 5 | BD9: 21 | BF9: 2 | BG9: 80 | BH9: 5 | BI9: 85 | BL9: 0 | BM9: 0 | BN9: 0 | BP9: 4 | BQ9: 50 | BR9: 0 | BS9: 0 | BT9: 0 | BU9: 1 | BV9: 0 | BW9: 0 | BX9: 0 | BY9: 0
A10: 5 | B10: 4 | C10: Androstsuk | D10: Arina | E10: Ready | F10: =IF(G10<5,"",(R10-SUM(SMALL(S10:Z10,{1;2;3})))) -> 194 | G10: 7 | I10: DSQ | J10: DSQ | L10: 13 | M10: 23 | N10: 7 | O10: 4 | P10: 5 | R10: 194 | S10: 0 | T10: 0 | U10: 0 | V10: 20 | W10: 8 | X10: 36 | Y10: 50 | Z10: 45 | AB10: DSQ | AC10: 0 | AD10: 5 | AE10: 5 | AG10: DSQ | AH10: 0 | AI10: 5 | AJ10: 5 | AL10: 7 | AM10: 36 | AN10: 5 | AO10: 41 | AR10: 0 | AS10: 0 | AT10: 0 | AV10: 13 | AW10: 20 | AX10: 5 | AY10: 25 | BA10: 23 | BB10: 8 | BC10: 5 | BD10: 13 | BF10: 4 | BG10: 50 | BH10: 5 | BI10: 55 | BK10: 5 | BL10: 45 | BM10: 5 | BN10: 50 | BP10: 5 | BQ10: 45 | BR10: 0 | BS10: 1 | BT10: 0 | BU10: 0 | BV10: 0 | BW10: 0 | BX10: 0 | BY10: 0
A11: 5 | C11: Watle | D11: Linnea | E11: Ingierkollen Rustad | F11: =IF(G11<5,"",(R11-SUM(SMALL(S11:Z11,{1;2;3})))) ->  | G11: 4 | I11: 5 | M11: 10 | O11: 1 | P11: DNS | R11: 191 | AB11: 5 | AC11: 45 | AD11: 5 | AE11: 50 | AH11: 0 | AI11: 0 | AJ11: 0 | AM11: 0 | AN11: 0 | AO11: 0 | AR11: 0 | AS11: 0 | AT11: 0 | AW11: 0 | AX11: 0 | AY11: 0 | BA11: 10 | BB11: 26 | BC11: 5 | BD11: 31 | BF11: 1 | BG11: 100 | BH11: 5 | BI11: 105 | BK11: DNS | BL11: 0 | BM11: 5 | BN11: 5 | BP11: 6 | BQ11: 40 | BR11: 0 | BS11: 0 | BT11: 0 | BU11: 0 | BV11: 1 | BW11: 0 | BX11: 0 | BY11: 0
A12: 5 | C12: Stuge | D12: Hermine | E12: Heming | F12: =IF(G12<5,"",(R12-SUM(SMALL(S12:Z12,{1;2;3})))) ->  | G12: 2 | L12: 2 | M12: 1 | R12: 190 | AC12: 0 | AD12: 0 | AE12: 0 | AH12: 0 | AI12: 0 | AJ12: 0 | AM12: 0 | AN12: 0 | AO12: 0 | AR12: 0 | AS12: 0 | AT12: 0 | AV12: 2 | AW12: 80 | AX12: 5 | AY12: 85 | BA12: 1 | BB12: 100 | BC12: 5 | BD12: 105 | BG12: 0 | BH12: 0 | BI12: 0 | BL12: 0 | BM12: 0 | BN12: 0 | BP12: 7 | BQ12: 36 | BR12: 0 | BS12: 0 | BT12: 0 | BU12: 0 | BV12: 0 | BW12: 0 | BX12: 1 | BY12: 0
A13: 5 | C13: Strandenæs | D13: Vilje | E13: Heming | F13: =IF(G13<5,"",(R13-SUM(SMALL(S13:Z13,{1;2;3})))) ->  | G13: 3 | L13: 6 | M13: 2 | N13: 4 | R13: 185 | AC13: 0 | AD13: 0 | AE13: 0 | AH13: 0 | AI13: 0 | AJ13: 0 | AL13: 4 | AM13: 50 | AN13: 5 | AO13: 55 | AR13: 0 | AS13: 0 | AT13: 0 | AV13: 6 | AW13: 40 | AX13: 5 | AY13: 45 | BA13: 2 | BB13: 80 | BC13: 5 | BD13: 85 | BG13: 0 | BH13: 0 | BI13: 0 | BL13: 0 | BM13: 0 | BN13: 0 | BP13: 8 | BQ13: 32 | BR13: 0 | BS13: 0 | BT13: 0 | BU13: 0 | BV13: 0 | BW13: 1 | BX13: 0 | BY13: 0
A14: 5 | C14: Anderssen | D14: Charlotte | E14: Ingierkollen Rustad | F14: =IF(G14<5,"",(R14-SUM(SMALL(S14:Z14,{1;2;3})))) ->  | G14: 3 | M14: 13 | O14: 6 | P14: 1 | R14: 175 | AC14: 0 | AD14: 0 | AE14: 0 | AH14: 0 | AI14: 0 | AJ14: 0 | AM14: 0 | AN14: 0 | AO14: 0 | AR14: 0 | AS14: 0 | AT14: 0 | AW14: 0 | AX14: 0 | AY14: 0 | BA14: 13 | BB14: 20 | BC14: 5 | BD14: 25 | BF14: 6 | BG14: 40 | BH14: 5 | BI14: 45 | BK14: 1 | BL14: 100 | BM14: 5 | BN14: 105 | BP14: 9 | BQ14: 29 | BR14: 0 | BS14: 0 | BT14: 0 | BU14: 0 | BV14: 0 | BW14: 1 | BX14: 0 | BY14: 0
A15: 5 | C15: Hiorth | D15: Fanny | E15: Heming | F15: =IF(G15<5,"",(R15-SUM(SMALL(S15:Z15,{1;2;3})))) ->  | G15: 3 | J15: 1 | L15: DNS | M15: 3 | R15: 175 | AC15: 0 | AD15: 0 | AE15: 0 | AG15: 1 | AH15: 100 | AI15: 5 | AJ15: 105 | AM15: 0 | AN15: 0 | AO15: 0 | AR15: 0 | AS15: 0 | AT15: 0 | AV15: DNS | AW15: 0 | AX15: 5 | AY15: 5 | BA15: 3 | BB15: 60 | BC15: 5 | BD15: 65 | BG15: 0 | BH15: 0 | BI15: 0 | BL15: 0 | BM15: 0 | BN15: 0 | BP15: 10 | BQ15: 26 | BR15: 0 | BS15: 0 | BT15: 0 | BU15: 0 | BV15: 0 | BW15: 1 | BX15: 0 | BY15: 0
A16: 5 | C16: Astrup | D16: Heddy | E16: Ready | F16: =IF(G16<5,"",(R16-SUM(SMALL(S16:Z16,{1;2;3})))) ->  | G16: 3 | M16: 17 | O16: 3 | P16: 2 | R16: 169 | AC16: 0 | AD16: 0 | AE16: 0 | AH16: 0 | AI16: 0 | AJ16: 0 | AM16: 0 | AN16: 0 | AO16: 0 | AR16: 0 | AS16: 0 | AT16: 0 | AW16: 0 | AX16: 0 | AY16: 0 | BA16: 17 | BB16: 14 | BC16: 5 | BD16: 19 | BF16: 3 | BG16: 60 | BH16: 5 | BI16: 65 | BK16: 2 | BL16: 80 | BM16: 5 | BN16: 85 | BP16: 11 | BQ16: 24 | BR16: 0 | BS16: 0 | BT16: 0 | BU16: 0 | BV16: 0 | BW16: 1 | BX16: 0 | BY16: 0
A17: 12 | B17: 5 | C17: Wilhelmsen | D17: Ebba | E17: Njård | F17: =IF(G17<5,"",(R17-SUM(SMALL(S17:Z17,{1;2;3})))) -> 126 | G17: 5 | I17: 7 | M17: DNS | N17: 9 | O17: DSQ | P17: 7 | R17: 126 | S17: 36 | T17: 0 | U17: 0 | V17: 0 | W17: 0 | X17: 29 | Y17: 0 | Z17: 36 | AB17: 7 | AC17: 36 | AD17: 5 | AE17: 41 | AH17: 0 | AI17: 0 | AJ17: 0 | AL17: 9 | AM17: 29 | AN17: 5 | AO17: 34 | AR17: 0 | AS17: 0 | AT17: 0 | AW17: 0 | AX17: 0 | AY17: 0 | BA17: DNS | BB17: 0 | BC17: 5 | BD17: 5 | BF17: DSQ | BG17: 0 | BH17: 5 | BI17: 5 | BK17: 7 | BL17: 36 | BM17: 5 | BN17: 41 | BP17: 12 | BQ17: 22 | BR17: 0 | BS17: 0 | BT17: 0 | BU17: 1 | BV17: 0 | BW17: 0 | BX17: 0 | BY17: 0
A18: 12 | C18: Susrud | D18: Ava | E18: Ready | F18: =IF(G18<5,"",(R18-SUM(SMALL(S18:Z18,{1;2;3})))) ->  | G18: 3 | M18: 18 | O18: 5 | P18: 4 | R18: 123 | AC18: 0 | AD18: 0 | AE18: 0 | AH18: 0 | AI18: 0 | AJ18: 0 | AM18: 0 | AN18: 0 | AO18: 0 | AR18: 0 | AS18: 0 | AT18: 0 | AW18: 0 | AX18: 0 | AY18: 0 | BA18: 18 | BB18: 13 | BC18: 5 | BD18: 18 | BF18: 5 | BG18: 45 | BH18: 5 | BI18: 50 | BK18: 4 | BL18: 50 | BM18: 5 | BN18: 55 | BP18: 13 | BQ18: 20 | BR18: 0 | BS18: 0 | BT18: 0 | BU18: 0 | BV18: 0 | BW18: 1 | BX18: 0 | BY18: 0
A19: 14 | B19: 6 | C19: Frydendal | D19: Henriette | E19: Heming | F19: =IF(G19<5,"",(R19-SUM(SMALL(S19:Z19,{1;2;3})))) -> 122 | G19: 6 | I19: DSQ | L19: DSQ | M19: 8 | N19: 3 | O19: DNS | P19: DNS | R19: 122 | S19: 0 | T19: 0 | U19: 0 | V19: 0 | W19: 32 | X19: 60 | Y19: 0 | Z19: 0 | AB19: DSQ | AC19: 0 | AD19: 5 | AE19: 5 | AH19: 0 | AI19: 0 | AJ19: 0 | AL19: 3 | AM19: 60 | AN19: 5 | AO19: 65 | AR19: 0 | AS19: 0 | AT19: 0 | AV19: DSQ | AW19: 0 | AX19: 5 | AY19: 5 | BA19: 8 | BB19: 32 | BC19: 5 | BD19: 37 | BF19: DNS | BG19: 0 | BH19: 5 | BI19: 5 | BK19: DNS | BL19: 0 | BM19: 5 | BN19: 5 | BP19: 14 | BQ19: 18 | BR19: 0 | BS19: 0 | BT19: 1 | BU19: 0 | BV19: 0 | BW19: 0 | BX19: 0 | BY19: 0
A20: 14 | C20: Bakkevig | D20: Karoline | E20: Heming | F20: =IF(G20<5,"",(R20-SUM(SMALL(S20:Z20,{1;2;3})))) ->  | G20: 2 | L20: 1 | M20: DSQ | R20: 110 | AC20: 0 | AD20: 0 | AE20: 0 | AH20: 0 | AI20: 0 | AJ20: 0 | AM20: 0 | AN20: 0 | AO20: 0 | AR20: 0 | AS20: 0 | AT20: 0 | AV20: 1 | AW20: 100 | AX20: 5 | AY20: 105 | BA20: DSQ | BB20: 0 | BC20: 5 | BD20: 5 | BG20: 0 | BH20: 0 | BI20: 0 | BL20: 0 | BM20: 0 | BN20: 0 | BP20: 15 | BQ20: 16 | BR20: 0 | BS20: 0 | BT20: 0 | BU20: 0 | BV20: 0 | BW20: 0 | BX20: 1 | BY20: 0
A21: 14 | C21: Misund | D21: Helene | E21: Heming | F21: =IF(G21<5,"",(R21-SUM(SMALL(S21:Z21,{1;2;3})))) ->  | G21: 2 | L21: 3 | M21: 6 | R21: 110 | AC21: 0 | AD21: 0 | AE21: 0 | AH21: 0 | AI21: 0 | AJ21: 0 | AM21: 0 | AN21: 0 | AO21: 0 | AR21: 0 | AS21: 0 | AT21: 0 | AV21: 3 | AW21: 60 | AX21: 5 | AY21: 65 | BA21: 6 | BB21: 40 | BC21: 5 | BD21: 45 | BG21: 0 | BH21: 0 | BI21: 0 | BL21: 0 | BM21: 0 | BN21: 0 | BP21: 16 | BQ21: 15 | BR21: 0 | BS21: 0 | BT21: 0 | BU21: 0 | BV21: 0 | BW21: 0 | BX21: 1 | BY21: 0
A22: 14 | C22: Zackrisson | D22: Ada | E22: Heming | F22: =IF(G22<5,"",(R22-SUM(SMALL(S22:Z22,{1;2;3})))) ->  | G22: 2 | L22: 5 | M22: 9 | R22: 84 | AC22: 0 | AD22: 0 | AE22: 0 | AH22: 0 | AI22: 0 | AJ22: 0 | AM22: 0 | AN22: 0 | AO22: 0 | AR22: 0 | AS22: 0 | AT22: 0 | AV22: 5 | AW22: 45 | AX22: 5 | AY22: 50 | BA22: 9 | BB22: 29 | BC22: 5 | BD22: 34 | BG22: 0 | BH22: 0 | BI22: 0 | BL22: 0 | BM22: 0 | BN22: 0 | BP22: 17 | BQ22: 14 | BR22: 0 | BS22: 0 | BT22: 0 | BU22: 0 | BV22: 0 | BW22: 0 | BX22: 1 | BY22: 0
A23: 14 | C23: Moxon | D23: Lilly Madeleine | E23: Heming | F23: =IF(G23<5,"",(R23-SUM(SMALL(S23:Z23,{1;2;3})))) ->  | G23: 3 | L23: 9 | M23: 11 | P23: DNS | R23: 68 | AC23: 0 | AD23: 0 | AE23: 0 | AH23: 0 | AI23: 0 | AJ23: 0 | AM23: 0 | AN23: 0 | AO23: 0 | AR23: 0 | AS23: 0 | AT23: 0 | AV23: 9 | AW23: 29 | AX23: 5 | AY23: 34 | BA23: 11 | BB23: 24 | BC23: 5 | BD23: 29 | BG23: 0 | BH23: 0 | BI23: 0 | BK23: DNS | BL23: 0 | BM23: 5 | BN23: 5 | BP23: 18 | BQ23: 13 | BR23: 0 | BS23: 0 | BT23: 0 | BU23: 0 | BV23: 0 | BW23: 1 | BX23: 0 | BY23: 0
A24: 14 | C24: Storhaug-Blom | D24: Signe | E24: Njård | F24: =IF(G24<5,"",(R24-SUM(SMALL(S24:Z24,{1;2;3})))) ->  | G24: 4 | I24: DSQ | M24: DSQ | O24: DSQ | P24: 6 | R24: 60 | AB24: DSQ | AC24: 0 | AD24: 5 | AE24: 5 | AH24: 0 | AI24: 0 | AJ24: 0 | AM24: 0 | AN24: 0 | AO24: 0 | AR24: 0 | AS24: 0 | AT24: 0 | AW24: 0 | AX24: 0 | AY24: 0 | BA24: DSQ | BB24: 0 | BC24: 5 | BD24: 5 | BF24: DSQ | BG24: 0 | BH24: 5 | BI24: 5 | BK24: 6 | BL24: 40 | BM24: 5 | BN24: 45 | BP24: 19 | BQ24: 12 | BR24: 0 | BS24: 0 | BT24: 0 | BU24: 0 | BV24: 1 | BW24: 0 | BX24: 0 | BY24: 0
A25: 14 | C25: Bjerke | D25: Marielle | E25: Ready | F25: =IF(G25<5,"",(R25-SUM(SMALL(S25:Z25,{1;2;3})))) ->  | G25: 3 | I25: 6 | L25: DSQ | N25: DNS | R25: 55 | AB25: 6 | AC25: 40 | AD25: 5 | AE25: 45 | AH25: 0 | AI25: 0 | AJ25: 0 | AL25: DNS | AM25: 0 | AN25: 5 | AO25: 5 | AR25: 0 | AS25: 0 | AT25: 0 | AV25: DSQ | AW25: 0 | AX25: 5 | AY25: 5 | BB25: 0 | BC25: 0 | BD25: 0 | BG25: 0 | BH25: 0 | BI25: 0 | BL25: 0 | BM25: 0 | BN25: 0 | BP25: 20 | BQ25: 11 | BR25: 0 | BS25: 0 | BT25: 0 | BU25: 0 | BV25: 0 | BW25: 1 | BX25: 0 | BY25: 0
A26: 14 | C26: Grepstad | D26: Hannah | E26: Heming | F26: =IF(G26<5,"",(R26-SUM(SMALL(S26:Z26,{1;2;3})))) ->  | G26: 2 | L26: 10 | M26: 20 | R26: 47 | AC26: 0 | AD26: 0 | AE26: 0 | AH26: 0 | AI26: 0 | AJ26: 0 | AM26: 0 | AN26: 0 | AO26: 0 | AR26: 0 | AS26: 0 | AT26: 0 | AV26: 10 | AW26: 26 | AX26: 5 | AY26: 31 | BA26: 20 | BB26: 11 | BC26: 5 | BD26: 16 | BG26: 0 | BH26: 0 | BI26: 0 | BL26: 0 | BM26: 0 | BN26: 0 | BP26: 21 | BQ26: 10 | BR26: 0 | BS26: 0 | BT26: 0 | BU26: 0 | BV26: 0 | BW26: 0 | BX26: 1 | BY26: 0
A27: 14 | C27: Tranby | D27: Charlotte | E27: Njård | F27: =IF(G27<5,"",(R27-SUM(SMALL(S27:Z27,{1;2;3})))) ->  | G27: 2 | L27: 8 | M27: DNS | R27: 42 | AC27: 0 | AD27: 0 | AE27: 0 | AH27: 0 | AI27: 0 | AJ27: 0 | AM27: 0 | AN27: 0 | AO27: 0 | AR27: 0 | AS27: 0 | AT27: 0 | AV27: 8 | AW27: 32 | AX27: 5 | AY27: 37 | BA27: DNS | BB27: 0 | BC27: 5 | BD27: 5 | BG27: 0 | BH27: 0 | BI27: 0 | BL27: 0 | BM27: 0 | BN27: 0 | BP27: 22 | BQ27: 9 | BR27: 0 | BS27: 0 | BT27: 0 | BU27: 0 | BV27: 0 | BW27: 0 | BX27: 1 | BY27: 0
A28: 14 | C28: Høegh | D28: Hannah | E28: Heming | F28: =IF(G28<5,"",(R28-SUM(SMALL(S28:Z28,{1;2;3})))) ->  | G28: 1 | M28: 7 | R28: 41 | AC28: 0 | AD28: 0 | AE28: 0 | AH28: 0 | AI28: 0 | AJ28: 0 | AM28: 0 | AN28: 0 | AO28: 0 | AR28: 0 | AS28: 0 | AT28: 0 | AW28: 0 | AX28: 0 | AY28: 0 | BA28: 7 | BB28: 36 | BC28: 5 | BD28: 41 | BG28: 0 | BH28: 0 | BI28: 0 | BL28: 0 | BM28: 0 | BN28: 0 | BP28: 23 | BQ28: 8 | BR28: 0 | BS28: 0 | BT28: 0 | BU28: 0 | BV28: 0 | BW28: 0 | BX28: 0 | BY28: 1
A29: 14 | C29: Terjesen | D29: Olivia | E29: Kjelsås | F29: =IF(G29<5,"",(R29-SUM(SMALL(S29:Z29,{1;2;3})))) ->  | G29: 3 | N29: 10 | O29: DNS | P29: DNS | R29: 41 | AC29: 0 | AD29: 0 | AE29: 0 | AH29: 0 | AI29: 0 | AJ29: 0 | AL29: 10 | AM29: 26 | AN29: 5 | AO29: 31 | AR29: 0 | AS29: 0 | AT29: 0 | AW29: 0 | AX29: 0 | AY29: 0 | BB29: 0 | BC29: 0 | BD29: 0 | BF29: DNS | BG29: 0 | BH29: 5 | BI29: 5 | BK29: DNS | BL29: 0 | BM29: 5 | BN29: 5 | BP29: 24 | BQ29: 7 | BR29: 0 | BS29: 0 | BT29: 0 | BU29: 0 | BV29: 0 | BW29: 1 | BX29: 0 | BY29: 0
A30: 14 | C30: Ovrum | D30: Anne | E30: Kjelsås | F30: =IF(G30<5,"",(R30-SUM(SMALL(S30:Z30,{1;2;3})))) ->  | G30: 1 | N30: 8 | R30: 37 | AC30: 0 | AD30: 0 | AE30: 0 | AH30: 0 | AI30: 0 | AJ30: 0 | AL30: 8 | AM30: 32 | AN30: 5 | AO30: 37 | AR30: 0 | AS30: 0 | AT30: 0 | AW30: 0 | AX30: 0 | AY30: 0 | BB30: 0 | BC30: 0 | BD30: 0 | BG30: 0 | BH30: 0 | BI30: 0 | BL30: 0 | BM30: 0 | BN30: 0 | BP30: 25 | BQ30: 6 | BR30: 0 | BS30: 0 | BT30: 0 | BU30: 0 | BV30: 0 | BW30: 0 | BX30: 0 | BY30: 1
A31: 14 | C31: Johnsen | D31: Nicoline | E31: Heming | F31: =IF(G31<5,"",(R31-SUM(SMALL(S31:Z31,{1;2;3})))) ->  | G31: 4 | M31: 16 | N31: DNS | O31: DNS | P31: DNS | R31: 35 | AC31: 0 | AD31: 0 | AE31: 0 | AH31: 0 | AI31: 0 | AJ31: 0 | AL31: DNS | AM31: 0 | AN31: 5 | AO31: 5 | AR31: 0 | AS31: 0 | AT31: 0 | AW31: 0 | AX31: 0 | AY31: 0 | BA31: 16 | BB31: 15 | BC31: 5 | BD31: 20 | BF31: DNS | BG31: 0 | BH31: 5 | BI31: 5 | BK31: DNS | BL31: 0 | BM31: 5 | BN31: 5 | BP31: 26 | BQ31: 5 | BR31: 0 | BS31: 0 | BT31: 0 | BU31: 0 | BV31: 1 | BW31: 0 | BX31: 0 | BY31: 0
A32: 14 | C32: Homberset | D32: Ragnhild | E32: Try | F32: =IF(G32<5,"",(R32-SUM(SMALL(S32:Z32,{1;2;3})))) ->  | G32: 2 | L32: 14 | M32: 25 | R32: 34 | AC32: 0 | AD32: 0 | AE32: 0 | AH32: 0 | AI32: 0 | AJ32: 0 | AM32: 0 | AN32: 0 | AO32: 0 | AR32: 0 | AS32: 0 | AT32: 0 | AV32: 14 | AW32: 18 | AX32: 5 | AY32: 23 | BA32: 25 | BB32: 6 | BC32: 5 | BD32: 11 | BG32: 0 | BH32: 0 | BI32: 0 | BL32: 0 | BM32: 0 | BN32: 0 | BP32: 27 | BQ32: 4 | BR32: 0 | BS32: 0 | BT32: 0 | BU32: 0 | BV32: 0 | BW32: 0 | BX32: 1 | BY32: 0
A33: 14 | C33: Sommerschild | D33: Hilken | E33: Heming | F33: =IF(G33<5,"",(R33-SUM(SMALL(S33:Z33,{1;2;3})))) ->  | G33: 2 | L33: 12 | M33: DNS | R33: 32 | AC33: 0 | AD33: 0 | AE33: 0 | AH33: 0 | AI33: 0 | AJ33: 0 | AM33: 0 | AN33: 0 | AO33: 0 | AR33: 0 | AS33: 0 | AT33: 0 | AV33: 12 | AW33: 22 | AX33: 5 | AY33: 27 | BA33: DNS | BB33: 0 | BC33: 5 | BD33: 5 | BG33: 0 | BH33: 0 | BI33: 0 | BL33: 0 | BM33: 0 | BN33: 0 | BP33: 28 | BQ33: 3 | BR33: 0 | BS33: 0 | BT33: 0 | BU33: 0 | BV33: 0 | BW33: 0 | BX33: 1 | BY33: 0
A34: 14 | C34: Skoe | D34: Sofie | E34: Heming | F34: =IF(G34<5,"",(R34-SUM(SMALL(S34:Z34,{1;2;3})))) ->  | G34: 1 | M34: 12 | R34: 27 | AC34: 0 | AD34: 0 | AE34: 0 | AH34: 0 | AI34: 0 | AJ34: 0 | AM34: 0 | AN34: 0 | AO34: 0 | AR34: 0 | AS34: 0 | AT34: 0 | AW34: 0 | AX34: 0 | AY34: 0 | BA34: 12 | BB34: 22 | BC34: 5 | BD34: 27 | BG34: 0 | BH34: 0 | BI34: 0 | BL34: 0 | BM34: 0 | BN34: 0 | BP34: 29 | BQ34: 2 | BR34: 0 | BS34: 0 | BT34: 0 | BU34: 0 | BV34: 0 | BW34: 0 | BX34: 0 | BY34: 1
A35: 14 | C35: Bolling | D35: Madeleine | E35: Heming | F35: =IF(G35<5,"",(R35-SUM(SMALL(S35:Z35,{1;2;3})))) ->  | G35: 2 | L35: 15 | M35: DNS | R35: 26 | AC35: 0 | AD35: 0 | AE35: 0 | AH35: 0 | AI35: 0 | AJ35: 0 | AM35: 0 | AN35: 0 | AO35: 0 | AR35: 0 | AS35: 0 | AT35: 0 | AV35: 15 | AW35: 16 | AX35: 5 | AY35: 21 | BA35: DNS | BB35: 0 | BC35: 5 | BD35: 5 | BG35: 0 | BH35: 0 | BI35: 0 | BL35: 0 | BM35: 0 | BN35: 0 | BP35: 30 | BQ35: 1 | BR35: 0 | BS35: 0 | BT35: 0 | BU35: 0 | BV35: 0 | BW35: 0 | BX35: 1 | BY35: 0
A36: 14 | C36: Høegh | D36: Thea | E36: Heming | F36: =IF(G36<5,"",(R36-SUM(SMALL(S36:Z36,{1;2;3})))) ->  | G36: 1 | M36: 14 | R36: 23 | AC36: 0 | AD36: 0 | AE36: 0 | AH36: 0 | AI36: 0 | AJ36: 0 | AM36: 0 | AN36: 0 | AO36: 0 | AR36: 0 | AS36: 0 | AT36: 0 | AW36: 0 | AX36: 0 | AY36: 0 | BA36: 14 | BB36: 18 | BC36: 5 | BD36: 23 | BG36: 0 | BH36: 0 | BI36: 0 | BL36: 0 | BM36: 0 | BN36: 0 | BP36: 31 | BQ36: 0 | BR36: 0 | BS36: 0 | BT36: 0 | BU36: 0 | BV36: 0 | BW36: 0 | BX36: 0 | BY36: 1
A37: 14 | C37: Platou | D37: Elise | E37: Heming | F37: =IF(G37<5,"",(R37-SUM(SMALL(S37:Z37,{1;2;3})))) ->  | G37: 2 | L37: DNS | M37: 21 | R37: 20 | AC37: 0 | AD37: 0 | AE37: 0 | AH37: 0 | AI37: 0 | AJ37: 0 | AM37: 0 | AN37: 0 | AO37: 0 | AR37: 0 | AS37: 0 | AT37: 0 | AV37: DNS | AW37: 0 | AX37: 5 | AY37: 5 | BA37: 21 | BB37: 10 | BC37: 5 | BD37: 15 | BG37: 0 | BH37: 0 | BI37: 0 | BL37: 0 | BM37: 0 | BN37: 0 | BP37: 32 | BQ37: 0 | BR37: 0 | BS37: 0 | BT37: 0 | BU37: 0 | BV37: 0 | BW37: 0 | BX37: 1 | BY37: 0
A38: 14 | C38: Reistad | D38: Thale | E38: Kjelsås | F38: =IF(G38<5,"",(R38-SUM(SMALL(S38:Z38,{1;2;3})))) ->  | G38: 4 | I38: DNS | N38: DNS | O38: DSQ | P38: DNS | R38: 20 | AB38: DNS | AC38: =IF(ISNUMBER(AB38),(VLOOKUP(AB38,$BP$6:$BQ$50,2)),0) -> 0 | AD38: 5 | AE38: 5 | AH38: =IF(ISNUMBER(AG38),(VLOOKUP(AG38,$BP$6:$BQ$50,2)),0) -> 0 | AI38: 0 | AJ38: 0 | AL38: DNS | AM38: =IF(ISNUMBER(AL38),(VLOOKUP(AL38,$BP$6:$BQ$50,2)),0) -> 0 | AN38: 5 | AO38: 5 | AR38: =IF(ISNUMBER(AQ38),(VLOOKUP(AQ38,$BP$6:$BQ$50,2)),0) -> 0 | AS38: 0 | AT38: 0 | AW38: =IF(ISNUMBER(AV38),(VLOOKUP(AV38,$BP$6:$BQ$50,2)),0) -> 0 | AX38: 0 | AY38: 0 | BB38: =IF(ISNUMBER(BA38),(VLOOKUP(BA38,$BP$6:$BQ$50,2)),0) -> 0 | BC38: 0 | BD38: 0 | BF38: DSQ | BG38: 0 | BH38: 5 | BI38: 5 | BK38: DNS | BL38: 0 | BM38: 5 | BN38: 5 | BP38: 33 | BQ38: 0 | BR38: 0 | BS38: 0 | BT38: 0 | BU38: 0 | BV38: 1 | BW38: 0 | BX38: 0 | BY38: 0
A39: 14 | C39: Qvigstad | D39: Julie | E39: Heming | F39: =IF(G39<5,"",(R39-SUM(SMALL(S39:Z39,{1;2;3})))) ->  | G39: 1 | M39: 19 | R39: 17 | AC39: 0 | AD39: 0 | AE39: 0 | AH39: 0 | AI39: 0 | AJ39: 0 | AM39: 0 | AN39: 0 | AO39: 0 | AR39: 0 | AS39: 0 | AT39: 0 | AW39: 0 | AX39: 0 | AY39: 0 | BA39: 19 | BB39: 12 | BC39: 5 | BD39: 17 | BG39: 0 | BH39: 0 | BI39: 0 | BL39: 0 | BM39: 0 | BN39: 0 | BP39: 34 | BQ39: 0 | BR39: 0 | BS39: 0 | BT39: 0 | BU39: 0 | BV39: 0 | BW39: 0 | BX39: 0 | BY39: 1
A40: 14 | C40: Sandvik | D40: Francesca | E40: Heming | F40: =IF(G40<5,"",(R40-SUM(SMALL(S40:Z40,{1;2;3})))) ->  | G40: 1 | M40: 22 | R40: 14 | AC40: 0 | AD40: 0 | AE40: 0 | AH40: 0 | AI40: 0 | AJ40: 0 | AM40: 0 | AN40: 0 | AO40: 0 | AR40: 0 | AS40: 0 | AT40: 0 | AW40: 0 | AX40: 0 | AY40: 0 | BA40: 22 | BB40: 9 | BC40: 5 | BD40: 14 | BG40: 0 | BH40: 0 | BI40: 0 | BL40: 0 | BM40: 0 | BN40: 0 | BP40: 35 | BQ40: 0 | BR40: 0 | BS40: 0 | BT40: 0 | BU40: 0 | BV40: 0 | BW40: 0 | BX40: 0 | BY40: 1
A41: 14 | C41: Kvalheim | D41: Cornelia | E41: Ready | F41: =IF(G41<5,"",(R41-SUM(SMALL(S41:Z41,{1;2;3})))) ->  | G41: 1 | M41: 24 | R41: 12 | AC41: 0 | AD41: 0 | AE41: 0 | AH41: 0 | AI41: 0 | AJ41: 0 | AM41: 0 | AN41: 0 | AO41: 0 | AR41: 0 | AS41: 0 | AT41: 0 | AW41: 0 | AX41: 0 | AY41: 0 | BA41: 24 | BB41: 7 | BC41: 5 | BD41: 12 | BG41: 0 | BH41: 0 | BI41: 0 | BL41: 0 | BM41: 0 | BN41: 0 | BP41: 36 | BQ41: 0 | BR41: 0 | BS41: 0 | BT41: 0 | BU41: 0 | BV41: 0 | BW41: 0 | BX41: 0 | BY41: 1
A42: 14 | C42: Furuholmen | D42: Cecilie | E42: Heming | F42: =IF(G42<5,"",(R42-SUM(SMALL(S42:Z42,{1;2;3})))) ->  | G42: 2 | L42: DNS | M42: DNS | R42: 10 | AC42: 0 | AD42: 0 | AE42: 0 | AH42: 0 | AI42: 0 | AJ42: 0 | AM42: 0 | AN42: 0 | AO42: 0 | AR42: 0 | AS42: 0 | AT42: 0 | AV42: DNS | AW42: 0 | AX42: 5 | AY42: 5 | BA42: DNS | BB42: 0 | BC42: 5 | BD42: 5 | BG42: 0 | BH42: 0 | BI42: 0 | BL42: 0 | BM42: 0 | BN42: 0 | BP42: 37 | BQ42: 0 | BR42: 0 | BS42: 0 | BT42: 0 | BU42: 0 | BV42: 0 | BW42: 0 | BX42: 1 | BY42: 0
A43: 14 | C43: Westgaard | D43: Iben | E43: Ready | F43: =IF(G43<5,"",(R43-SUM(SMALL(S43:Z43,{1;2;3})))) ->  | G43: 2 | L43: DNS | M43: DNS | R43: 10 | AC43: 0 | AD43: 0 | AE43: 0 | AH43: 0 | AI43: 0 | AJ43: 0 | AM43: 0 | AN43: 0 | AO43: 0 | AR43: 0 | AS43: 0 | AT43: 0 | AV43: DNS | AW43: 0 | AX43: 5 | AY43: 5 | BA43: DNS | BB43: 0 | BC43: 5 | BD43: 5 | BG43: 0 | BH43: 0 | BI43: 0 | BL43: 0 | BM43: 0 | BN43: 0 | BP43: 38 | BQ43: 0 | BR43: 0 | BS43: 0 | BT43: 0 | BU43: 0 | BV43: 0 | BW43: 0 | BX43: 1 | BY43: 0
A44: 14 | C44: Bugge | D44: Cathinka | E44: Try | F44: =IF(G44<5,"",(R44-SUM(SMALL(S44:Z44,{1;2;3})))) ->  | G44: 1 | M44: DNS | R44: 5 | AC44: 0 | AD44: 0 | AE44: 0 | AH44: 0 | AI44: 0 | AJ44: 0 | AM44: 0 | AN44: 0 | AO44: 0 | AR44: 0 | AS44: 0 | AT44: 0 | AW44: 0 | AX44: 0 | AY44: 0 | BA44: DNS | BB44: 0 | BC44: 5 | BD44: 5 | BG44: 0 | BH44: 0 | BI44: 0 | BL44: 0 | BM44: 0 | BN44: 0 | BP44: 39 | BQ44: 0 | BR44: 0 | BS44: 0 | BT44: 0 | BU44: 0 | BV44: 0 | BW44: 0 | BX44: 0 | BY44: 1
A45: 14 | C45: Sørensen | D45: Lili | E45: Ready | F45: =IF(G45<5,"",(R45-SUM(SMALL(S45:Z45,{1;2;3})))) ->  | G45: 1 | M45: DNS | R45: 5 | AC45: 0 | AD45: 0 | AE45: 0 | AH45: 0 | AI45: 0 | AJ45: 0 | AM45: 0 | AN45: 0 | AO45: 0 | AR45: 0 | AS45: 0 | AT45: 0 | AW45: 0 | AX45: 0 | AY45: 0 | BA45: DNS | BB45: 0 | BC45: 5 | BD45: 5 | BG45: 0 | BH45: 0 | BI45: 0 | BL45: 0 | BM45: 0 | BN45: 0 | BP45: 40 | BQ45: 0 | BR45: 0 | BS45: 0 | BT45: 0 | BU45: 0 | BV45: 0 | BW45: 0 | BX45: 0 | BY45: 1
A46: 14 | F46: =IF(G46<5,"",(R46-SUM(SMALL(S46:Z46,{1;2;3})))) ->  | G46: 0 | R46: 0 | AC46: 0 | AD46: 0 | AE46: 0 | AH46: 0 | AI46: 0 | AJ46: 0 | AM46: 0 | AN46: 0 | AO46: 0 | AR46: 0 | AS46: 0 | AT46: 0 | AW46: 0 | AX46: 0 | AY46: 0 | BB46: 0 | BC46: 0 | BD46: 0 | BG46: 0 | BH46: 0 | BI46: 0 | BL46: 0 | BM46: 0 | BN46: 0 | BP46: 41 | BQ46: 0 | BR46: 0 | BS46: 0 | BT46: 0 | BU46: 0 | BV46: 0 | BW46: 0 | BX46: 0 | BY46: 0
A47: 14 | R47: 0 | AC47: 0 | AD47: 0 | AE47: 0 | AH47: 0 | AI47: 0 | AJ47: 0 | AM47: 0 | AN47: 0 | AO47: 0 | AR47: 0 | AS47: 0 | AT47: 0 | AW47: 0 | AX47: 0 | AY47: 0 | BB47: 0 | BC47: 0 | BD47: 0 | BG47: 0 | BH47: 0 | BI47: 0 | BL47: 0 | BM47: 0 | BN47: 0 | BP47: 42 | BQ47: 0 | BR47: 0 | BS47: 0 | BT47: 0 | BU47: 0 | BV47: 0 | BW47: 0 | BX47: 0 | BY47: 0
A48: 14 | N48: =IF(BA48="","",BA48) ->  | O48: =IF(AL48="","",AL48) ->  | P48: =IF(BF48="","",BF48) ->  | R48: 0 | AC48: 0 | AD48: 0 | AE48: 0 | AH48: 0 | AI48: 0 | AJ48: 0 | AM48: 0 | AN48: 0 | AO48: 0 | AR48: 0 | AS48: 0 | AT48: 0 | AW48: 0 | AX48: 0 | AY48: 0 | BB48: 0 | BC48: 0 | BD48: 0 | BG48: 0 | BH48: 0 | BI48: 0 | BL48: 0 | BM48: 0 | BN48: 0 | BP48: 43 | BQ48: 0 | BR48: 0 | BS48: 0 | BT48: 0 | BU48: 0 | BV48: 0 | BW48: 0 | BX48: 0 | BY48: 0
I49: =IF(AB49="","",AB49) ->  | J49: =IF(AG49="","",AG49) ->  | K49: =IF(AQ49="","",AQ49) ->  | L49: =IF(AV49="","",AV49) ->  | M49: =IF(BA49="","",BA49) ->  | N49: =IF(BA49="","",BA49) ->  | O49: =IF(AL49="","",AL49) ->  | P49: =IF(BF49="","",BF49) ->  | R49: 0 | AC49: 0 | AD49: =IF(AB49<>"",5,0) -> 0 | AE49: =AC49+AD49 -> 0 | AH49: 0 | AI49: =IF(AG49<>"",5,0) -> 0 | AJ49: =AH49+AI49 -> 0 | AM49: 0 | AN49: =IF(AL49<>"",5,0) -> 0 | AO49: =AM49+AN49 -> 0 | AR49: 0 | AS49: =IF(AQ49<>"",5,0) -> 0 | AT49: =AR49+AS49 -> 0 | AW49: 0 | AX49: =IF(AV49<>"",5,0) -> 0 | AY49: =AW49+AX49 -> 0 | BB49: 0 | BC49: =IF(BA49<>"",5,0) -> 0 | BD49: =BB49+BC49 -> 0 | BG49: =IF(ISNUMBER(BF49),(VLOOKUP(BF49,$BP$6:$BQ$50,2)),0) -> 0 | BH49: =IF(BF49<>"",5,0) -> 0 | BI49: =BG49+BH49 -> 0 | BL49: =IF(ISNUMBER(BK49),(VLOOKUP(BK49,$BP$6:$BQ$50,2)),0) -> 0 | BM49: =IF(BK49<>"",5,0) -> 0 | BN49: =BL49+BM49 -> 0 | BP49: 44 | BQ49: 0 | BR49: 0 | BS49: 0 | BT49: 0 | BU49: 0 | BV49: 0 | BW49: 0 | BX49: 0 | BY49: 0
M50: 0 | O50: =IF(AL50="","",AL50) ->  | R50: 0 | AC50: 0 | AD50: 0 | AH50: 0 | AI50: 0 | AJ50: 0 | AM50: 0 | AN50: 0 | AO50: 0 | AR50: 0 | AS50: 0 | AT50: 0 | AW50: 0 | AX50: 0 | AY50: 0 | BB50: 0 | BC50: 0 | BD50: 0 | BG50: 0 | BH50: 0 | BI50: 0 | BL50: 0 | BM50: 0 | BN50: 0 | BP50: 45 | BQ50: 0 | BR50: 0 | BS50: 0 | BT50: 0 | BU50: 0 | BV50: 0 | BW50: 0 | BX50: 0 | BY50: 0
M51: 0 | O51: =IF(AL51="","",AL51) ->  | R51: 0 | AC51: 0 | AD51: 0 | AH51: 0 | AI51: 0 | AJ51: 0 | AM51: 0 | AN51: 0 | AO51: 0 | AR51: 0 | AS51: 0 | AT51: 0 | AW51: 0 | AX51: 0 | AY51: 0 | BB51: 0 | BC51: 0 | BD51: 0 | BG51: 0 | BH51: 0 | BI51: 0 | BL51: 0 | BM51: 0 | BN51: 0 | BP51: 46 | BQ51: 0 | BR51: 0 | BS51: 0 | BT51: 0 | BU51: 0 | BV51: 0 | BW51: 0 | BX51: 0 | BY51: 0
M52: 0 | O52: =IF(AL52="","",AL52) ->  | R52: 0 | AC52: 0 | AD52: 0 | AH52: 0 | AI52: 0 | AJ52: 0 | AM52: 0 | AN52: 0 | AO52: 0 | AR52: 0 | AS52: 0 | AT52: 0 | AW52: 0 | AX52: 0 | AY52: 0 | BB52: 0 | BC52: 0 | BD52: 0 | BG52: 0 | BH52: 0 | BI52: 0 | BL52: 0 | BM52: 0 | BN52: 0 | BP52: 47 | BQ52: 0 | BR52: 0 | BS52: 0 | BT52: 0 | BU52: 0 | BV52: 0 | BW52: 0 | BX52: 0 | BY52: 0
S53: =IF($G53>=7,IF(AC53="","",AC53),"") ->  | T53: =IF($G53>=7,IF(AH53="","",AH53),"") ->  | U53: =IF($G53>=7,IF(AR53="","",AR53),"") ->  | V53: =IF($G53>=7,IF(AW53="","",AW53),"") ->  | W53: =IF($G53>=7,IF(BB53="","",BB53),"") ->  | X53: =IF($G53>=7,IF(AM53="","",AM53),"") ->  | Y53: =IF($G53>=7,IF(BG53="","",BG53),"") ->  | Z53: =IF($G53>=7,IF(BL53="","",BL53),"") ->  | AC53: 0 | AD53: 0 | AH53: 0 | AI53: 0 | AM53: 0 | AN53: 0 | AR53: 0 | AS53: 0 | AW53: 0 | AX53: 0 | BB53: 0 | BC53: 0 | BG53: 0 | BH53: 0 | BL53: 0 | BM53: 0 | BP53: 48 | BQ53: 0
S54: =IF($G54>=7,IF(AC54="","",AC54),"") ->  | T54: =IF($G54>=7,IF(AH54="","",AH54),"") ->  | U54: =IF($G54>=7,IF(AR54="","",AR54),"") ->  | V54: =IF($G54>=7,IF(AW54="","",AW54),"") ->  | W54: =IF($G54>=7,IF(BB54="","",BB54),"") ->  | X54: =IF($G54>=7,IF(AM54="","",AM54),"") ->  | Y54: =IF($G54>=7,IF(BG54="","",BG54),"") ->  | Z54: =IF($G54>=7,IF(BL54="","",BL54),"") ->  | AC54: 0 | AD54: 0 | AH54: 0 | AI54: 0 | AM54: 0 | AN54: 0 | AR54: 0 | AS54: 0 | AW54: 0 | AX54: 0 | BB54: 0 | BC54: 0 | BG54: 0 | BH54: 0 | BL54: 0 | BM54: 0
S55: =IF($G55>=7,IF(AC55="","",AC55),"") ->  | T55: =IF($G55>=7,IF(AH55="","",AH55),"") ->  | U55: =IF($G55>=7,IF(AR55="","",AR55),"") ->  | V55: =IF($G55>=7,IF(AW55="","",AW55),"") ->  | W55: =IF($G55>=7,IF(BB55="","",BB55),"") ->  | X55: =IF($G55>=7,IF(AM55="","",AM55),"") ->  | Y55: =IF($G55>=7,IF(BG55="","",BG55),"") ->  | Z55: =IF($G55>=7,IF(BL55="","",BL55),"") -> 

Sheet G11 2022
A1: Resultatliste Oslo Cup 2022 - Gutter 11 år
I3: IRS Rennet | J3: Ljan Rennet | K3: Njård Rennet | L3: Ready Rennet | M3: Telenor Arena Cup | N3: Kidsbühel | O3: Oslo Alpinfestival SL | P3: Oslo Alpinfestival SSL | S3: IRS Rennet | T3: Ljan Rennet | U3: Njård Rennet | V3: Ready Rennet | W3: Telenor Arena Cup | X3: Kidsbühel | Y3: Oslo Alpinfestival SL | Z3: Oslo Alpinfestival SSL | AB3: --------IRS Rennet---------- | AG3: ----------Ljan Rennet--------- | AL3: ------Kidsbühel-------- | AQ3: --------Njård Rennet---------- | AV3: --------Ready Rennet--------- | BA3: -----Telenor Arena Cup---- | BF3: ---Oslo Alpinfestival SL--- | BK3: ---Oslo Alpinfestival SSL---
G4: Antall | I4: 2022-01-29 | J4: 2022-01-30 | K4: 2022-02-04 | L4: 2022-02-05 | M4: 2022-02-16 | N4: 2022-02-02 | O4: 2022-03-12 | P4: 2022-03-13 | R4: Poeng | S4: 2022-01-29 | T4: 2022-01-30 | U4: 2022-02-04 | V4: 2022-02-05 | W4: 2022-02-16 | X4: 2022-02-02 | Y4: 2022-03-12 | Z4: 2022-03-13 | AC4: --------Poeng-------- | AH4: --------Poeng-------- | AM4: -------Poeng--------- | AR4: -------Poeng--------- | AW4: -------Poeng--------- | BB4: -------Poeng--------- | BG4: -------Poeng--------- | BL4: -------Poeng--------- | BR4: Løpere med | BS4: Løpere med | BT4: Løpere med | BU4: Løpere med | BV4: Løpere med | BW4: Løpere med | BX4: Løpere med | BY4: Løpere med
A5: Plass | B5: Plass | C5: Etternavn | D5: Fornavn | E5: Klubb | F5: Poeng | G5: renn | I5: ------------------------------Plassering i rennene--------------------------------- | R5: brutto | S5: ----------------Resultatpoeng hvis mer enn 5 renn---------------- | AB5: Plass | AC5: Res. | AD5: Del. | AE5: Tot. | AG5: Plass | AH5: Res. | AI5: Del. | AJ5: Tot. | AL5: Plass | AM5: Res. | AN5: Del. | AO5: Tot. | AQ5: Plass | AR5: Res. | AS5: Del. | AT5: Tot. | AV5: Plass | AW5: Res. | AX5: Del. | AY5: Tot. | BA5: Plass | BB5: Res. | BC5: Del. | BD5: Tot. | BF5: Plass | BG5: Res. | BH5: Del. | BI5: Tot. | BK5: Plass | BL5: Res. | BM5: Del. | BN5: Tot. | BP5: Plass | BQ5: Poeng | BR5: 8 renn | BS5: 7 renn | BT5: 6 renn | BU5: 5 renn | BV5: 4 renn | BW5: 3 renn | BX5: 2 renn | BY5: kun 1 renn
A6: =IF(F6<F5,BP6,A5) -> 1 | B6: 1 | C6: Istad | D6: Ulrik | E6: Ljan | F6: =IF(G6<=6,R6,(R6-SUM(SMALL(S6:Z6,{1;2;3})))) -> 535 | G6: =(IF(AD6=5,1,0)+IF(AI6=5,1,0)+IF(AS6=5,1,0)+IF(AX6=5,1,0)+IF(BC6=5,1,0)+IF(AN6=5,1,0)+IF(BH6=5,1,0)+IF(BM6=5,1,0)) -> 7 | I6: =IF(AB6="","",AB6) -> 1 | J6: =IF(AG6="","",AG6) -> 1 | K6: =IF(AQ6="","",AQ6) ->  | L6: =IF(AV6="","",AV6) -> 1 | M6: =IF(BA6="","",BA6) -> 1 | N6: =IF(AL6="","",AL6) -> 1 | O6: =IF(BF6="","",BF6) -> 1 | P6: =IF(BK6="","",BK6) -> 1 | R6: =AE6+AJ6+AT6+AY6+BD6+AO6+BI6+BN6 -> 735 | S6: =IF($G6>=5,IF(AC6="","",AC6),"") -> 100 | T6: =IF($G6>=5,IF(AH6="","",AH6),"") -> 100 | U6: =IF($G6>=5,IF(AR6="","",AR6),"") -> 0 | V6: =IF($G6>=5,IF(AW6="","",AW6),"") -> 100 | W6: =IF($G6>=5,IF(BB6="","",BB6),"") -> 100 | X6: =IF($G6>=5,IF(AM6="","",AM6),"") -> 100 | Y6: =IF($G6>=5,IF(BG6="","",BG6),"") -> 100 | Z6: =IF($G6>=5,IF(BL6="","",BL6),"") -> 100 | AB6: 1 | AC6: =IF(ISNUMBER(AB6),(VLOOKUP(AB6,$BP$6:$BQ$50,2)),0) -> 100 | AD6: =IF(AB6<>"",5,0) -> 5 | AE6: =AC6+AD6 -> 105 | AG6: 1 | AH6: =IF(ISNUMBER(AG6),(VLOOKUP(AG6,$BP$6:$BQ$50,2)),0) -> 100 | AI6: =IF(AG6<>"",5,0) -> 5 | AJ6: =AH6+AI6 -> 105 | AL6: 1 | AM6: =IF(ISNUMBER(AL6),(VLOOKUP(AL6,$BP$6:$BQ$50,2)),0) -> 100 | AN6: =IF(AL6<>"",5,0) -> 5 | AO6: =AM6+AN6 -> 105 | AR6: =IF(ISNUMBER(AQ6),(VLOOKUP(AQ6,$BP$6:$BQ$50,2)),0) -> 0 | AS6: =IF(AQ6<>"",5,0) -> 0 | AT6: =AR6+AS6 -> 0 | AV6: 1 | AW6: =IF(ISNUMBER(AV6),(VLOOKUP(AV6,$BP$6:$BQ$50,2)),0) -> 100 | AX6: =IF(AV6<>"",5,0) -> 5 | AY6: =AW6+AX6 -> 105 | BA6: 1 | BB6: =IF(ISNUMBER(BA6),(VLOOKUP(BA6,$BP$6:$BQ$50,2)),0) -> 100 | BC6: =IF(BA6<>"",5,0) -> 5 | BD6: =BB6+BC6 -> 105 | BF6: 1 | BG6: =IF(ISNUMBER(BF6),(VLOOKUP(BF6,$BP$6:$BQ$50,2)),0) -> 100 | BH6: =IF(BF6<>"",5,0) -> 5 | BI6: =BG6+BH6 -> 105 | BK6: 1 | BL6: =IF(ISNUMBER(BK6),(VLOOKUP(BK6,$BP$6:$BQ$50,2)),0) -> 100 | BM6: =IF(BK6<>"",5,0) -> 5 | BN6: =BL6+BM6 -> 105 | BP6: 1 | BQ6: 100 | BR6: =IF($G6=8,1,0) -> 0 | BS6: =IF($G6=7,1,0) -> 1 | BT6: =IF($G6=6,1,0) -> 0 | BU6: =IF($G6=5,1,0) -> 0 | BV6: =IF($G6=4,1,0) -> 0 | BW6: =IF($G6=3,1,0) -> 0 | BX6: =IF($G6=2,1,0) -> 0 | BY6: =IF($G6=1,1,0) -> 0
A7: 2 | B7: 2 | C7: Sande | D7: Sivert | E7: Kjelsås | F7: =IF(G7<=6,R7,(R7-SUM(SMALL(S7:Z7,{1;2;3})))) -> 395 | G7: 7 | I7: 5 | J7: 3 | L7: 13 | M7: 3 | N7: 2 | O7: 2 | P7: 2 | R7: 460 | S7: =IF($G7>=5,IF(AC7="","",AC7),"") -> 45 | T7: =IF($G7>=5,IF(AH7="","",AH7),"") -> 60 | U7: =IF($G7>=5,IF(AR7="","",AR7),"") -> 0 | V7: =IF($G7>=5,IF(AW7="","",AW7),"") -> 20 | W7: =IF($G7>=5,IF(BB7="","",BB7),"") -> 60 | X7: =IF($G7>=5,IF(AM7="","",AM7),"") -> 80 | Y7: =IF($G7>=5,IF(BG7="","",BG7),"") -> 80 | Z7: =IF($G7>=5,IF(BL7="","",BL7),"") -> 80 | AB7: 5 | AC7: 45 | AD7: 5 | AE7: 50 | AG7: 3 | AH7: 60 | AI7: 5 | AJ7: 65 | AL7: 2 | AM7: 80 | AN7: 5 | AO7: 85 | AR7: 0 | AS7: 0 | AT7: 0 | AV7: 13 | AW7: 20 | AX7: 5 | AY7: 25 | BA7: 3 | BB7: 60 | BC7: 5 | BD7: 65 | BF7: 2 | BG7: 80 | BH7: 5 | BI7: 85 | BK7: 2 | BL7: 80 | BM7: 5 | BN7: 85 | BP7: 2 | BQ7: 80 | BR7: =IF($G7=8,1,0) -> 0 | BS7: 1 | BT7: 0 | BU7: 0 | BV7: 0 | BW7: 0 | BX7: 0 | BY7: 0
A8: 3 | B8: 3 | C8: Søyland | D8: Sebastian | E8: Ready | F8: =IF(G8<=6,R8,(R8-SUM(SMALL(S8:Z8,{1;2;3})))) -> 305 | G8: 7 | I8: 3 | J8: DSQ | L8: 4 | M8: 7 | N8: 4 | O8: 3 | P8: 4 | R8: 341 | S8: 60 | T8: 0 | U8: 0 | V8: 50 | W8: 36 | X8: 50 | Y8: 60 | Z8: 50 | AB8: 3 | AC8: 60 | AD8: 5 | AE8: 65 | AG8: DSQ | AH8: 0 | AI8: 5 | AJ8: 5 | AL8: 4 | AM8: 50 | AN8: 5 | AO8: 55 | AR8: 0 | AS8: 0 | AT8: 0 | AV8: 4 | AW8: 50 | AX8: 5 | AY8: 55 | BA8: 7 | BB8: 36 | BC8: 5 | BD8: 41 | BF8: 3 | BG8: 60 | BH8: 5 | BI8: 65 | BK8: 4 | BL8: 50 | BM8: 5 | BN8: 55 | BP8: 3 | BQ8: 60 | BR8: 0 | BS8: 1 | BT8: 0 | BU8: 0 | BV8: 0 | BW8: 0 | BX8: 0 | BY8: 0
A9: 3 | C9: Rødvik | D9: Jonas | E9: Heming | F9: =IF(G9<=6,R9,(R9-SUM(SMALL(S9:Z9,{1;2})))) -> 320 | G9: 4 | I9: 2 | J9: 2 | L9: 3 | M9: 2 | R9: 320 | AB9: 2 | AC9: 80 | AD9: 5 | AE9: 85 | AG9: 2 | AH9: 80 | AI9: 5 | AJ9: 85 | AM9: 0 | AN9: 0 | AO9: 0 | AR9: 0 | AS9: 0 | AT9: 0 | AV9: 3 | AW9: 60 | AX9: 5 | AY9: 65 | BA9: 2 | BB9: 80 | BC9: 5 | BD9: 85 | BG9: 0 | BH9: 0 | BI9: 0 | BL9: 0 | BM9: 0 | BN9: 0 | BP9: 4 | BQ9: 50 | BR9: 0 | BS9: 0 | BT9: 0 | BU9: 0 | BV9: 1 | BW9: 0 | BX9: 0 | BY9: 0
A10: 5 | B10: 4 | C10: Moe | D10: Oliver | E10: Njård | F10: =IF(G10<=6,R10,(R10-SUM(SMALL(S10:Z10,{1;2;3})))) -> 295 | G10: 7 | I10: DNF | J10: DSQ | L10: 6 | M10: 4 | N10: 3 | O10: 4 | P10: 3 | R10: 295 | S10: 0 | T10: 0 | U10: 0 | V10: 40 | W10: 50 | X10: 60 | Y10: 50 | Z10: 60 | AB10: DNF | AC10: 0 | AD10: 5 | AE10: 5 | AG10: DSQ | AH10: 0 | AI10: 5 | AJ10: 5 | AL10: 3 | AM10: 60 | AN10: 5 | AO10: 65 | AR10: 0 | AS10: 0 | AT10: 0 | AV10: 6 | AW10: 40 | AX10: 5 | AY10: 45 | BA10: 4 | BB10: 50 | BC10: 5 | BD10: 55 | BF10: 4 | BG10: 50 | BH10: 5 | BI10: 55 | BK10: 3 | BL10: 60 | BM10: 5 | BN10: 65 | BP10: 5 | BQ10: 45 | BR10: 0 | BS10: 1 | BT10: 0 | BU10: 0 | BV10: 0 | BW10: 0 | BX10: 0 | BY10: 0
A11: 6 | B11: 5 | C11: Øslebø | D11: Erik | E11: Ready | F11: =IF(G11<=6,R11,(R11-SUM(SMALL(S11:Z11,{1;2;3})))) -> 230 | G11: 7 | I11: DSQ | J11: DSQ | L11: 5 | M11: 5 | N11: 16 | O11: 5 | P11: 5 | R11: 230 | S11: 0 | T11: 0 | U11: 0 | V11: 45 | W11: 45 | X11: 15 | Y11: 45 | Z11: 45 | AB11: DSQ | AC11: 0 | AD11: 5 | AE11: 5 | AG11: DSQ | AH11: 0 | AI11: 5 | AJ11: 5 | AL11: 16 | AM11: 15 | AN11: 5 | AO11: 20 | AR11: 0 | AS11: 0 | AT11: 0 | AV11: 5 | AW11: 45 | AX11: 5 | AY11: 50 | BA11: 5 | BB11: 45 | BC11: 5 | BD11: 50 | BF11: 5 | BG11: 45 | BH11: 5 | BI11: 50 | BK11: 5 | BL11: 45 | BM11: 5 | BN11: 50 | BP11: 6 | BQ11: 40 | BR11: 0 | BS11: 1 | BT11: 0 | BU11: 0 | BV11: 0 | BW11: 0 | BX11: 0 | BY11: 0
A12: 7 | B12: 6 | C12: Haukenes | D12: Per Christian | E12: Njård | F12: =IF(G12<=6,R12,(R12-SUM(SMALL(S12:Z12,{1;2;3})))) -> 189 | G12: 5 | L12: 7 | M12: 15 | N12: 6 | O12: 7 | P12: 7 | R12: 189 | S12: 0 | T12: 0 | U12: 0 | V12: 36 | W12: 16 | X12: 40 | Y12: 36 | Z12: 36 | AC12: 0 | AD12: 0 | AE12: 0 | AH12: 0 | AI12: 0 | AJ12: 0 | AL12: 6 | AM12: 40 | AN12: 5 | AO12: 45 | AR12: 0 | AS12: 0 | AT12: 0 | AV12: 7 | AW12: 36 | AX12: 5 | AY12: 41 | BA12: 15 | BB12: 16 | BC12: 5 | BD12: 21 | BF12: 7 | BG12: 36 | BH12: 5 | BI12: 41 | BK12: 7 | BL12: 36 | BM12: 5 | BN12: 41 | BP12: 7 | BQ12: 36 | BR12: 0 | BS12: 0 | BT12: 0 | BU12: 1 | BV12: 0 | BW12: 0 | BX12: 0 | BY12: 0
A13: 8 | B13: 7 | C13: Aasen | D13: Aleksander | E13: Ingierkollen Rustad | F13: =IF(G13<=6,R13,(R13-SUM(SMALL(S13:Z13,{1;2;3})))) -> 174 | G13: 7 | I13: 7 | J13: 5 | L13: DNS | M13: DNS | N13: 9 | O13: DSQ | P13: 9 | R13: 174 | S13: 36 | T13: 45 | U13: 0 | V13: 0 | W13: 0 | X13: 29 | Y13: 0 | Z13: 29 | AB13: 7 | AC13: 36 | AD13: 5 | AE13: 41 | AG13: 5 | AH13: 45 | AI13: 5 | AJ13: 50 | AL13: 9 | AM13: 29 | AN13: 5 | AO13: 34 | AR13: 0 | AS13: 0 | AT13: 0 | AV13: DNS | AW13: 0 | AX13: 5 | AY13: 5 | BA13: DNS | BB13: 0 | BC13: 5 | BD13: 5 | BF13: DSQ | BG13: 0 | BH13: 5 | BI13: 5 | BK13: 9 | BL13: 29 | BM13: 5 | BN13: 34 | BP13: 8 | BQ13: 32 | BR13: 0 | BS13: 1 | BT13: 0 | BU13: 0 | BV13: 0 | BW13: 0 | BX13: 0 | BY13: 0
A14: 9 | B14: 8 | C14: Østerud | D14: Oskar | E14: Njård | F14: =IF(G14<=6,R14,(R14-SUM(SMALL(S14:Z14,{1;2;3})))) -> 161 | G14: 6 | I14: DSQ | J14: 8 | L14: 14 | M14: 19 | O14: 9 | P14: 6 | R14: 161 | S14: 0 | T14: 32 | U14: 0 | V14: 18 | W14: 12 | X14: 0 | Y14: 29 | Z14: 40 | AB14: DSQ | AC14: 0 | AD14: 5 | AE14: 5 | AG14: 8 | AH14: 32 | AI14: 5 | AJ14: 37 | AM14: 0 | AN14: 0 | AO14: 0 | AR14: 0 | AS14: 0 | AT14: 0 | AV14: 14 | AW14: 18 | AX14: 5 | AY14: 23 | BA14: 19 | BB14: 12 | BC14: 5 | BD14: 17 | BF14: 9 | BG14: 29 | BH14: 5 | BI14: 34 | BK14: 6 | BL14: 40 | BM14: 5 | BN14: 45 | BP14: 9 | BQ14: 29 | BR14: 0 | BS14: 0 | BT14: 1 | BU14: 0 | BV14: 0 | BW14: 0 | BX14: 0 | BY14: 0
A15: 10 | B15: 9 | C15: Hagfors | D15: Viktor | E15: Ready | F15: =IF(G15<=6,R15,(R15-SUM(SMALL(S15:Z15,{1;2;3})))) -> 156 | G15: 6 | J15: DSQ | L15: 12 | M15: 25 | N15: 6 | O15: 6 | P15: 14 | R15: 156 | S15: 0 | T15: 0 | U15: 0 | V15: 22 | W15: 6 | X15: 40 | Y15: 40 | Z15: 18 | AC15: 0 | AD15: 0 | AE15: 0 | AG15: DSQ | AH15: 0 | AI15: 5 | AJ15: 5 | AL15: 6 | AM15: 40 | AN15: 5 | AO15: 45 | AR15: 0 | AS15: 0 | AT15: 0 | AV15: 12 | AW15: 22 | AX15: 5 | AY15: 27 | BA15: 25 | BB15: 6 | BC15: 5 | BD15: 11 | BF15: 6 | BG15: 40 | BH15: 5 | BI15: 45 | BK15: 14 | BL15: 18 | BM15: 5 | BN15: 23 | BP15: 10 | BQ15: 26 | BR15: 0 | BS15: 0 | BT15: 1 | BU15: 0 | BV15: 0 | BW15: 0 | BX15: 0 | BY15: 0
A16: 11 | B16: 10 | C16: Hagen-Småstu | D16: Haakon | E16: Kjelsås | F16: =IF(G16<=6,R16,(R16-SUM(SMALL(S16:Z16,{1;2;3})))) -> 151 | G16: 6 | J16: 9 | L16: 16 | M16: 20 | N16: 12 | O16: 12 | P16: 12 | R16: 151 | S16: 0 | T16: 29 | U16: 0 | V16: 15 | W16: 11 | X16: 22 | Y16: 22 | Z16: 22 | AC16: 0 | AD16: 0 | AE16: 0 | AG16: 9 | AH16: 29 | AI16: 5 | AJ16: 34 | AL16: 12 | AM16: 22 | AN16: 5 | AO16: 27 | AR16: 0 | AS16: 0 | AT16: 0 | AV16: 16 | AW16: 15 | AX16: 5 | AY16: 20 | BA16: 20 | BB16: 11 | BC16: 5 | BD16: 16 | BF16: 12 | BG16: 22 | BH16: 5 | BI16: 27 | BK16: 12 | BL16: 22 | BM16: 5 | BN16: 27 | BP16: 11 | BQ16: 24 | BR16: 0 | BS16: 0 | BT16: 1 | BU16: 0 | BV16: 0 | BW16: 0 | BX16: 0 | BY16: 0
A17: 12 | B17: 11 | C17: Andresen | D17: Nicolai Andres | E17: Heming | F17: =IF(G17<=6,R17,(R17-SUM(SMALL(S17:Z17,{1;2;3})))) -> 141 | G17: 5 | I17: 6 | J17: 4 | M17: 10 | O17: dns | P17: DNS | R17: 141 | S17: 40 | T17: 50 | U17: 0 | V17: 0 | W17: 26 | X17: 0 | Y17: 0 | Z17: 0 | AB17: 6 | AC17: 40 | AD17: 5 | AE17: 45 | AG17: 4 | AH17: 50 | AI17: 5 | AJ17: 55 | AM17: 0 | AN17: 0 | AO17: 0 | AR17: 0 | AS17: 0 | AT17: 0 | AW17: 0 | AX17: 0 | AY17: 0 | BA17: 10 | BB17: 26 | BC17: 5 | BD17: 31 | BF17: dns | BG17: 0 | BH17: 5 | BI17: 5 | BK17: DNS | BL17: 0 | BM17: 5 | BN17: 5 | BP17: 12 | BQ17: 22 | BR17: 0 | BS17: 0 | BT17: 0 | BU17: 1 | BV17: 0 | BW17: 0 | BX17: 0 | BY17: 0
A18: 13 | B18: 12 | C18: Bjørnestad | D18: Alexander | E18: Ready | F18: =IF(G18<=6,R18,(R18-SUM(SMALL(S18:Z18,{1;2;3})))) -> 125 | G18: 7 | I18: DSQ | J18: DSQ | L18: 8 | M18: DNF | N18: DSQ | O18: 10 | P18: 8 | R18: 125 | S18: 0 | T18: 0 | U18: 0 | V18: 32 | W18: 0 | X18: 0 | Y18: 26 | Z18: 32 | AB18: DSQ | AC18: 0 | AD18: 5 | AE18: 5 | AG18: DSQ | AH18: 0 | AI18: 5 | AJ18: 5 | AL18: DSQ | AM18: 0 | AN18: 5 | AO18: 5 | AR18: 0 | AS18: 0 | AT18: 0 | AV18: 8 | AW18: 32 | AX18: 5 | AY18: 37 | BA18: DNF | BB18: 0 | BC18: 5 | BD18: 5 | BF18: 10 | BG18: 26 | BH18: 5 | BI18: 31 | BK18: 8 | BL18: 32 | BM18: 5 | BN18: 37 | BP18: 13 | BQ18: 20 | BR18: 0 | BS18: 1 | BT18: 0 | BU18: 0 | BV18: 0 | BW18: 0 | BX18: 0 | BY18: 0
A19: 14 | C19: Tranby-Arnesen | D19: Nikolas | E19: Heming | F19: =IF(G19<=6,R19,(R19-SUM(SMALL(S19:Z19,{1;2})))) -> 110 | G19: 4 | I19: 4 | L19: DNS | M19: 6 | N19: DNS | R19: 110 | AB19: 4 | AC19: 50 | AD19: 5 | AE19: 55 | AH19: 0 | AI19: 0 | AJ19: 0 | AL19: DNS | AM19: 0 | AN19: 5 | AO19: 5 | AR19: 0 | AS19: 0 | AT19: 0 | AV19: DNS | AW19: 0 | AX19: 5 | AY19: 5 | BA19: 6 | BB19: 40 | BC19: 5 | BD19: 45 | BG19: 0 | BH19: 0 | BI19: 0 | BL19: 0 | BM19: 0 | BN19: 0 | BP19: 14 | BQ19: 18 | BR19: 0 | BS19: 0 | BT19: 0 | BU19: 0 | BV19: 1 | BW19: 0 | BX19: 0 | BY19: 0
A20: 15 | B20: 13 | C20: Bang-Hansen | D20: Jens Christian | E20: Heming | F20: =IF(G20<=6,R20,(R20-SUM(SMALL(S20:Z20,{1;2;3})))) -> 102 | G20: 5 | L20: 9 | M20: 11 | N20: 11 | O20: DNS | P20: DNS | R20: 102 | S20: 0 | T20: 0 | U20: 0 | V20: 29 | W20: 24 | X20: 24 | Y20: 0 | Z20: 0 | AC20: 0 | AD20: 0 | AE20: 0 | AH20: 0 | AI20: 0 | AJ20: 0 | AL20: 11 | AM20: 24 | AN20: 5 | AO20: 29 | AR20: 0 | AS20: 0 | AT20: 0 | AV20: 9 | AW20: 29 | AX20: 5 | AY20: 34 | BA20: 11 | BB20: 24 | BC20: 5 | BD20: 29 | BF20: DNS | BG20: 0 | BH20: 5 | BI20: 5 | BK20: DNS | BL20: 0 | BM20: 5 | BN20: 5 | BP20: 15 | BQ20: 16 | BR20: 0 | BS20: 0 | BT20: 0 | BU20: 1 | BV20: 0 | BW20: 0 | BX20: 0 | BY20: 0
A21: 16 | C21: Bakkevig | D21: Karl-Erik | E21: Heming | F21: =IF(G21<=6,R21,(R21-SUM(SMALL(S21:Z21,{1;2})))) -> 90 | G21: 2 | L21: 2 | M21: DNF | R21: 90 | AC21: 0 | AD21: 0 | AE21: 0 | AH21: 0 | AI21: 0 | AJ21: 0 | AM21: 0 | AN21: 0 | AO21: 0 | AR21: 0 | AS21: 0 | AT21: 0 | AV21: 2 | AW21: 80 | AX21: 5 | AY21: 85 | BA21: DNF | BB21: 0 | BC21: 5 | BD21: 5 | BG21: 0 | BH21: 0 | BI21: 0 | BL21: 0 | BM21: 0 | BN21: 0 | BP21: 16 | BQ21: 15 | BR21: 0 | BS21: 0 | BT21: 0 | BU21: 0 | BV21: 0 | BW21: 0 | BX21: 1 | BY21: 0
A22: 17 | C22: Henschien | D22: Scott | E22: Heming | F22: =IF(G22<=6,R22,(R22-SUM(SMALL(S22:Z22,{1;2})))) -> 78 | G22: 3 | J22: DNS | M22: 14 | N22: 5 | R22: 78 | AC22: 0 | AD22: 0 | AE22: 0 | AG22: DNS | AH22: 0 | AI22: 5 | AJ22: 5 | AL22: 5 | AM22: 45 | AN22: 5 | AO22: 50 | AR22: 0 | AS22: 0 | AT22: 0 | AW22: 0 | AX22: 0 | AY22: 0 | BA22: 14 | BB22: 18 | BC22: 5 | BD22: 23 | BG22: 0 | BH22: 0 | BI22: 0 | BL22: 0 | BM22: 0 | BN22: 0 | BP22: 17 | BQ22: 14 | BR22: 0 | BS22: 0 | BT22: 0 | BU22: 0 | BV22: 0 | BW22: 1 | BX22: 0 | BY22: 0
A23: 18 | C23: Lunder | D23: Daniel | E23: Njård | F23: =IF(G23<=6,R23,(R23-SUM(SMALL(S23:Z23,{1;2})))) -> 72 | G23: 4 | I23: DSQ | J23: DSQ | L23: 10 | P23: 10 | R23: 72 | AB23: DSQ | AC23: 0 | AD23: 5 | AE23: 5 | AG23: DSQ | AH23: 0 | AI23: 5 | AJ23: 5 | AM23: 0 | AN23: 0 | AO23: 0 | AR23: 0 | AS23: 0 | AT23: 0 | AV23: 10 | AW23: 26 | AX23: 5 | AY23: 31 | BB23: 0 | BC23: 0 | BD23: 0 | BG23: 0 | BH23: 0 | BI23: 0 | BK23: 10 | BL23: 26 | BM23: 5 | BN23: 31 | BP23: 18 | BQ23: 13 | BR23: 0 | BS23: 0 | BT23: 0 | BU23: 0 | BV23: 1 | BW23: 0 | BX23: 0 | BY23: 0
A24: 19 | C24: Furuseth | D24: Martin | E24: Kjelsås | F24: =IF(G24<=6,R24,(R24-SUM(SMALL(S24:Z24,{1;2})))) -> 70 | G24: 4 | M24: DNS | N24: 10 | O24: 11 | P24: DNS | R24: 70 | AC24: 0 | AD24: 0 | AE24: 0 | AH24: 0 | AI24: 0 | AJ24: 0 | AL24: 10 | AM24: 26 | AN24: 5 | AO24: 31 | AR24: 0 | AS24: 0 | AT24: 0 | AW24: 0 | AX24: 0 | AY24: 0 | BA24: DNS | BB24: 0 | BC24: 5 | BD24: 5 | BF24: 11 | BG24: 24 | BH24: 5 | BI24: 29 | BK24: DNS | BL24: 0 | BM24: 5 | BN24: 5 | BP24: 19 | BQ24: 12 | BR24: 0 | BS24: 0 | BT24: 0 | BU24: 0 | BV24: 1 | BW24: 0 | BX24: 0 | BY24: 0
A25: 20 | C25: Jürgensen | D25: Oliver | E25: Ready | F25: =IF(G25<=6,R25,(R25-SUM(SMALL(S25:Z25,{1;2})))) -> 62 | G25: 3 | I25: 8 | M25: 16 | N25: DNS | R25: 62 | AB25: 8 | AC25: 32 | AD25: 5 | AE25: 37 | AH25: 0 | AI25: 0 | AJ25: 0 | AL25: DNS | AM25: 0 | AN25: 5 | AO25: 5 | AR25: 0 | AS25: 0 | AT25: 0 | AW25: 0 | AX25: 0 | AY25: 0 | BA25: 16 | BB25: 15 | BC25: 5 | BD25: 20 | BG25: 0 | BH25: 0 | BI25: 0 | BL25: 0 | BM25: 0 | BN25: 0 | BP25: 20 | BQ25: 11 | BR25: 0 | BS25: 0 | BT25: 0 | BU25: 0 | BV25: 0 | BW25: 1 | BX25: 0 | BY25: 0
A26: 21 | C26: Enoksen | D26: Håkon | E26: Ingierkollen Rustad | F26: =IF(G26<=6,R26,(R26-SUM(SMALL(S26:Z26,{1;2})))) -> 60 | G26: 3 | M26: 18 | O26: 8 | P26: DSQ | R26: 60 | AC26: 0 | AD26: 0 | AE26: 0 | AH26: 0 | AI26: 0 | AJ26: 0 | AM26: 0 | AN26: 0 | AO26: 0 | AR26: 0 | AS26: 0 | AT26: 0 | AW26: 0 | AX26: 0 | AY26: 0 | BA26: 18 | BB26: 13 | BC26: 5 | BD26: 18 | BF26: 8 | BG26: 32 | BH26: 5 | BI26: 37 | BK26: DSQ | BL26: 0 | BM26: 5 | BN26: 5 | BP26: 21 | BQ26: 10 | BR26: 0 | BS26: 0 | BT26: 0 | BU26: 0 | BV26: 0 | BW26: 1 | BX26: 0 | BY26: 0
A27: 21 | C27: Olsson | D27: Nicolai | E27: Heming | F27: =IF(G27<=6,R27,(R27-SUM(SMALL(S27:Z27,{1;2})))) -> 60 | G27: 2 | J27: 6 | M27: 21 | R27: 60 | AC27: 0 | AD27: 0 | AE27: 0 | AG27: 6 | AH27: 40 | AI27: 5 | AJ27: 45 | AM27: 0 | AN27: 0 | AO27: 0 | AR27: 0 | AS27: 0 | AT27: 0 | AW27: 0 | AX27: 0 | AY27: 0 | BA27: 21 | BB27: 10 | BC27: 5 | BD27: 15 | BG27: 0 | BH27: 0 | BI27: 0 | BL27: 0 | BM27: 0 | BN27: 0 | BP27: 22 | BQ27: 9 | BR27: 0 | BS27: 0 | BT27: 0 | BU27: 0 | BV27: 0 | BW27: 0 | BX27: 1 | BY27: 0
A28: 23 | C28: Gundersen | D28: Kristian | E28: Njård | F28: =IF(G28<=6,R28,(R28-SUM(SMALL(S28:Z28,{1;2})))) -> 58 | G28: 4 | L28: 11 | M28: 17 | O28: DNS | P28: DNS | R28: 58 | AC28: 0 | AD28: 0 | AE28: 0 | AH28: 0 | AI28: 0 | AJ28: 0 | AM28: 0 | AN28: 0 | AO28: 0 | AR28: 0 | AS28: 0 | AT28: 0 | AV28: 11 | AW28: 24 | AX28: 5 | AY28: 29 | BA28: 17 | BB28: 14 | BC28: 5 | BD28: 19 | BF28: DNS | BG28: 0 | BH28: 5 | BI28: 5 | BK28: DNS | BL28: 0 | BM28: 5 | BN28: 5 | BP28: 23 | BQ28: 8 | BR28: 0 | BS28: 0 | BT28: 0 | BU28: 0 | BV28: 1 | BW28: 0 | BX28: 0 | BY28: 0
A29: 23 | C29: Welin | D29: Jon Ferdinand | E29: Heming | F29: =IF(G29<=6,R29,(R29-SUM(SMALL(S29:Z29,{1;2})))) -> 58 | G29: 3 | I29: DSQ | J29: 7 | M29: 24 | R29: 58 | AB29: DSQ | AC29: 0 | AD29: 5 | AE29: 5 | AG29: 7 | AH29: 36 | AI29: 5 | AJ29: 41 | AM29: 0 | AN29: 0 | AO29: 0 | AR29: 0 | AS29: 0 | AT29: 0 | AW29: 0 | AX29: 0 | AY29: 0 | BA29: 24 | BB29: 7 | BC29: 5 | BD29: 12 | BG29: 0 | BH29: 0 | BI29: 0 | BL29: 0 | BM29: 0 | BN29: 0 | BP29: 24 | BQ29: 7 | BR29: 0 | BS29: 0 | BT29: 0 | BU29: 0 | BV29: 0 | BW29: 1 | BX29: 0 | BY29: 0
A30: 25 | C30: Gilhuus-Moe | D30: Leopold | E30: Ready | F30: =IF(G30<=6,R30,(R30-SUM(SMALL(S30:Z30,{1;2})))) -> 54 | G30: 4 | I30: DSQ | J30: DNS | M30: 29 | N30: 8 | R30: 54 | AB30: DSQ | AC30: 0 | AD30: 5 | AE30: 5 | AG30: DNS | AH30: 0 | AI30: 5 | AJ30: 5 | AL30: 8 | AM30: 32 | AN30: 5 | AO30: 37 | AR30: 0 | AS30: 0 | AT30: 0 | AW30: 0 | AX30: 0 | AY30: 0 | BA30: 29 | BB30: 2 | BC30: 5 | BD30: 7 | BG30: 0 | BH30: 0 | BI30: 0 | BL30: 0 | BM30: 0 | BN30: 0 | BP30: 25 | BQ30: 6 | BR30: 0 | BS30: 0 | BT30: 0 | BU30: 0 | BV30: 1 | BW30: 0 | BX30: 0 | BY30: 0
A31: 25 | B31: 14 | C31: Aandal | D31: Andreas | E31: Ready | F31: =IF(G31<=6,R31,(R31-SUM(SMALL(S31:Z31,{1;2;3})))) -> 54 | G31: 5 | L31: DNS | M31: 22 | N31: DNS | O31: DNS | P31: 13 | R31: 54 | S31: 0 | T31: 0 | U31: 0 | V31: 0 | W31: 9 | X31: 0 | Y31: 0 | Z31: 20 | AC31: 0 | AD31: 0 | AE31: 0 | AH31: 0 | AI31: 0 | AJ31: 0 | AL31: DNS | AM31: 0 | AN31: 5 | AO31: 5 | AR31: 0 | AS31: 0 | AT31: 0 | AV31: DNS | AW31: 0 | AX31: 5 | AY31: 5 | BA31: 22 | BB31: 9 | BC31: 5 | BD31: 14 | BF31: DNS | BG31: 0 | BH31: 5 | BI31: 5 | BK31: 13 | BL31: 20 | BM31: 5 | BN31: 25 | BP31: 26 | BQ31: 5 | BR31: 0 | BS31: 0 | BT31: 0 | BU31: 1 | BV31: 0 | BW31: 0 | BX31: 0 | BY31: 0
A32: 27 | C32: Hommefoss | D32: Ole-Andre | E32: Njård | F32: =IF(G32<=6,R32,(R32-SUM(SMALL(S32:Z32,{1;2})))) -> 52 | G32: 4 | L32: DNS | M32: 23 | O32: dsq | P32: 11 | R32: 52 | AC32: 0 | AD32: 0 | AE32: 0 | AH32: 0 | AI32: 0 | AJ32: 0 | AM32: 0 | AN32: 0 | AO32: 0 | AR32: 0 | AS32: 0 | AT32: 0 | AV32: DNS | AW32: 0 | AX32: 5 | AY32: 5 | BA32: 23 | BB32: 8 | BC32: 5 | BD32: 13 | BF32: dsq | BG32: 0 | BH32: 5 | BI32: 5 | BK32: 11 | BL32: 24 | BM32: 5 | BN32: 29 | BP32: 27 | BQ32: 4 | BR32: 0 | BS32: 0 | BT32: 0 | BU32: 0 | BV32: 1 | BW32: 0 | BX32: 0 | BY32: 0
A33: 28 | C33: Cock | D33: Scott | E33: Heming | F33: =IF(G33<=6,R33,(R33-SUM(SMALL(S33:Z33,{1;2})))) -> 51 | G33: 3 | J33: DNS | L33: 17 | M33: 12 | R33: 51 | AC33: 0 | AD33: 0 | AE33: 0 | AG33: DNS | AH33: 0 | AI33: 5 | AJ33: 5 | AM33: 0 | AN33: 0 | AO33: 0 | AR33: 0 | AS33: 0 | AT33: 0 | AV33: 17 | AW33: 14 | AX33: 5 | AY33: 19 | BA33: 12 | BB33: 22 | BC33: 5 | BD33: 27 | BG33: 0 | BH33: 0 | BI33: 0 | BL33: 0 | BM33: 0 | BN33: 0 | BP33: 28 | BQ33: 3 | BR33: 0 | BS33: 0 | BT33: 0 | BU33: 0 | BV33: 0 | BW33: 1 | BX33: 0 | BY33: 0
A34: 29 | C34: Nilsen | D34: Axel Henrik | E34: Kjelsås | F34: =IF(G34<=6,R34,(R34-SUM(SMALL(S34:Z34,{1;2})))) -> 50 | G34: 3 | N34: 16 | O34: 13 | P34: DNS | R34: 50 | AC34: 0 | AD34: 0 | AE34: 0 | AH34: 0 | AI34: 0 | AJ34: 0 | AL34: 16 | AM34: 15 | AN34: 5 | AO34: 20 | AR34: 0 | AS34: 0 | AT34: 0 | AW34: 0 | AX34: 0 | AY34: 0 | BB34: 0 | BC34: 0 | BD34: 0 | BF34: 13 | BG34: 20 | BH34: 5 | BI34: 25 | BK34: DNS | BL34: 0 | BM34: 5 | BN34: 5 | BP34: 29 | BQ34: 2 | BR34: 0 | BS34: 0 | BT34: 0 | BU34: 0 | BV34: 0 | BW34: 1 | BX34: 0 | BY34: 0
A35: 30 | C35: Wroll-Evensen | D35: Nicolai | E35: Heming | F35: =IF(G35<=6,R35,(R35-SUM(SMALL(S35:Z35,{1;2})))) -> 49 | G35: 4 | I35: DNS | J35: DSQ | L35: DNS | M35: 9 | R35: 49 | AB35: DNS | AC35: 0 | AD35: 5 | AE35: 5 | AG35: DSQ | AH35: 0 | AI35: 5 | AJ35: 5 | AM35: 0 | AN35: 0 | AO35: 0 | AR35: 0 | AS35: 0 | AT35: 0 | AV35: DNS | AW35: 0 | AX35: 5 | AY35: 5 | BA35: 9 | BB35: 29 | BC35: 5 | BD35: 34 | BG35: 0 | BH35: 0 | BI35: 0 | BL35: 0 | BM35: 0 | BN35: 0 | BP35: 30 | BQ35: 1 | BR35: 0 | BS35: 0 | BT35: 0 | BU35: 0 | BV35: 1 | BW35: 0 | BX35: 0 | BY35: 0
A36: 31 | C36: Hagen | D36: Emil | E36: Ready | F36: =IF(G36<=6,R36,(R36-SUM(SMALL(S36:Z36,{1;2})))) -> 37 | G36: 1 | M36: 8 | R36: 37 | AC36: 0 | AD36: 0 | AE36: 0 | AH36: 0 | AI36: 0 | AJ36: 0 | AM36: 0 | AN36: 0 | AO36: 0 | AR36: 0 | AS36: 0 | AT36: 0 | AW36: 0 | AX36: 0 | AY36: 0 | BA36: 8 | BB36: 32 | BC36: 5 | BD36: 37 | BG36: 0 | BH36: 0 | BI36: 0 | BL36: 0 | BM36: 0 | BN36: 0 | BP36: 31 | BQ36: 0 | BR36: 0 | BS36: 0 | BT36: 0 | BU36: 0 | BV36: 0 | BW36: 0 | BX36: 0 | BY36: 1
A37: 32 | C37: Maribu | D37: Andreas | E37: Kjelsås | F37: =IF(G37<=6,R37,(R37-SUM(SMALL(S37:Z37,{1;2})))) -> 33 | G37: 3 | N37: 14 | O37: DNS | P37: DNS | R37: 33 | AC37: 0 | AD37: 0 | AE37: 0 | AH37: 0 | AI37: 0 | AJ37: 0 | AL37: 14 | AM37: 18 | AN37: 5 | AO37: 23 | AR37: 0 | AS37: 0 | AT37: 0 | AW37: 0 | AX37: 0 | AY37: 0 | BB37: 0 | BC37: 0 | BD37: 0 | BF37: DNS | BG37: 0 | BH37: 5 | BI37: 5 | BK37: DNS | BL37: 0 | BM37: 5 | BN37: 5 | BP37: 32 | BQ37: 0 | BR37: 0 | BS37: 0 | BT37: 0 | BU37: 0 | BV37: 0 | BW37: 1 | BX37: 0 | BY37: 0
A38: =IF(F38<F37,BP38,A37) -> 33 | C38: Gatty | D38: Paul Lennart | E38: Heming | F38: =IF(G38<=6,R38,(R38-SUM(SMALL(S38:Z38,{1;2})))) -> 29 | G38: =(IF(AD38=5,1,0)+IF(AI38=5,1,0)+IF(AS38=5,1,0)+IF(AX38=5,1,0)+IF(BC38=5,1,0)+IF(AN38=5,1,0)+IF(BH38=5,1,0)+IF(BM38=5,1,0)) -> 2 | M38: 28 | N38: 15 | R38: =AE38+AJ38+AT38+AY38+BD38+AO38+BI38+BN38 -> 29 | AC38: =IF(ISNUMBER(AB38),(VLOOKUP(AB38,$BP$6:$BQ$50,2)),0) -> 0 | AD38: =IF(AB38<>"",5,0) -> 0 | AE38: =AC38+AD38 -> 0 | AH38: =IF(ISNUMBER(AG38),(VLOOKUP(AG38,$BP$6:$BQ$50,2)),0) -> 0 | AI38: =IF(AG38<>"",5,0) -> 0 | AJ38: =AH38+AI38 -> 0 | AL38: 15 | AM38: =IF(ISNUMBER(AL38),(VLOOKUP(AL38,$BP$6:$BQ$50,2)),0) -> 16 | AN38: =IF(AL38<>"",5,0) -> 5 | AO38: =AM38+AN38 -> 21 | AR38: =IF(ISNUMBER(AQ38),(VLOOKUP(AQ38,$BP$6:$BQ$50,2)),0) -> 0 | AS38: =IF(AQ38<>"",5,0) -> 0 | AT38: =AR38+AS38 -> 0 | AW38: =IF(ISNUMBER(AV38),(VLOOKUP(AV38,$BP$6:$BQ$50,2)),0) -> 0 | AX38: =IF(AV38<>"",5,0) -> 0 | AY38: =AW38+AX38 -> 0 | BA38: 28 | BB38: =IF(ISNUMBER(BA38),(VLOOKUP(BA38,$BP$6:$BQ$50,2)),0) -> 3 | BC38: =IF(BA38<>"",5,0) -> 5 | BD38: =BB38+BC38 -> 8 | BG38: =IF(ISNUMBER(BF38),(VLOOKUP(BF38,$BP$6:$BQ$50,2)),0) -> 0 | BH38: =IF(BF38<>"",5,0) -> 0 | BI38: =BG38+BH38 -> 0 | BL38: =IF(ISNUMBER(BK38),(VLOOKUP(BK38,$BP$6:$BQ$50,2)),0) -> 0 | BM38: =IF(BK38<>"",5,0) -> 0 | BN38: =BL38+BM38 -> 0 | BP38: 33 | BQ38: 0 | BR38: 0 | BS38: 0 | BT38: 0 | BU38: 0 | BV38: 0 | BW38: 0 | BX38: 1 | BY38: 0
A39: 34 | C39: Heidenreich | D39: Petter Erik | E39: Ready | F39: =IF(G39<=6,R39,(R39-SUM(SMALL(S39:Z39,{1;2})))) -> 25 | G39: 1 | N39: 13 | R39: 25 | AC39: 0 | AD39: 0 | AE39: 0 | AH39: 0 | AI39: 0 | AJ39: 0 | AL39: 13 | AM39: 20 | AN39: 5 | AO39: 25 | AR39: 0 | AS39: 0 | AT39: 0 | AW39: 0 | AX39: 0 | AY39: 0 | BB39: 0 | BC39: 0 | BD39: 0 | BG39: 0 | BH39: 0 | BI39: 0 | BL39: 0 | BM39: 0 | BN39: 0 | BP39: 34 | BQ39: 0 | BR39: 0 | BS39: 0 | BT39: 0 | BU39: 0 | BV39: 0 | BW39: 0 | BX39: 0 | BY39: 1
A40: 34 | C40: Lødding | D40: Jonas | E40: Heming | F40: =IF(G40<=6,R40,(R40-SUM(SMALL(S40:Z40,{1;2})))) -> 25 | G40: 1 | M40: 13 | R40: 25 | AC40: 0 | AD40: 0 | AE40: 0 | AH40: 0 | AI40: 0 | AJ40: 0 | AM40: 0 | AN40: 0 | AO40: 0 | AR40: 0 | AS40: 0 | AT40: 0 | AW40: 0 | AX40: 0 | AY40: 0 | BA40: 13 | BB40: 20 | BC40: 5 | BD40: 25 | BG40: 0 | BH40: 0 | BI40: 0 | BL40: 0 | BM40: 0 | BN40: 0 | BP40: 35 | BQ40: 0 | BR40: 0 | BS40: 0 | BT40: 0 | BU40: 0 | BV40: 0 | BW40: 0 | BX40: 0 | BY40: 1
A41: 36 | C41: Lægreid | D41: Markus | E41: Ready | F41: =IF(G41<=6,R41,(R41-SUM(SMALL(S41:Z41,{1;2})))) -> 21 | G41: 1 | L41: 15 | R41: 21 | AC41: 0 | AD41: 0 | AE41: 0 | AH41: 0 | AI41: 0 | AJ41: 0 | AM41: 0 | AN41: 0 | AO41: 0 | AR41: 0 | AS41: 0 | AT41: 0 | AV41: 15 | AW41: 16 | AX41: 5 | AY41: 21 | BB41: 0 | BC41: 0 | BD41: 0 | BG41: 0 | BH41: 0 | BI41: 0 | BL41: 0 | BM41: 0 | BN41: 0 | BP41: 36 | BQ41: 0 | BR41: 0 | BS41: 0 | BT41: 0 | BU41: 0 | BV41: 0 | BW41: 0 | BX41: 0 | BY41: 1
A42: 37 | C42: Aamodt | D42: Philip Alexander | E42: Kjelsås | F42: =IF(G42<=6,R42,(R42-SUM(SMALL(S42:Z42,{1;2})))) -> 20 | G42: 4 | L42: DNS | M42: DNS | N42: DNS | P42: DNS | R42: 20 | AC42: 0 | AD42: 0 | AE42: 0 | AH42: 0 | AI42: 0 | AJ42: 0 | AL42: DNS | AM42: 0 | AN42: 5 | AO42: 5 | AR42: 0 | AS42: 0 | AT42: 0 | AV42: DNS | AW42: 0 | AX42: 5 | AY42: 5 | BA42: DNS | BB42: 0 | BC42: 5 | BD42: 5 | BG42: 0 | BH42: 0 | BI42: 0 | BK42: DNS | BL42: 0 | BM42: 5 | BN42: 5 | BP42: 37 | BQ42: 0 | BR42: 0 | BS42: 0 | BT42: 0 | BU42: 0 | BV42: 1 | BW42: 0 | BX42: 0 | BY42: 0
A43: 38 | C43: Haukeli | D43: Aksel | E43: Heming | F43: =IF(G43<=6,R43,(R43-SUM(SMALL(S43:Z43,{1;2})))) -> 15 | G43: 3 | L43: DNS | M43: DNS | N43: DNS | R43: 15 | AC43: 0 | AD43: 0 | AE43: 0 | AH43: 0 | AI43: 0 | AJ43: 0 | AL43: DNS | AM43: 0 | AN43: 5 | AO43: 5 | AR43: 0 | AS43: 0 | AT43: 0 | AV43: DNS | AW43: 0 | AX43: 5 | AY43: 5 | BA43: DNS | BB43: 0 | BC43: 5 | BD43: 5 | BG43: 0 | BH43: 0 | BI43: 0 | BL43: 0 | BM43: 0 | BN43: 0 | BP43: 38 | BQ43: 0 | BR43: 0 | BS43: 0 | BT43: 0 | BU43: 0 | BV43: 0 | BW43: 1 | BX43: 0 | BY43: 0
A44: 38 | C44: Mohn | D44: Henrik | E44: Heming | F44: =IF(G44<=6,R44,(R44-SUM(SMALL(S44:Z44,{1;2})))) -> 15 | G44: 3 | I44: DNS | J44: DSQ | L44: DNS | R44: 15 | AB44: DNS | AC44: 0 | AD44: 5 | AE44: 5 | AG44: DSQ | AH44: 0 | AI44: 5 | AJ44: 5 | AM44: 0 | AN44: 0 | AO44: 0 | AR44: 0 | AS44: 0 | AT44: 0 | AV44: DNS | AW44: 0 | AX44: 5 | AY44: 5 | BB44: 0 | BC44: 0 | BD44: 0 | BG44: 0 | BH44: 0 | BI44: 0 | BL44: 0 | BM44: 0 | BN44: 0 | BP44: 39 | BQ44: 0 | BR44: 0 | BS44: 0 | BT44: 0 | BU44: 0 | BV44: 0 | BW44: 1 | BX44: 0 | BY44: 0
A45: 40 | C45: Carr | D45: Michael | E45: Heming | F45: =IF(G45<=6,R45,(R45-SUM(SMALL(S45:Z45,{1;2})))) -> 10 | G45: 2 | L45: DSQ | M45: DNF | R45: 10 | AC45: 0 | AD45: 0 | AE45: 0 | AH45: 0 | AI45: 0 | AJ45: 0 | AM45: 0 | AN45: 0 | AO45: 0 | AR45: 0 | AS45: 0 | AT45: 0 | AV45: DSQ | AW45: 0 | AX45: 5 | AY45: 5 | BA45: DNF | BB45: 0 | BC45: 5 | BD45: 5 | BG45: 0 | BH45: 0 | BI45: 0 | BL45: 0 | BM45: 0 | BN45: 0 | BP45: 40 | BQ45: 0 | BR45: 0 | BS45: 0 | BT45: 0 | BU45: 0 | BV45: 0 | BW45: 0 | BX45: 1 | BY45: 0
A46: 40 | C46: Lødding | D46: Casper | E46: Heming | F46: =IF(G46<=6,R46,(R46-SUM(SMALL(S46:Z46,{1;2})))) -> 10 | G46: 1 | M46: 26 | N46: =IF(BA46="","",BA46) -> 26 | O46: =IF(AL46="","",AL46) ->  | P46: =IF(BF46="","",BF46) ->  | R46: 10 | AC46: 0 | AD46: 0 | AE46: 0 | AH46: 0 | AI46: 0 | AJ46: 0 | AM46: 0 | AN46: 0 | AO46: 0 | AR46: 0 | AS46: 0 | AT46: 0 | AW46: 0 | AX46: 0 | AY46: 0 | BA46: 26 | BB46: 5 | BC46: 5 | BD46: 10 | BG46: 0 | BH46: 0 | BI46: 0 | BL46: 0 | BM46: 0 | BN46: 0 | BP46: 41 | BQ46: 0 | BR46: 0 | BS46: 0 | BT46: 0 | BU46: 0 | BV46: 0 | BW46: 0 | BX46: 0 | BY46: 1
A47: 42 | C47: Lødding | D47: Theodor | E47: Heming | F47: =IF(G47<=6,R47,(R47-SUM(SMALL(S47:Z47,{1;2})))) -> 9 | G47: 1 | R47: 9 | AC47: 0 | AD47: 0 | AE47: 0 | AH47: 0 | AI47: 0 | AJ47: 0 | AM47: 0 | AN47: 0 | AO47: 0 | AR47: 0 | AS47: 0 | AT47: 0 | AW47: 0 | AX47: 0 | AY47: 0 | BA47: 27 | BB47: 4 | BC47: 5 | BD47: 9 | BG47: 0 | BH47: 0 | BI47: 0 | BL47: 0 | BM47: 0 | BN47: 0 | BP47: 42 | BQ47: 0 | BR47: 0 | BS47: 0 | BT47: 0 | BU47: 0 | BV47: 0 | BW47: 0 | BX47: 0 | BY47: 1
A48: 43 | C48: Asvall | D48: Eimund | E48: Heming | F48: =IF(G48<=6,R48,(R48-SUM(SMALL(S48:Z48,{1;2})))) -> 5 | G48: 1 | R48: 5 | AC48: 0 | AD48: 0 | AE48: 0 | AH48: 0 | AI48: 0 | AJ48: 0 | AM48: 0 | AN48: 0 | AO48: 0 | AR48: 0 | AS48: 0 | AT48: 0 | AW48: 0 | AX48: 0 | AY48: 0 | BA48: DNF | BB48: 0 | BC48: 5 | BD48: 5 | BG48: 0 | BH48: 0 | BI48: 0 | BL48: 0 | BM48: 0 | BN48: 0 | BP48: 43 | BQ48: 0 | BR48: 0 | BS48: 0 | BT48: 0 | BU48: 0 | BV48: 0 | BW48: 0 | BX48: 0 | BY48: 1
A49: 43 | C49: Grove-Knutsen | D49: Sander | E49: Ljan | F49: =IF(G49<=6,R49,(R49-SUM(SMALL(S49:Z49,{1;2})))) -> 5 | G49: 1 | I49: =IF(AB49="","",AB49) ->  | J49: =IF(AG49="","",AG49) -> DNS | K49: =IF(AQ49="","",AQ49) ->  | L49: =IF(AV49="","",AV49) ->  | M49: =IF(BA49="","",BA49) ->  | N49: =IF(AL49="","",AL49) ->  | O49: =IF(BF49="","",BF49) ->  | P49: =IF(BK49="","",BK49) ->  | R49: 5 | AC49: 0 | AD49: 0 | AE49: 0 | AG49: DNS | AH49: 0 | AI49: 5 | AJ49: 5 | AM49: 0 | AN49: 0 | AO49: 0 | AR49: 0 | AS49: 0 | AT49: 0 | AW49: 0 | AX49: 0 | AY49: 0 | BB49: 0 | BC49: 0 | BD49: 0 | BG49: 0 | BH49: 0 | BI49: 0 | BL49: 0 | BM49: 0 | BN49: 0 | BP49: 44 | BQ49: 0 | BR49: 0 | BS49: 0 | BT49: 0 | BU49: 0 | BV49: 0 | BW49: 0 | BX49: 0 | BY49: 1
A50: 43 | C50: Hjelseth | D50: Theo | E50: Heming | F50: =IF(G50<=6,R50,(R50-SUM(SMALL(S50:Z50,{1;2})))) -> 5 | G50: 1 | R50: 5 | AC50: 0 | AD50: 0 | AE50: 0 | AH50: 0 | AI50: 0 | AJ50: 0 | AM50: 0 | AN50: 0 | AO50: 0 | AR50: 0 | AS50: 0 | AT50: 0 | AW50: 0 | AX50: 0 | AY50: 0 | BA50: DNS | BB50: 0 | BC50: 5 | BD50: 5 | BG50: 0 | BH50: 0 | BI50: 0 | BL50: 0 | BM50: 0 | BN50: 0 | BP50: 45 | BQ50: 0 | BR50: 0 | BS50: 0 | BT50: 0 | BU50: 0 | BV50: 0 | BW50: 0 | BX50: 0 | BY50: 1
A51: 43 | C51: Ljungberg-Tvedt | D51: Christopher | E51: Heming | F51: =IF(G51<=6,R51,(R51-SUM(SMALL(S51:Z51,{1;2})))) -> 5 | G51: 1 | R51: 5 | AC51: 0 | AD51: 0 | AE51: 0 | AH51: 0 | AI51: 0 | AJ51: 0 | AM51: 0 | AN51: 0 | AO51: 0 | AR51: 0 | AS51: 0 | AT51: 0 | AW51: 0 | AX51: 0 | AY51: 0 | BA51: DNF | BB51: 0 | BC51: 5 | BD51: 5 | BG51: 0 | BH51: 0 | BI51: 0 | BL51: 0 | BM51: 0 | BN51: 0 | BP51: 46 | BQ51: 0 | BR51: 0 | BS51: 0 | BT51: 0 | BU51: 0 | BV51: 0 | BW51: 0 | BX51: 0 | BY51: 1
A52: 43 | C52: Strømsnes | D52: Carl-Cornelius | E52: Ljan | F52: =IF(G52<=6,R52,(R52-SUM(SMALL(S52:Z52,{1;2})))) -> 5 | G52: 1 | I52: =IF(AB52="","",AB52) ->  | J52: =IF(AG52="","",AG52) -> DSQ | K52: =IF(AQ52="","",AQ52) ->  | L52: =IF(AV52="","",AV52) ->  | M52: =IF(BA52="","",BA52) ->  | N52: =IF(AL52="","",AL52) ->  | O52: =IF(BF52="","",BF52) ->  | P52: =IF(BK52="","",BK52) ->  | R52: 5 | AC52: 0 | AD52: 0 | AE52: 0 | AG52: DSQ | AH52: 0 | AI52: 5 | AJ52: 5 | AM52: 0 | AN52: 0 | AO52: 0 | AR52: 0 | AS52: 0 | AT52: 0 | AW52: 0 | AX52: 0 | AY52: 0 | BB52: 0 | BC52: 0 | BD52: 0 | BG52: 0 | BH52: 0 | BI52: 0 | BL52: 0 | BM52: 0 | BN52: 0 | BP52: 47 | BQ52: 0 | BR52: 0 | BS52: 0 | BT52: 0 | BU52: 0 | BV52: 0 | BW52: 0 | BX52: 0 | BY52: 1
A53: 48 | F53: =IF(G53<=6,R53,(R53-SUM(SMALL(S53:Z53,{1;2})))) -> 0 | G53: 0 | R53: 0 | AC53: 0 | AD53: 0 | AE53: 0 | AH53: 0 | AI53: 0 | AJ53: 0 | AM53: 0 | AN53: 0 | AO53: 0 | AR53: 0 | AS53: 0 | AT53: 0 | AW53: 0 | AX53: 0 | AY53: 0 | BB53: 0 | BC53: 0 | BD53: 0 | BG53: 0 | BH53: 0 | BI53: 0 | BL53: 0 | BM53: 0 | BN53: 0 | BP53: 48 | BQ53: 1 | BR53: 0 | BS53: 0 | BT53: 0 | BU53: 0 | BV53: 0 | BW53: 0 | BX53: 0 | BY53: 0
A54: 48 | F54: =IF(G54<=6,R54,(R54-SUM(SMALL(S54:Z54,{1;2})))) -> 0 | G54: 0 | R54: 0 | AC54: 0 | AD54: 0 | AE54: 0 | AH54: 0 | AI54: 0 | AJ54: 0 | AM54: 0 | AN54: 0 | AO54: 0 | AR54: 0 | AS54: 0 | AT54: 0 | AW54: 0 | AX54: 0 | AY54: 0 | BB54: 0 | BC54: 0 | BD54: 0 | BG54: 0 | BH54: 0 | BI54: 0 | BL54: 0 | BM54: 0 | BN54: 0 | BP54: 49 | BQ54: 2 | BR54: 0 | BS54: 0 | BT54: 0 | BU54: 0 | BV54: 0 | BW54: 0 | BX54: 0 | BY54: 0
A55: 48 | F55: =IF(G55<=6,R55,(R55-SUM(SMALL(S55:Z55,{1;2})))) -> 0 | G55: 0 | R55: 0 | AE55: 0 | AJ55: 0 | AO55: 0 | AT55: 0 | AY55: 0 | BD55: 0 | BI55: 0 | BN55: 0 | BP55: 50 | BQ55: 3 | BR55: 0 | BS55: 0 | BT55: 0 | BU55: 0 | BV55: 0 | BW55: 0 | BX55: 0 | BY55: 0
I56: =IF(AB56="","",AB56) ->  | J56: =IF(AG56="","",AG56) ->  | K56: =IF(AQ56="","",AQ56) ->  | L56: =IF(AV56="","",AV56) ->  | M56: =IF(BA56="","",BA56) ->  | N56: =IF(AL56="","",AL56) ->  | O56: =IF(BF56="","",BF56) ->  | P56: =IF(BK56="","",BK56) ->  | S56: =IF($G56>=7,IF(AC56="","",AC56),"") ->  | T56: =IF($G56>=7,IF(AH56="","",AH56),"") ->  | U56: =IF($G56>=7,IF(AR56="","",AR56),"") ->  | V56: =IF($G56>=7,IF(AW56="","",AW56),"") ->  | W56: =IF($G56>=7,IF(BB56="","",BB56),"") ->  | X56: =IF($G56>=7,IF(AM56="","",AM56),"") ->  | Y56: =IF($G56>=7,IF(BG56="","",BG56),"") ->  | Z56: =IF($G56>=7,IF(BL56="","",BL56),"") -> 
I70: =IF(AB70="","",AB70) ->  | J70: =IF(AG70="","",AG70) ->  | K70: =IF(AQ70="","",AQ70) ->  | L70: =IF(AV70="","",AV70) ->  | M70: =IF(BA70="","",BA70) ->  | O70: =IF(BF70="","",BF70) ->  | P70: =IF(BK70="","",BK70) ->  | S70: =IF($G70>=7,IF(AC70="","",AC70),"") ->  | T70: =IF($G70>=7,IF(AH70="","",AH70),"") ->  | U70: =IF($G70>=7,IF(AR70="","",AR70),"") ->  | V70: =IF($G70>=7,IF(AW70="","",AW70),"") ->  | W70: =IF($G70>=7,IF(BB70="","",BB70),"") ->  | X70: =IF($G70>=7,IF(AM70="","",AM70),"") ->  | Y70: =IF($G70>=7,IF(BG70="","",BG70),"") ->  | Z70: =IF($G70>=7,IF(BL70="","",BL70),"") -> 

Sheet J12 2022
B1: Resultatliste Oslo Cup 20122- Jenter 12 år
I3: IRS Rennet | J3: Ljan Rennet | K3: Njård Rennet | L3: Ready Rennet | M3: Telenor Arena Cup | N3: Kidsbühel | O3: Oslo Alpinfestival SL | P3: Oslo Alpinfestival SSL | S3: IRS Rennet | T3: Ljan Rennet | U3: Njård Rennet | V3: Ready Rennet | W3: Telenor Arena Cup | X3: Kidsbühel | Y3: Oslo Alpinfestival SL | Z3: Oslo Alpinfestival SSL | AB3: --------IRS Rennet---------- | AG3: ----------Ljan Rennet--------- | AL3: --------Njård Rennet---------- | AQ3: ------Kidsbühel-------- | AV3: --------Ready Rennet--------- | BA3: -----Telenor Arena Cup---- | BF3: ---Oslo Alpinfestival SL--- | BK3: ---Oslo Alpinfestival SSL---
G4: Antall | I4: 2022-01-29 | J4: 2022-01-30 | K4: 2022-02-04 | L4: 2022-02-05 | M4: 2022-02-16 | N4: 2022-02-02 | O4: 2022-03-12 | P4: 2022-03-13 | R4: Poeng | S4: 2022-01-29 | T4: 2022-01-30 | U4: 2022-02-04 | V4: 2022-02-05 | W4: 2022-02-16 | X4: 2022-02-02 | Y4: 2022-03-12 | Z4: 2022-03-13 | AC4: --------Poeng-------- | AH4: --------Poeng-------- | AM4: -------Poeng--------- | AR4: -------Poeng--------- | AW4: -------Poeng--------- | BB4: -------Poeng--------- | BG4: -------Poeng--------- | BL4: -------Poeng--------- | BR4: Løpere med | BS4: Løpere med | BT4: Løpere med | BU4: Løpere med | BV4: Løpere med | BW4: Løpere med | BX4: Løpere med | BY4: Løpere med
A5: Plass | B5: Plass | C5: Etternavn | D5: Fornavn | E5: Klubb | F5: Poeng | G5: renn | I5: ------------------------------Plassering i rennene--------------------------------- | R5: brutto | S5: ----------------Resultatpoeng hvis mer enn 5 renn---------------- | AB5: Plass | AC5: Res. | AD5: Del. | AE5: Tot. | AG5: Plass | AH5: Res. | AI5: Del. | AJ5: Tot. | AL5: Plass | AM5: Res. | AN5: Del. | AO5: Tot. | AQ5: Plass | AR5: Res. | AS5: Del. | AT5: Tot. | AV5: Plass | AW5: Res. | AX5: Del. | AY5: Tot. | BA5: Plass | BB5: Res. | BC5: Del. | BD5: Tot. | BF5: Plass | BG5: Res. | BH5: Del. | BI5: Tot. | BK5: Plass | BL5: Res. | BM5: Del. | BN5: Tot. | BP5: Plass | BQ5: Poeng | BR5: 8 renn | BS5: 7 renn | BT5: 6 renn | BU5: 5 renn | BV5: 4 renn | BW5: 3 renn | BX5: 2 renn | BY5: kun 1 renn
A6: =IF(F6<F5,BP6,A5) -> 1 | B6: 1 | C6: Jæger | D6: Johanne | E6: Ingierkollen Rustad | F6: =IF(G6<5,"",(R6-SUM(SMALL(S6:Z6,{1;2;3})))) -> 535 | G6: =(IF(AD6=5,1,0)+IF(AI6=5,1,0)+IF(AN6=5,1,0)+IF(AX6=5,1,0)+IF(BC6=5,1,0)+IF(AS6=5,1,0)+IF(BH6=5,1,0)+IF(BM6=5,1,0)) -> 7 | I6: =IF(AB6="","",AB6) -> 1 | J6: =IF(AG6="","",AG6) -> 1 | K6: =IF(AL6="","",AL6) ->  | L6: =IF(AV6="","",AV6) -> 7 | M6: =IF(BA6="","",BA6) -> 1 | N6: =IF(AQ6="","",AQ6) -> 2 | O6: =IF(BF6="","",BF6) -> 1 | P6: =IF(BK6="","",BK6) -> 1 | R6: =AE6+AJ6+AO6+AY6+BD6+AT6+BI6+BN6 -> 651 | S6: =IF($G6>=5,IF(AC6="","",AC6),"") -> 100 | T6: =IF($G6>=5,IF(AH6="","",AH6),"") -> 100 | U6: =IF($G6>=5,IF(AM6="","",AM6),"") -> 0 | V6: =IF($G6>=5,IF(AW6="","",AW6),"") -> 36 | W6: =IF($G6>=5,IF(BB6="","",BB6),"") -> 100 | X6: =IF($G6>=5,IF(AR6="","",AR6),"") -> 80 | Y6: =IF($G6>=5,IF(BG6="","",BG6),"") -> 100 | Z6: =IF($G6>=5,IF(BL6="","",BL6),"") -> 100 | AB6: 1 | AC6: =IF(ISNUMBER(AB6),(VLOOKUP(AB6,$BP$6:$BQ$49,2)),0) -> 100 | AD6: =IF(AB6<>"",5,0) -> 5 | AE6: =AC6+AD6 -> 105 | AG6: 1 | AH6: =IF(ISNUMBER(AG6),(VLOOKUP(AG6,$BP$6:$BQ$49,2)),0) -> 100 | AI6: =IF(AG6<>"",5,0) -> 5 | AJ6: =AH6+AI6 -> 105 | AM6: =IF(ISNUMBER(AL6),(VLOOKUP(AL6,$BP$6:$BQ$49,2)),0) -> 0 | AN6: =IF(AL6<>"",5,0) -> 0 | AO6: =AM6+AN6 -> 0 | AQ6: 2 | AR6: =IF(ISNUMBER(AQ6),(VLOOKUP(AQ6,$BP$6:$BQ$49,2)),0) -> 80 | AS6: =IF(AQ6<>"",5,0) -> 5 | AT6: =AR6+AS6 -> 85 | AV6: 7 | AW6: =IF(ISNUMBER(AV6),(VLOOKUP(AV6,$BP$6:$BQ$49,2)),0) -> 36 | AX6: =IF(AV6<>"",5,0) -> 5 | AY6: =AW6+AX6 -> 41 | BA6: 1 | BB6: =IF(ISNUMBER(BA6),(VLOOKUP(BA6,$BP$6:$BQ$49,2)),0) -> 100 | BC6: =IF(BA6<>"",5,0) -> 5 | BD6: =BB6+BC6 -> 105 | BF6: 1 | BG6: =IF(ISNUMBER(BF6),(VLOOKUP(BF6,$BP$6:$BQ$49,2)),0) -> 100 | BH6: =IF(BF6<>"",5,0) -> 5 | BI6: =BG6+BH6 -> 105 | BK6: 1 | BL6: =IF(ISNUMBER(BK6),(VLOOKUP(BK6,$BP$6:$BQ$49,2)),0) -> 100 | BM6: =IF(BK6<>"",5,0) -> 5 | BN6: =BL6+BM6 -> 105 | BP6: 1 | BQ6: 100 | BR6: =IF($G6=8,1,0) -> 0 | BS6: =IF($G6=7,1,0) -> 1 | BT6: =IF($G6=6,1,0) -> 0 | BU6: =IF($G6=5,1,0) -> 0 | BV6: =IF($G6=4,1,0) -> 0 | BW6: =IF($G6=3,1,0) -> 0 | BX6: =IF($G6=2,1,0) -> 0 | BY6: =IF($G6=1,1,0) -> 0
A7: 2 | B7: 2 | C7: Røer-Amundsen | D7: Amelia | E7: Ready | F7: =IF(G7<5,"",(R7-SUM(SMALL(S7:Z7,{1;2;3})))) -> 385 | G7: 7 | I7: DSQ | J7: 3 | L7: 2 | M7: 4 | N7: 1 | O7: 4 | P7: 3 | R7: 435 | S7: 0 | T7: 60 | U7: 0 | V7: 80 | W7: 50 | X7: 100 | Y7: 50 | Z7: 60 | AB7: DSQ | AC7: 0 | AD7: 5 | AE7: 5 | AG7: 3 | AH7: 60 | AI7: 5 | AJ7: 65 | AM7: 0 | AN7: 0 | AO7: 0 | AQ7: 1 | AR7: 100 | AS7: 5 | AT7: 105 | AV7: 2 | AW7: 80 | AX7: 5 | AY7: 85 | BA7: 4 | BB7: 50 | BC7: 5 | BD7: 55 | BF7: 4 | BG7: 50 | BH7: 5 | BI7: 55 | BK7: 3 | BL7: 60 | BM7: 5 | BN7: 65 | BP7: 2 | BQ7: 80 | BR7: =IF($G7=8,1,0) -> 0 | BS7: 1 | BT7: 0 | BU7: 0 | BV7: 0 | BW7: 0 | BX7: 0 | BY7: 0
A8: 3 | B8: 4 | C8: Orholm | D8: Julie Mathilde | E8: Heming | F8: =IF(G8<5,"",(R8-SUM(SMALL(S8:Z8,{1;2;3})))) -> 350 | G8: 6 | I8: 6 | J8: DSQ | L8: 1 | M8: 13 | O8: 2 | P8: 2 | R8: 350 | S8: 40 | T8: 0 | U8: 0 | V8: 100 | W8: 20 | X8: 0 | Y8: 80 | Z8: 80 | AB8: 6 | AC8: 40 | AD8: 5 | AE8: 45 | AG8: DSQ | AH8: 0 | AI8: 5 | AJ8: 5 | AM8: 0 | AN8: 0 | AO8: 0 | AR8: 0 | AS8: 0 | AT8: 0 | AV8: 1 | AW8: 100 | AX8: 5 | AY8: 105 | BA8: 13 | BB8: 20 | BC8: 5 | BD8: 25 | BF8: 2 | BG8: 80 | BH8: 5 | BI8: 85 | BK8: 2 | BL8: 80 | BM8: 5 | BN8: 85 | BP8: 3 | BQ8: 60 | BR8: 0 | BS8: 0 | BT8: 1 | BU8: 0 | BV8: 0 | BW8: 0 | BX8: 0 | BY8: 0
A9: 4 | B9: 3 | C9: Merky | D9: Nellie Juliette | E9: Kjelsås | F9: =IF(G9<5,"",(R9-SUM(SMALL(S9:Z9,{1;2;3})))) -> 345 | G9: 7 | I9: 5 | J9: 2 | L9: 3 | M9: 3 | N9: 5 | O9: 3 | P9: 4 | R9: 435 | S9: 45 | T9: 80 | U9: 0 | V9: 60 | W9: 60 | X9: 45 | Y9: 60 | Z9: 50 | AB9: 5 | AC9: 45 | AD9: 5 | AE9: 50 | AG9: 2 | AH9: 80 | AI9: 5 | AJ9: 85 | AM9: 0 | AN9: 0 | AO9: 0 | AQ9: 5 | AR9: 45 | AS9: 5 | AT9: 50 | AV9: 3 | AW9: 60 | AX9: 5 | AY9: 65 | BA9: 3 | BB9: 60 | BC9: 5 | BD9: 65 | BF9: 3 | BG9: 60 | BH9: 5 | BI9: 65 | BK9: 4 | BL9: 50 | BM9: 5 | BN9: 55 | BP9: 4 | BQ9: 50 | BR9: 0 | BS9: 1 | BT9: 0 | BU9: 0 | BV9: 0 | BW9: 0 | BX9: 0 | BY9: 0
A10: 5 | B10: 5 | C10: Pappos | D10: Pontine | E10: Heming | F10: =IF(G10<5,"",(R10-SUM(SMALL(S10:Z10,{1;2;3})))) -> 289 | G10: 7 | I10: 3 | J10: 4 | L10: 4 | M10: 2 | N10: 17 | O10: DNS | P10: DNS | R10: 289 | S10: 60 | T10: 50 | U10: 0 | V10: 50 | W10: 80 | X10: 14 | Y10: 0 | Z10: 0 | AB10: 3 | AC10: 60 | AD10: 5 | AE10: 65 | AG10: 4 | AH10: 50 | AI10: 5 | AJ10: 55 | AM10: 0 | AN10: 0 | AO10: 0 | AQ10: 17 | AR10: 14 | AS10: 5 | AT10: 19 | AV10: 4 | AW10: 50 | AX10: 5 | AY10: 55 | BA10: 2 | BB10: 80 | BC10: 5 | BD10: 85 | BF10: DNS | BG10: 0 | BH10: 5 | BI10: 5 | BK10: DNS | BL10: 0 | BM10: 5 | BN10: 5 | BP10: 5 | BQ10: 45 | BR10: 0 | BS10: 1 | BT10: 0 | BU10: 0 | BV10: 0 | BW10: 0 | BX10: 0 | BY10: 0
A11: 6 | B11: 6 | C11: Mathisen | D11: Linnea | E11: Ready | F11: =IF(G11<5,"",(R11-SUM(SMALL(S11:Z11,{1;2;3})))) -> 285 | G11: 7 | I11: 2 | J11: 5 | L11: 9 | M11: 5 | N11: 6 | O11: DSQ | P11: 6 | R11: 314 | S11: 80 | T11: 45 | U11: 0 | V11: 29 | W11: 45 | X11: 40 | Y11: 0 | Z11: 40 | AB11: 2 | AC11: 80 | AD11: 5 | AE11: 85 | AG11: 5 | AH11: 45 | AI11: 5 | AJ11: 50 | AM11: 0 | AN11: 0 | AO11: 0 | AQ11: 6 | AR11: 40 | AS11: 5 | AT11: 45 | AV11: 9 | AW11: 29 | AX11: 5 | AY11: 34 | BA11: 5 | BB11: 45 | BC11: 5 | BD11: 50 | BF11: DSQ | BG11: 0 | BH11: 5 | BI11: 5 | BK11: 6 | BL11: 40 | BM11: 5 | BN11: 45 | BP11: 6 | BQ11: 40 | BR11: 0 | BS11: 1 | BT11: 0 | BU11: 0 | BV11: 0 | BW11: 0 | BX11: 0 | BY11: 0
A12: 7 | B12: 7 | C12: Røsjorde | D12: Ella | E12: Kjelsås | F12: =IF(G12<5,"",(R12-SUM(SMALL(S12:Z12,{1;2;3})))) -> 223 | G12: 6 | I12: DSQ | L12: 10 | M12: 7 | N12: 4 | O12: 5 | P12: 7 | R12: 223 | S12: 0 | T12: 0 | U12: 0 | V12: 26 | W12: 36 | X12: 50 | Y12: 45 | Z12: 36 | AB12: DSQ | AC12: 0 | AD12: 5 | AE12: 5 | AH12: 0 | AI12: 0 | AJ12: 0 | AM12: 0 | AN12: 0 | AO12: 0 | AQ12: 4 | AR12: 50 | AS12: 5 | AT12: 55 | AV12: 10 | AW12: 26 | AX12: 5 | AY12: 31 | BA12: 7 | BB12: 36 | BC12: 5 | BD12: 41 | BF12: 5 | BG12: 45 | BH12: 5 | BI12: 50 | BK12: 7 | BL12: 36 | BM12: 5 | BN12: 41 | BP12: 7 | BQ12: 36 | BR12: 0 | BS12: 0 | BT12: 1 | BU12: 0 | BV12: 0 | BW12: 0 | BX12: 0 | BY12: 0
A13: 8 | B13: 8 | C13: Meltvedt | D13: Karoline | E13: Njård | F13: =IF(G13<5,"",(R13-SUM(SMALL(S13:Z13,{1;2;3})))) -> 202 | G13: 6 | I13: 10 | J13: 8 | M13: 8 | N13: 7 | O13: 6 | P13: 8 | R13: 228 | S13: 26 | T13: 32 | U13: 0 | V13: 0 | W13: 32 | X13: 36 | Y13: 40 | Z13: 32 | AB13: 10 | AC13: 26 | AD13: 5 | AE13: 31 | AG13: 8 | AH13: 32 | AI13: 5 | AJ13: 37 | AM13: 0 | AN13: 0 | AO13: 0 | AQ13: 7 | AR13: 36 | AS13: 5 | AT13: 41 | AW13: 0 | AX13: 0 | AY13: 0 | BA13: 8 | BB13: 32 | BC13: 5 | BD13: 37 | BF13: 6 | BG13: 40 | BH13: 5 | BI13: 45 | BK13: 8 | BL13: 32 | BM13: 5 | BN13: 37 | BP13: 8 | BQ13: 32 | BR13: 0 | BS13: 0 | BT13: 1 | BU13: 0 | BV13: 0 | BW13: 0 | BX13: 0 | BY13: 0
A14: 9 | B14: 9 | C14: Didriksen | D14: Hedda | E14: Ingierkollen Rustad | F14: =IF(G14<5,"",(R14-SUM(SMALL(S14:Z14,{1;2;3})))) -> 180 | G14: 7 | I14: 9 | J14: 9 | L14: 12 | M14: 10 | N14: 16 | O14: 8 | P14: 9 | R14: 217 | S14: 29 | T14: 29 | U14: 0 | V14: 22 | W14: 26 | X14: 15 | Y14: 32 | Z14: 29 | AB14: 9 | AC14: 29 | AD14: 5 | AE14: 34 | AG14: 9 | AH14: 29 | AI14: 5 | AJ14: 34 | AM14: 0 | AN14: 0 | AO14: 0 | AQ14: 16 | AR14: 15 | AS14: 5 | AT14: 20 | AV14: 12 | AW14: 22 | AX14: 5 | AY14: 27 | BA14: 10 | BB14: 26 | BC14: 5 | BD14: 31 | BF14: 8 | BG14: 32 | BH14: 5 | BI14: 37 | BK14: 9 | BL14: 29 | BM14: 5 | BN14: 34 | BP14: 9 | BQ14: 29 | BR14: 0 | BS14: 1 | BT14: 0 | BU14: 0 | BV14: 0 | BW14: 0 | BX14: 0 | BY14: 0
A15: 10 | B15: 10 | C15: Bjørke | D15: Arja | E15: Kjelsås | F15: =IF(G15<5,"",(R15-SUM(SMALL(S15:Z15,{1;2;3})))) -> 176 | G15: 7 | I15: DSQ | J15: 7 | L15: DSQ | M15: DSQ | N15: 3 | O15: DSQ | P15: 5 | R15: 176 | S15: 0 | T15: 36 | U15: 0 | V15: 0 | W15: 0 | X15: 60 | Y15: 0 | Z15: 45 | AB15: DSQ | AC15: 0 | AD15: 5 | AE15: 5 | AG15: 7 | AH15: 36 | AI15: 5 | AJ15: 41 | AM15: 0 | AN15: 0 | AO15: 0 | AQ15: 3 | AR15: 60 | AS15: 5 | AT15: 65 | AV15: DSQ | AW15: 0 | AX15: 5 | AY15: 5 | BA15: DSQ | BB15: 0 | BC15: 5 | BD15: 5 | BF15: DSQ | BG15: 0 | BH15: 5 | BI15: 5 | BK15: 5 | BL15: 45 | BM15: 5 | BN15: 50 | BP15: 10 | BQ15: 26 | BR15: 0 | BS15: 1 | BT15: 0 | BU15: 0 | BV15: 0 | BW15: 0 | BX15: 0 | BY15: 0
A16: 11 | B16: 11 | C16: Hilmersen | D16: Aurora | E16: Njård | F16: =IF(G16<5,"",(R16-SUM(SMALL(S16:Z16,{1;2;3})))) -> 172 | G16: 6 | I16: 8 | J16: DSQ | L16: 11 | M16: 12 | O16: 6 | P16: 11 | R16: 172 | S16: 32 | T16: 0 | U16: 0 | V16: 24 | W16: 22 | X16: 0 | Y16: 40 | Z16: 24 | AB16: 8 | AC16: 32 | AD16: 5 | AE16: 37 | AG16: DSQ | AH16: 0 | AI16: 5 | AJ16: 5 | AM16: 0 | AN16: 0 | AO16: 0 | AR16: 0 | AS16: 0 | AT16: 0 | AV16: 11 | AW16: 24 | AX16: 5 | AY16: 29 | BA16: 12 | BB16: 22 | BC16: 5 | BD16: 27 | BF16: 6 | BG16: 40 | BH16: 5 | BI16: 45 | BK16: 11 | BL16: 24 | BM16: 5 | BN16: 29 | BP16: 11 | BQ16: 24 | BR16: 0 | BS16: 0 | BT16: 1 | BU16: 0 | BV16: 0 | BW16: 0 | BX16: 0 | BY16: 0
A17: 12 | B17: 12 | C17: Hamran | D17: Frøydis | E17: Kjelsås | F17: =IF(G17<5,"",(R17-SUM(SMALL(S17:Z17,{1;2;3})))) -> 158 | G17: 6 | I17: 7 | J17: 6 | M17: DSQ | N17: 10 | O17: DSQ | P17: 10 | R17: 158 | S17: 36 | T17: 40 | U17: 0 | V17: 0 | W17: 0 | X17: 26 | Y17: 0 | Z17: 26 | AB17: 7 | AC17: 36 | AD17: 5 | AE17: 41 | AG17: 6 | AH17: 40 | AI17: 5 | AJ17: 45 | AM17: 0 | AN17: 0 | AO17: 0 | AQ17: 10 | AR17: 26 | AS17: 5 | AT17: 31 | AW17: 0 | AX17: 0 | AY17: 0 | BA17: DSQ | BB17: 0 | BC17: 5 | BD17: 5 | BF17: DSQ | BG17: 0 | BH17: 5 | BI17: 5 | BK17: 10 | BL17: 26 | BM17: 5 | BN17: 31 | BP17: 12 | BQ17: 22 | BR17: 0 | BS17: 0 | BT17: 1 | BU17: 0 | BV17: 0 | BW17: 0 | BX17: 0 | BY17: 0
A18: 13 | B18: 13 | C18: Bernt | D18: Martine Bruun | E18: Njård | F18: =IF(G18<5,"",(R18-SUM(SMALL(S18:Z18,{1;2;3})))) -> 145 | G18: 5 | L18: 13 | M18: 14 | N18: 9 | O18: 9 | P18: 12 | R18: 145 | S18: 0 | T18: 0 | U18: 0 | V18: 20 | W18: 20 | X18: 29 | Y18: 29 | Z18: 22 | AC18: 0 | AD18: 0 | AE18: 0 | AH18: 0 | AI18: 0 | AJ18: 0 | AM18: 0 | AN18: 0 | AO18: 0 | AQ18: 9 | AR18: 29 | AS18: 5 | AT18: 34 | AV18: 13 | AW18: 20 | AX18: 5 | AY18: 25 | BA18: 14 | BB18: 20 | BC18: 5 | BD18: 25 | BF18: 9 | BG18: 29 | BH18: 5 | BI18: 34 | BK18: 12 | BL18: 22 | BM18: 5 | BN18: 27 | BP18: 13 | BQ18: 20 | BR18: 0 | BS18: 0 | BT18: 0 | BU18: 1 | BV18: 0 | BW18: 0 | BX18: 0 | BY18: 0
A19: =IF(F19<#REF!,BP19,#REF!) ->  | B19: 14 | C19: Stopar | D19: Wilma | E19: Ready | F19: =IF(G19<5,"",(R19-SUM(SMALL(S19:Z19,{1;2;3})))) -> 113 | G19: 5 | I19: 12 | J19: 11 | L19: 15 | M19: 18 | N19: 18 | R19: 113 | S19: 22 | T19: 24 | U19: 0 | V19: 16 | W19: 13 | X19: 13 | Y19: 0 | Z19: 0 | AB19: 12 | AC19: 22 | AD19: 5 | AE19: 27 | AG19: 11 | AH19: 24 | AI19: 5 | AJ19: 29 | AM19: 0 | AN19: 0 | AO19: 0 | AQ19: 18 | AR19: 13 | AS19: 5 | AT19: 18 | AV19: 15 | AW19: 16 | AX19: 5 | AY19: 21 | BA19: 18 | BB19: 13 | BC19: 5 | BD19: 18 | BG19: 0 | BH19: 0 | BI19: 0 | BL19: 0 | BM19: 0 | BN19: 0 | BP19: 15 | BQ19: 16 | BR19: 0 | BS19: 0 | BT19: 0 | BU19: 1 | BV19: 0 | BW19: 0 | BX19: 0 | BY19: 0
A20: =IF(F20<F19,BP20,A19) ->  | C20: Borge-Andersen | D20: Mie | E20: Heming | F20: =IF(G20<5,"",(R20-SUM(SMALL(S20:Z20,{1;2;3})))) ->  | G20: 4 | I20: 4 | J20: DSQ | L20: 6 | M20: DSQ | R20: 110 | AB20: 4 | AC20: 50 | AD20: 5 | AE20: 55 | AG20: DSQ | AH20: 0 | AI20: 5 | AJ20: 5 | AM20: 0 | AN20: 0 | AO20: 0 | AR20: 0 | AS20: 0 | AT20: 0 | AV20: 6 | AW20: 40 | AX20: 5 | AY20: 45 | BA20: DSQ | BB20: 0 | BC20: 5 | BD20: 5 | BG20: 0 | BH20: 0 | BI20: 0 | BL20: 0 | BM20: 0 | BN20: 0 | BP20: 16 | BQ20: 15 | BR20: 0 | BS20: 0 | BT20: 0 | BU20: 0 | BV20: 1 | BW20: 0 | BX20: 0 | BY20: 0
A21: 17 | B21: 15 | C21: Argel | D21: Tomine | E21: Heming | F21: =IF(G21<5,"",(R21-SUM(SMALL(S21:Z21,{1;2;3})))) -> 99 | G21: 6 | J21: DNS | L21: 5 | M21: DNS | N21: 11 | O21: DSQ | P21: DNS | R21: 99 | S21: 0 | T21: 0 | U21: 0 | V21: 45 | W21: 0 | X21: 24 | Y21: 0 | Z21: 0 | AC21: 0 | AD21: 0 | AE21: 0 | AG21: DNS | AH21: 0 | AI21: 5 | AJ21: 5 | AM21: 0 | AN21: 0 | AO21: 0 | AQ21: 11 | AR21: 24 | AS21: 5 | AT21: 29 | AV21: 5 | AW21: 45 | AX21: 5 | AY21: 50 | BA21: DNS | BB21: 0 | BC21: 5 | BD21: 5 | BF21: DSQ | BG21: 0 | BH21: 5 | BI21: 5 | BK21: DNS | BL21: 0 | BM21: 5 | BN21: 5 | BP21: 17 | BQ21: 14 | BR21: 0 | BS21: 0 | BT21: 1 | BU21: 0 | BV21: 0 | BW21: 0 | BX21: 0 | BY21: 0
A22: 17 | C22: Egeberg | D22: Silje | E22: Ready | F22: =IF(G22<5,"",(R22-SUM(SMALL(S22:Z22,{1;2;3})))) ->  | G22: 4 | I22: 11 | J22: 12 | M22: 16 | N22: 15 | R22: 97 | AB22: 11 | AC22: 24 | AD22: 5 | AE22: 29 | AG22: 12 | AH22: 22 | AI22: 5 | AJ22: 27 | AM22: 0 | AN22: 0 | AO22: 0 | AQ22: 15 | AR22: 16 | AS22: 5 | AT22: 21 | AW22: 0 | AX22: 0 | AY22: 0 | BA22: 16 | BB22: 15 | BC22: 5 | BD22: 20 | BG22: 0 | BH22: 0 | BI22: 0 | BL22: 0 | BM22: 0 | BN22: 0 | BP22: 18 | BQ22: 13 | BR22: 0 | BS22: 0 | BT22: 0 | BU22: 0 | BV22: 1 | BW22: 0 | BX22: 0 | BY22: 0
A23: 17 | C23: Witte-Skjeldbred | D23: Anne | E23: Heming | F23: =IF(G23<5,"",(R23-SUM(SMALL(S23:Z23,{1;2;3})))) ->  | G23: 2 | M23: 6 | N23: 8 | R23: 82 | AC23: 0 | AD23: 0 | AE23: 0 | AH23: 0 | AI23: 0 | AJ23: 0 | AM23: 0 | AN23: 0 | AO23: 0 | AQ23: 8 | AR23: 32 | AS23: 5 | AT23: 37 | AW23: 0 | AX23: 0 | AY23: 0 | BA23: 6 | BB23: 40 | BC23: 5 | BD23: 45 | BG23: 0 | BH23: 0 | BI23: 0 | BL23: 0 | BM23: 0 | BN23: 0 | BP23: 19 | BQ23: 12 | BR23: 0 | BS23: 0 | BT23: 0 | BU23: 0 | BV23: 0 | BW23: 0 | BX23: 1 | BY23: 0
A24: 17 | C24: Skjeldam | D24: Helene | E24: Ready | F24: =IF(G24<5,"",(R24-SUM(SMALL(S24:Z24,{1;2;3})))) ->  | G24: 3 | J24: 10 | M24: 17 | N24: 14 | R24: 75 | AC24: 0 | AD24: 0 | AE24: 0 | AG24: 10 | AH24: 26 | AI24: 5 | AJ24: 31 | AM24: 0 | AN24: 0 | AO24: 0 | AQ24: 14 | AR24: 20 | AS24: 5 | AT24: 25 | AW24: 0 | AX24: 0 | AY24: 0 | BA24: 17 | BB24: 14 | BC24: 5 | BD24: 19 | BG24: 0 | BH24: 0 | BI24: 0 | BL24: 0 | BM24: 0 | BN24: 0 | BP24: 20 | BQ24: 11 | BR24: 0 | BS24: 0 | BT24: 0 | BU24: 0 | BV24: 0 | BW24: 1 | BX24: 0 | BY24: 0
A25: 21 | B25: 16 | C25: Rivelsrud | D25: Lotte | E25: Heming | F25: =IF(G25<5,"",(R25-SUM(SMALL(S25:Z25,{1;2;3})))) -> 70 | G25: 6 | I25: DNS | L25: 14 | M25: DNS | N25: 13 | O25: DNS | P25: DNS | R25: 70 | S25: 0 | T25: 0 | U25: 0 | V25: 20 | W25: 0 | X25: 20 | Y25: 0 | Z25: 0 | AB25: DNS | AC25: 0 | AD25: 5 | AE25: 5 | AH25: 0 | AI25: 0 | AJ25: 0 | AM25: 0 | AN25: 0 | AO25: 0 | AQ25: 13 | AR25: 20 | AS25: 5 | AT25: 25 | AV25: 14 | AW25: 20 | AX25: 5 | AY25: 25 | BA25: DNS | BB25: 0 | BC25: 5 | BD25: 5 | BF25: DNS | BG25: 0 | BH25: 5 | BI25: 5 | BK25: DNS | BL25: 0 | BM25: 5 | BN25: 5 | BP25: 21 | BQ25: 10 | BR25: 0 | BS25: 0 | BT25: 1 | BU25: 0 | BV25: 0 | BW25: 0 | BX25: 0 | BY25: 0
A26: =IF(F26<F25,BP26,A25) -> 21 | C26: Solhusløkk | D26: Benedikte | E26: Ingierkollen Rustad | F26: =IF(G26<5,"",(R26-SUM(SMALL(S26:Z26,{1;2;3})))) ->  | G26: =(IF(AD26=5,1,0)+IF(AI26=5,1,0)+IF(AN26=5,1,0)+IF(AX26=5,1,0)+IF(BC26=5,1,0)+IF(AS26=5,1,0)+IF(BH26=5,1,0)+IF(BM26=5,1,0)) -> 4 | I26: =IF(AB26="","",AB26) -> DSQ | J26: =IF(AG26="","",AG26) -> DNS | K26: =IF(AL26="","",AL26) ->  | L26: =IF(AV26="","",AV26) ->  | M26: =IF(BA26="","",BA26) ->  | N26: =IF(AQ26="","",AQ26) ->  | O26: =IF(BF26="","",BF26) -> 10 | P26: =IF(BK26="","",BK26) -> 14 | R26: =AE26+AJ26+AO26+AY26+BD26+AT26+BI26+BN26 -> 66 | S26: =IF($G26>=5,IF(AC26="","",AC26),"") ->  | T26: =IF($G26>=5,IF(AH26="","",AH26),"") ->  | U26: =IF($G26>=5,IF(AM26="","",AM26),"") ->  | V26: =IF($G26>=5,IF(AW26="","",AW26),"") ->  | W26: =IF($G26>=5,IF(BB26="","",BB26),"") ->  | X26: =IF($G26>=5,IF(AR26="","",AR26),"") ->  | Y26: =IF($G26>=5,IF(BG26="","",BG26),"") ->  | Z26: =IF($G26>=5,IF(BL26="","",BL26),"") ->  | AB26: DSQ | AC26: =IF(ISNUMBER(AB26),(VLOOKUP(AB26,$BP$6:$BQ$49,2)),0) -> 0 | AD26: =IF(AB26<>"",5,0) -> 5 | AE26: =AC26+AD26 -> 5 | AG26: DNS | AH26: =IF(ISNUMBER(AG26),(VLOOKUP(AG26,$BP$6:$BQ$49,2)),0) -> 0 | AI26: =IF(AG26<>"",5,0) -> 5 | AJ26: =AH26+AI26 -> 5 | AM26: =IF(ISNUMBER(AL26),(VLOOKUP(AL26,$BP$6:$BQ$49,2)),0) -> 0 | AN26: =IF(AL26<>"",5,0) -> 0 | AO26: =AM26+AN26 -> 0 | AR26: =IF(ISNUMBER(AQ26),(VLOOKUP(AQ26,$BP$6:$BQ$49,2)),0) -> 0 | AS26: =IF(AQ26<>"",5,0) -> 0 | AT26: =AR26+AS26 -> 0 | AW26: =IF(ISNUMBER(AV26),(VLOOKUP(AV26,$BP$6:$BQ$49,2)),0) -> 0 | AX26: =IF(AV26<>"",5,0) -> 0 | AY26: =AW26+AX26 -> 0 | BB26: =IF(ISNUMBER(BA26),(VLOOKUP(BA26,$BP$6:$BQ$49,2)),0) -> 0 | BC26: =IF(BA26<>"",5,0) -> 0 | BD26: =BB26+BC26 -> 0 | BF26: 10 | BG26: =IF(ISNUMBER(BF26),(VLOOKUP(BF26,$BP$6:$BQ$49,2)),0) -> 26 | BH26: =IF(BF26<>"",5,0) -> 5 | BI26: =BG26+BH26 -> 31 | BK26: 14 | BL26: =IF(ISNUMBER(BK26),(VLOOKUP(BK26,$BP$6:$BQ$49,2)),0) -> 20 | BM26: =IF(BK26<>"",5,0) -> 5 | BN26: =BL26+BM26 -> 25 | BP26: 22 | BQ26: 9 | BR26: 0 | BS26: 0 | BT26: 0 | BU26: 0 | BV26: 1 | BW26: 0 | BX26: 0 | BY26: 0
A27: 21 | C27: Lundhagen Hesselroth | D27: Hermine | E27: Njård | F27: =IF(G27<5,"",(R27-SUM(SMALL(S27:Z27,{1;2;3})))) ->  | G27: 2 | J27: 13 | P27: 13 | R27: 50 | AC27: 0 | AD27: 0 | AE27: 0 | AG27: 13 | AH27: 20 | AI27: 5 | AJ27: 25 | AM27: 0 | AN27: 0 | AO27: 0 | AR27: 0 | AS27: 0 | AT27: 0 | AW27: 0 | AX27: 0 | AY27: 0 | BB27: 0 | BC27: 0 | BD27: 0 | BG27: 0 | BH27: 0 | BI27: 0 | BK27: 13 | BL27: 20 | BM27: 5 | BN27: 25 | BP27: 23 | BQ27: 8 | BR27: 0 | BS27: 0 | BT27: 0 | BU27: 0 | BV27: 0 | BW27: 0 | BX27: 1 | BY27: 0
A28: 21 | C28: Norstrand | D28: Lotte | E28: Heming | F28: =IF(G28<5,"",(R28-SUM(SMALL(S28:Z28,{1;2;3})))) ->  | G28: 2 | L28: 8 | M28: DNS | R28: 42 | AC28: 0 | AD28: 0 | AE28: 0 | AH28: 0 | AI28: 0 | AJ28: 0 | AM28: 0 | AN28: 0 | AO28: 0 | AR28: 0 | AS28: 0 | AT28: 0 | AV28: 8 | AW28: 32 | AX28: 5 | AY28: 37 | BA28: DNS | BB28: 0 | BC28: 5 | BD28: 5 | BG28: 0 | BH28: 0 | BI28: 0 | BL28: 0 | BM28: 0 | BN28: 0 | BP28: 24 | BQ28: 7 | BR28: 0 | BS28: 0 | BT28: 0 | BU28: 0 | BV28: 0 | BW28: 0 | BX28: 1 | BY28: 0
A29: 21 | C29: Hanssen | D29: Caroline | E29: Njård | F29: =IF(G29<5,"",(R29-SUM(SMALL(S29:Z29,{1;2;3})))) ->  | G29: 2 | M29: 9 | N29: DNS | R29: 39 | AC29: 0 | AD29: 0 | AE29: 0 | AH29: 0 | AI29: 0 | AJ29: 0 | AM29: 0 | AN29: 0 | AO29: 0 | AQ29: DNS | AR29: 0 | AS29: 5 | AT29: 5 | AW29: 0 | AX29: 0 | AY29: 0 | BA29: 9 | BB29: 29 | BC29: 5 | BD29: 34 | BG29: 0 | BH29: 0 | BI29: 0 | BL29: 0 | BM29: 0 | BN29: 0 | BP29: 25 | BQ29: 6 | BR29: 0 | BS29: 0 | BT29: 0 | BU29: 0 | BV29: 0 | BW29: 0 | BX29: 1 | BY29: 0
A30: 21 | C30: Schram | D30: Iben | E30: Njård | F30: =IF(G30<5,"",(R30-SUM(SMALL(S30:Z30,{1;2;3})))) ->  | G30: 2 | M30: DNS | N30: 12 | R30: 32 | AC30: 0 | AD30: 0 | AE30: 0 | AH30: 0 | AI30: 0 | AJ30: 0 | AM30: 0 | AN30: 0 | AO30: 0 | AQ30: 12 | AR30: 22 | AS30: 5 | AT30: 27 | AW30: 0 | AX30: 0 | AY30: 0 | BA30: DNS | BB30: 0 | BC30: 5 | BD30: 5 | BG30: 0 | BH30: 0 | BI30: 0 | BL30: 0 | BM30: 0 | BN30: 0 | BP30: 26 | BQ30: 5 | BR30: 0 | BS30: 0 | BT30: 0 | BU30: 0 | BV30: 0 | BW30: 0 | BX30: 1 | BY30: 0
A31: 21 | C31: Oppebøen | D31: Ingrid | E31: Heming | F31: =IF(G31<5,"",(R31-SUM(SMALL(S31:Z31,{1;2;3})))) ->  | G31: 1 | M31: 11 | R31: 29 | AC31: 0 | AD31: 0 | AE31: 0 | AH31: 0 | AI31: 0 | AJ31: 0 | AM31: 0 | AN31: 0 | AO31: 0 | AR31: 0 | AS31: 0 | AT31: 0 | AW31: 0 | AX31: 0 | AY31: 0 | BA31: 11 | BB31: 24 | BC31: 5 | BD31: 29 | BG31: 0 | BH31: 0 | BI31: 0 | BL31: 0 | BM31: 0 | BN31: 0 | BP31: 27 | BQ31: 4 | BR31: 0 | BS31: 0 | BT31: 0 | BU31: 0 | BV31: 0 | BW31: 0 | BX31: 0 | BY31: 1
A32: 21 | C32: Danielsen | D32: Henriette | E32: Heming | F32: =IF(G32<5,"",(R32-SUM(SMALL(S32:Z32,{1;2;3})))) ->  | G32: 1 | M32: 15 | R32: 21 | AC32: 0 | AD32: 0 | AE32: 0 | AH32: 0 | AI32: 0 | AJ32: 0 | AM32: 0 | AN32: 0 | AO32: 0 | AR32: 0 | AS32: 0 | AT32: 0 | AW32: 0 | AX32: 0 | AY32: 0 | BA32: 15 | BB32: 16 | BC32: 5 | BD32: 21 | BG32: 0 | BH32: 0 | BI32: 0 | BL32: 0 | BM32: 0 | BN32: 0 | BP32: 28 | BQ32: 3 | BR32: 0 | BS32: 0 | BT32: 0 | BU32: 0 | BV32: 0 | BW32: 0 | BX32: 0 | BY32: 1
A33: 21 | C33: Grønvold | D33: Sanna | E33: Heming | F33: =IF(G33<5,"",(R33-SUM(SMALL(S33:Z33,{1;2;3})))) ->  | G33: 3 | I33: DSQ | L33: DNS | M33: DNS | R33: 15 | AB33: DSQ | AC33: 0 | AD33: 5 | AE33: 5 | AH33: 0 | AI33: 0 | AJ33: 0 | AM33: 0 | AN33: 0 | AO33: 0 | AR33: 0 | AS33: 0 | AT33: 0 | AV33: DNS | AW33: 0 | AX33: 5 | AY33: 5 | BA33: DNS | BB33: 0 | BC33: 5 | BD33: 5 | BG33: 0 | BH33: 0 | BI33: 0 | BL33: 0 | BM33: 0 | BN33: 0 | BP33: 29 | BQ33: 2 | BR33: 0 | BS33: 0 | BT33: 0 | BU33: 0 | BV33: 0 | BW33: 1 | BX33: 0 | BY33: 0
A34: 21 | C34: Hansen | D34: Nora | E34: Heming | F34: =IF(G34<5,"",(R34-SUM(SMALL(S34:Z34,{1;2;3})))) ->  | G34: 2 | L34: DNS | M34: DNS | R34: 10 | AC34: 0 | AD34: 0 | AE34: 0 | AH34: 0 | AI34: 0 | AJ34: 0 | AM34: 0 | AN34: 0 | AO34: 0 | AR34: 0 | AS34: 0 | AT34: 0 | AV34: DNS | AW34: 0 | AX34: 5 | AY34: 5 | BA34: DNS | BB34: 0 | BC34: 5 | BD34: 5 | BG34: 0 | BH34: 0 | BI34: 0 | BL34: 0 | BM34: 0 | BN34: 0 | BP34: 30 | BQ34: 1 | BR34: 0 | BS34: 0 | BT34: 0 | BU34: 0 | BV34: 0 | BW34: 0 | BX34: 1 | BY34: 0
A35: 21 | C35: Bøhmer | D35: Kristin | E35: Heming | F35: =IF(G35<5,"",(R35-SUM(SMALL(S35:Z35,{1;2;3})))) ->  | G35: 1 | L35: DNS | R35: 5 | AC35: 0 | AD35: 0 | AE35: 0 | AH35: 0 | AI35: 0 | AJ35: 0 | AM35: 0 | AN35: 0 | AO35: 0 | AR35: 0 | AS35: 0 | AT35: 0 | AV35: DNS | AW35: 0 | AX35: 5 | AY35: 5 | BB35: 0 | BC35: 0 | BD35: 0 | BG35: 0 | BH35: 0 | BI35: 0 | BL35: 0 | BM35: 0 | BN35: 0 | BP35: 31 | BQ35: 0 | BR35: 0 | BS35: 0 | BT35: 0 | BU35: 0 | BV35: 0 | BW35: 0 | BX35: 0 | BY35: 1
A36: 21 | C36: Riiber | D36: Juline | E36: Heming | F36: =IF(G36<5,"",(R36-SUM(SMALL(S36:Z36,{1;2;3})))) ->  | G36: 1 | L36: DNS | R36: 5 | AC36: 0 | AD36: 0 | AE36: 0 | AH36: 0 | AI36: 0 | AJ36: 0 | AM36: 0 | AN36: 0 | AO36: 0 | AR36: 0 | AS36: 0 | AT36: 0 | AV36: DNS | AW36: 0 | AX36: 5 | AY36: 5 | BB36: 0 | BC36: 0 | BD36: 0 | BG36: 0 | BH36: 0 | BI36: 0 | BL36: 0 | BM36: 0 | BN36: 0 | BP36: 32 | BQ36: 0 | BR36: 0 | BS36: 0 | BT36: 0 | BU36: 0 | BV36: 0 | BW36: 0 | BX36: 0 | BY36: 1
A37: =IF(F37<F36,BP37,A36) -> 21 | F37: =IF(G37<5,"",(R37-SUM(SMALL(S37:Z37,{1;2;3})))) ->  | G37: =(IF(AD37=5,1,0)+IF(AI37=5,1,0)+IF(AN37=5,1,0)+IF(AX37=5,1,0)+IF(BC37=5,1,0)+IF(AS37=5,1,0)+IF(BH37=5,1,0)+IF(BM37=5,1,0)) -> 0 | R37: =AE37+AJ37+AO37+AY37+BD37+AT37+BI37+BN37 -> 0 | AC37: 0 | AD37: =IF(AB37<>"",5,0) -> 0 | AE37: =AC37+AD37 -> 0 | AH37: 0 | AI37: =IF(AG37<>"",5,0) -> 0 | AJ37: =AH37+AI37 -> 0 | AM37: 0 | AN37: =IF(AL37<>"",5,0) -> 0 | AO37: =AM37+AN37 -> 0 | AR37: 0 | AS37: =IF(AQ37<>"",5,0) -> 0 | AT37: =AR37+AS37 -> 0 | AW37: 0 | AX37: =IF(AV37<>"",5,0) -> 0 | AY37: =AW37+AX37 -> 0 | BB37: 0 | BC37: =IF(BA37<>"",5,0) -> 0 | BD37: =BB37+BC37 -> 0 | BG37: 0 | BH37: =IF(BF37<>"",5,0) -> 0 | BI37: =BG37+BH37 -> 0 | BL37: 0 | BM37: =IF(BK37<>"",5,0) -> 0 | BN37: =BL37+BM37 -> 0 | BP37: 33 | BQ37: 0 | BR37: 0 | BS37: 0 | BT37: 0 | BU37: 0 | BV37: 0 | BW37: 0 | BX37: 0 | BY37: 0
A38: 21 | F38: =IF(G38<5,"",(R38-SUM(SMALL(S38:Z38,{1;2;3})))) ->  | G38: 0 | R38: 0 | AC38: 0 | AD38: 0 | AE38: 0 | AH38: 0 | AI38: 0 | AJ38: 0 | AM38: 0 | AN38: 0 | AO38: 0 | AR38: 0 | AS38: 0 | AT38: 0 | AW38: 0 | AX38: 0 | AY38: 0 | BB38: 0 | BC38: 0 | BD38: 0 | BG38: 0 | BH38: 0 | BI38: 0 | BL38: 0 | BM38: 0 | BN38: 0 | BP38: 34 | BQ38: 0 | BR38: 0 | BS38: 0 | BT38: 0 | BU38: 0 | BV38: 0 | BW38: 0 | BX38: 0 | BY38: 0
A39: 21 | F39: =IF(G39<5,"",(R39-SUM(SMALL(S39:Z39,{1;2;3})))) ->  | G39: 0 | R39: 0 | S39: =IF($G39>=5,IF(AC39="","",AC39),"") ->  | T39: =IF($G39>=5,IF(AH39="","",AH39),"") ->  | U39: =IF($G39>=5,IF(AM39="","",AM39),"") ->  | V39: =IF($G39>=5,IF(AW39="","",AW39),"") ->  | W39: =IF($G39>=5,IF(BB39="","",BB39),"") ->  | X39: =IF($G39>=5,IF(AR39="","",AR39),"") ->  | Y39: =IF($G39>=5,IF(BG39="","",BG39),"") ->  | Z39: =IF($G39>=5,IF(BL39="","",BL39),"") ->  | AC39: 0 | AD39: 0 | AE39: 0 | AH39: 0 | AI39: 0 | AJ39: 0 | AM39: 0 | AN39: 0 | AO39: 0 | AR39: 0 | AS39: 0 | AT39: 0 | AW39: 0 | AX39: 0 | AY39: 0 | BB39: 0 | BC39: 0 | BD39: 0 | BG39: 0 | BH39: 0 | BI39: 0 | BL39: 0 | BM39: 0 | BN39: 0 | BP39: 35 | BQ39: 0 | BR39: 0 | BS39: 0 | BT39: 0 | BU39: 0 | BV39: 0 | BW39: 0 | BX39: 0 | BY39: 0
A40: 21 | F40: =IF(G40<5,"",(R40-SUM(SMALL(S40:Z40,{1;2;3})))) ->  | G40: 0 | R40: 0 | AC40: 0 | AD40: 0 | AE40: 0 | AH40: 0 | AI40: 0 | AJ40: 0 | AM40: 0 | AN40: 0 | AO40: 0 | AR40: 0 | AS40: 0 | AT40: 0 | AW40: 0 | AX40: 0 | AY40: 0 | BB40: 0 | BC40: 0 | BD40: 0 | BG40: 0 | BH40: 0 | BI40: 0 | BL40: 0 | BM40: 0 | BN40: 0 | BP40: 36 | BQ40: 0 | BR40: 0 | BS40: 0 | BT40: 0 | BU40: 0 | BV40: 0 | BW40: 0 | BX40: 0 | BY40: 0
A41: 21 | F41: =IF(G41<5,"",(R41-SUM(SMALL(S41:Z41,{1;2;3})))) ->  | G41: 0 | R41: 0 | AC41: 0 | AD41: 0 | AE41: 0 | AH41: 0 | AI41: 0 | AJ41: 0 | AM41: 0 | AN41: 0 | AO41: 0 | AR41: 0 | AS41: 0 | AT41: 0 | AW41: 0 | AX41: 0 | AY41: 0 | BB41: 0 | BC41: 0 | BD41: 0 | BG41: 0 | BH41: 0 | BI41: 0 | BL41: 0 | BM41: 0 | BN41: 0 | BP41: 37 | BQ41: 0 | BR41: 0 | BS41: 0 | BT41: 0 | BU41: 0 | BV41: 0 | BW41: 0 | BX41: 0 | BY41: 0
A42: 21 | F42: =IF(G42<5,"",(R42-SUM(SMALL(S42:Z42,{1;2;3})))) ->  | G42: 0 | R42: 0 | AC42: 0 | AD42: 0 | AE42: 0 | AH42: 0 | AI42: 0 | AJ42: 0 | AM42: 0 | AN42: 0 | AO42: 0 | AR42: 0 | AS42: 0 | AT42: 0 | AW42: 0 | AX42: 0 | AY42: 0 | BB42: 0 | BC42: 0 | BD42: 0 | BG42: 0 | BH42: 0 | BI42: 0 | BL42: 0 | BM42: 0 | BN42: 0 | BP42: 38 | BQ42: 0 | BR42: 0 | BS42: 0 | BT42: 0 | BU42: 0 | BV42: 0 | BW42: 0 | BX42: 0 | BY42: 0
A43: 21 | F43: =IF(G43<5,"",(R43-SUM(SMALL(S43:Z43,{1;2;3})))) ->  | G43: 0 | R43: 0 | AC43: 0 | AD43: 0 | AE43: 0 | AH43: 0 | AI43: 0 | AJ43: 0 | AM43: 0 | AN43: 0 | AO43: 0 | AR43: 0 | AS43: 0 | AT43: 0 | AW43: 0 | AX43: 0 | AY43: 0 | BB43: 0 | BC43: 0 | BD43: 0 | BG43: 0 | BH43: 0 | BI43: 0 | BL43: 0 | BM43: 0 | BN43: 0 | BP43: 39 | BQ43: 0 | BR43: 0 | BS43: 0 | BT43: 0 | BU43: 0 | BV43: 0 | BW43: 0 | BX43: 0 | BY43: 0
A44: 21 | F44: =IF(G44<5,"",(R44-SUM(SMALL(S44:Z44,{1;2;3})))) ->  | G44: 0 | R44: 0 | AC44: 0 | AD44: 0 | AE44: 0 | AH44: 0 | AI44: 0 | AJ44: 0 | AM44: 0 | AN44: 0 | AO44: 0 | AR44: 0 | AS44: 0 | AT44: 0 | AW44: 0 | AX44: 0 | AY44: 0 | BB44: 0 | BC44: 0 | BD44: 0 | BG44: 0 | BH44: 0 | BI44: 0 | BL44: 0 | BM44: 0 | BN44: 0 | BP44: 40 | BQ44: 0 | BR44: 0 | BS44: 0 | BT44: 0 | BU44: 0 | BV44: 0 | BW44: 0 | BX44: 0 | BY44: 0
A45: 21 | F45: =IF(G45<5,"",(R45-SUM(SMALL(S45:Z45,{1;2;3})))) ->  | G45: 0 | R45: 0 | AC45: 0 | AD45: 0 | AE45: 0 | AH45: 0 | AI45: 0 | AJ45: 0 | AM45: 0 | AN45: 0 | AO45: 0 | AR45: 0 | AS45: 0 | AT45: 0 | AW45: 0 | AX45: 0 | AY45: 0 | BB45: 0 | BC45: 0 | BD45: 0 | BG45: 0 | BH45: 0 | BI45: 0 | BL45: 0 | BM45: 0 | BN45: 0 | BP45: 41 | BQ45: 0 | BR45: 0 | BS45: 0 | BT45: 0 | BU45: 0 | BV45: 0 | BW45: 0 | BX45: 0 | BY45: 0
A46: 21 | F46: =IF(G46<5,"",(R46-SUM(SMALL(S46:Z46,{1;2;3})))) ->  | G46: 0 | R46: 0 | AC46: 0 | AD46: 0 | AE46: 0 | AH46: 0 | AI46: 0 | AJ46: 0 | AM46: 0 | AN46: 0 | AO46: 0 | AR46: 0 | AS46: 0 | AT46: 0 | AW46: 0 | AX46: 0 | AY46: 0 | BB46: 0 | BC46: 0 | BD46: 0 | BG46: 0 | BH46: 0 | BI46: 0 | BL46: 0 | BM46: 0 | BN46: 0 | BP46: 42 | BQ46: 0 | BR46: 0 | BS46: 0 | BT46: 0 | BU46: 0 | BV46: 0 | BW46: 0 | BX46: 0 | BY46: 0
A47: 21 | F47: =IF(G47<5,"",(R47-SUM(SMALL(S47:Z47,{1;2;3})))) ->  | G47: 0 | N47: =IF(BA47="","",BA47) ->  | O47: =IF(AQ47="","",AQ47) ->  | P47: =IF(BF47="","",BF47) ->  | R47: 0 | AC47: 0 | AD47: 0 | AE47: 0 | AH47: 0 | AI47: 0 | AJ47: 0 | AM47: 0 | AN47: 0 | AO47: 0 | AR47: 0 | AS47: 0 | AT47: 0 | AW47: 0 | AX47: 0 | AY47: 0 | BB47: 0 | BC47: 0 | BD47: 0 | BG47: 0 | BH47: 0 | BI47: 0 | BL47: 0 | BM47: 0 | BN47: 0 | BP47: 43 | BQ47: 0 | BR47: 0 | BS47: 0 | BT47: 0 | BU47: 0 | BV47: 0 | BW47: 0 | BX47: 0 | BY47: 0
A48: 21 | F48: =IF(G48<5,"",(R48-SUM(SMALL(S48:Z48,{1;2;3})))) ->  | G48: 0 | R48: 0 | AC48: 0 | AD48: 0 | AE48: 0 | AH48: 0 | AI48: 0 | AJ48: 0 | AM48: 0 | AN48: 0 | AO48: 0 | AR48: 0 | AS48: 0 | AT48: 0 | AW48: 0 | AX48: 0 | AY48: 0 | BB48: 0 | BC48: 0 | BD48: 0 | BG48: 0 | BH48: 0 | BI48: 0 | BL48: 0 | BM48: 0 | BN48: 0 | BP48: 44 | BQ48: 0 | BR48: 0 | BS48: 0 | BT48: 0 | BU48: 0 | BV48: 0 | BW48: 0 | BX48: 0 | BY48: 0
A49: 21 | F49: =IF(G49<5,"",(R49-SUM(SMALL(S49:Z49,{1;2;3})))) ->  | G49: 0 | R49: 0 | AC49: 0 | AD49: 0 | AE49: 0 | AH49: 0 | AI49: 0 | AJ49: 0 | AM49: 0 | AN49: 0 | AO49: 0 | AR49: 0 | AS49: 0 | AT49: 0 | AW49: 0 | AX49: 0 | AY49: 0 | BB49: 0 | BC49: 0 | BD49: 0 | BG49: 0 | BH49: 0 | BI49: 0 | BL49: 0 | BM49: 0 | BN49: 0 | BP49: 45 | BQ49: 0 | BR49: 0 | BS49: 0 | BT49: 0 | BU49: 0 | BV49: 0 | BW49: 0 | BX49: 0 | BY49: 0
A50: 21 | F50: =IF(G50<5,"",(R50-SUM(SMALL(S50:Z50,{1;2;3})))) ->  | G50: 0 | R50: 0 | AC50: 0 | AD50: 0 | AE50: 0 | AH50: 0 | AI50: 0 | AJ50: 0 | AM50: 0 | AN50: 0 | AO50: 0 | AR50: 0 | AS50: 0 | AT50: 0 | AW50: 0 | AX50: 0 | AY50: 0 | BB50: 0 | BC50: 0 | BD50: 0 | BG50: 0 | BH50: 0 | BI50: 0 | BL50: 0 | BM50: 0 | BN50: 0 | BP50: 46 | BQ50: 0 | BR50: 0 | BS50: 0 | BT50: 0 | BU50: 0 | BV50: 0 | BW50: 0 | BX50: 0 | BY50: 0
A51: 21 | F51: =IF(G51<5,"",(R51-SUM(SMALL(S51:Z51,{1;2;3})))) ->  | G51: 0 | R51: 0 | AC51: 0 | AD51: 0 | AE51: 0 | AH51: 0 | AI51: 0 | AJ51: 0 | AM51: 0 | AN51: 0 | AO51: 0 | AR51: 0 | AS51: 0 | AT51: 0 | AW51: 0 | AX51: 0 | AY51: 0 | BB51: 0 | BC51: 0 | BD51: 0 | BG51: 0 | BH51: 0 | BI51: 0 | BL51: 0 | BM51: 0 | BN51: 0 | BP51: 47 | BQ51: 0 | BR51: 0 | BS51: 0 | BT51: 0 | BU51: 0 | BV51: 0 | BW51: 0 | BX51: 0 | BY51: 0
A52: 21 | F52: =IF(G52<5,"",(R52-SUM(SMALL(S52:Z52,{1;2;3})))) ->  | G52: 0 | R52: 0 | AC52: 0 | AD52: 0 | AE52: 0 | AH52: 0 | AI52: 0 | AJ52: 0 | AM52: 0 | AN52: 0 | AO52: 0 | AR52: 0 | AS52: 0 | AT52: 0 | AW52: 0 | AX52: 0 | AY52: 0 | BB52: 0 | BC52: 0 | BD52: 0 | BG52: 0 | BH52: 0 | BI52: 0 | BL52: 0 | BM52: 0 | BN52: 0 | BP52: 48 | BQ52: 0 | BR52: 0 | BS52: 0 | BT52: 0 | BU52: 0 | BV52: 0 | BW52: 0 | BX52: 0 | BY52: 0
A53: 21 | F53: =IF(G53<5,"",(R53-SUM(SMALL(S53:Z53,{1;2;3})))) ->  | G53: 0 | R53: 0 | AC53: 0 | AD53: 0 | AE53: 0 | AH53: 0 | AI53: 0 | AJ53: 0 | AM53: 0 | AN53: 0 | AO53: 0 | AR53: 0 | AS53: 0 | AT53: 0 | AW53: 0 | AX53: 0 | AY53: 0 | BB53: 0 | BC53: 0 | BD53: 0 | BG53: 0 | BH53: 0 | BI53: 0 | BL53: 0 | BM53: 0 | BN53: 0 | BP53: 49 | BQ53: 0 | BR53: 0 | BS53: 0 | BT53: 0 | BU53: 0 | BV53: 0 | BW53: 0 | BX53: 0 | BY53: 0
F54: =IF(G54<5,"",(R54-SUM(SMALL(S54:Z54,{1;2;3})))) ->  | I54: =IF(AB54="","",AB54) ->  | J54: =IF(AG54="","",AG54) ->  | K54: =IF(AL54="","",AL54) ->  | L54: =IF(AV54="","",AV54) ->  | M54: =IF(BA54="","",BA54) ->  | N54: =IF(AQ54="","",AQ54) ->  | O54: =IF(BF54="","",BF54) ->  | P54: =IF(BK54="","",BK54) ->  | S54: =IF($G54>=7,IF(AC54="","",AC54),"") ->  | T54: =IF($G54>=7,IF(AH54="","",AH54),"") ->  | U54: =IF($G54>=7,IF(AM54="","",AM54),"") ->  | V54: =IF($G54>=7,IF(AW54="","",AW54),"") ->  | W54: =IF($G54>=7,IF(BB54="","",BB54),"") ->  | X54: =IF($G54>=7,IF(AR54="","",AR54),"") ->  | Y54: =IF($G54>=7,IF(BG54="","",BG54),"") ->  | Z54: =IF($G54>=7,IF(BL54="","",BL54),"") -> 
I55: =IF(AB55="","",AB55) ->  | J55: =IF(AG55="","",AG55) ->  | K55: =IF(AL55="","",AL55) ->  | L55: =IF(AV55="","",AV55) ->  | M55: =IF(BA55="","",BA55) ->  | O55: =IF(BF55="","",BF55) ->  | P55: =IF(BK55="","",BK55) -> 

Sheet G12 2022
A1: Resultatliste Oslo Cup 2022 - Gutter 12 år
I3: IRS Rennet | J3: Ljan Rennet | K3: Njård Rennet | L3: Ready Rennet | M3: Telenor Arena Cup | N3: Kidsbühel | O3: Oslo Alpinfestival SL | P3: Oslo Alpinfestival SSL | S3: IRS Rennet | T3: Ljan Rennet | U3: Njård Rennet | V3: Ready Rennet | W3: Telenor Arena Cup | X3: Kidsbühel | Y3: Oslo Alpinfestival SL | Z3: Oslo Alpinfestival SSL | AB3: --------IRS Rennet---------- | AG3: ----------Ljan Rennet--------- | AL3: ------Kidsbühel-------- | AQ3: --------Njård Rennet---------- | AV3: --------Ready Rennet--------- | BA3: -----Telenor Arena Cup---- | BF3: ---Oslo Alpinfestival SL--- | BK3: ---Oslo Alpinfestival SSL---
G4: Antall | I4: 2022-01-29 | J4: 2022-01-30 | K4: 2022-02-04 | L4: 2022-02-05 | M4: 2022-02-16 | N4: 2022-02-02 | O4: 2022-03-12 | P4: 2022-03-13 | R4: Poeng | S4: 2022-01-29 | T4: 2022-01-30 | U4: 2022-02-04 | V4: 2022-02-05 | W4: 2022-02-16 | X4: 2022-02-02 | Y4: 2022-03-12 | Z4: 2022-03-13 | AC4: --------Poeng-------- | AH4: --------Poeng-------- | AM4: -------Poeng--------- | AR4: -------Poeng--------- | AW4: -------Poeng--------- | BB4: -------Poeng--------- | BG4: -------Poeng--------- | BL4: -------Poeng--------- | BR4: Løpere med | BS4: Løpere med | BT4: Løpere med | BU4: Løpere med | BV4: Løpere med | BW4: Løpere med | BX4: Løpere med | BY4: Løpere med
A5: Plass | B5: Plass | C5: Etternavn | D5: Fornavn | E5: Klubb | F5: Poeng | G5: renn | I5: ------------------------------Plassering i rennene--------------------------------- | R5: brutto | S5: ----------------Resultatpoeng hvis mer enn 5 renn---------------- | AB5: Plass | AC5: Res. | AD5: Del. | AE5: Tot. | AG5: Plass | AH5: Res. | AI5: Del. | AJ5: Tot. | AL5: Plass | AM5: Res. | AN5: Del. | AO5: Tot. | AQ5: Plass | AR5: Res. | AS5: Del. | AT5: Tot. | AV5: Plass | AW5: Res. | AX5: Del. | AY5: Tot. | BA5: Plass | BB5: Res. | BC5: Del. | BD5: Tot. | BF5: Plass | BG5: Res. | BH5: Del. | BI5: Tot. | BK5: Plass | BL5: Res. | BM5: Del. | BN5: Tot. | BP5: Plass | BQ5: Poeng | BR5: 8 renn | BS5: 7 renn | BT5: 6 renn | BU5: 5 renn | BV5: 4 renn | BW5: 3 renn | BX5: 2 renn | BY5: kun 1 renn
A6: =IF(F6<F5,BP6,A5) -> 1 | B6: 1 | C6: Myhrvold | D6: Aslak | E6: Ljan | F6: =IF(G6<5,"",(R6-SUM(SMALL(S6:Z6,{1;2;3})))) -> 360 | G6: =(IF(AD6=5,1,0)+IF(AI6=5,1,0)+IF(AS6=5,1,0)+IF(AX6=5,1,0)+IF(BC6=5,1,0)+IF(AN6=5,1,0)+IF(BH6=5,1,0)+IF(BM6=5,1,0)) -> 7 | I6: =IF(AB6="","",AB6) -> 2 | J6: =IF(AG6="","",AG6) -> 4 | K6: =IF(AQ6="","",AQ6) ->  | L6: =IF(AV6="","",AV6) -> 9 | M6: =IF(BA6="","",BA6) -> 5 | N6: =IF(AL6="","",AL6) -> 4 | O6: =IF(BF6="","",BF6) -> 1 | P6: =IF(BK6="","",BK6) -> DSQ | R6: =AE6+AJ6+AT6+AY6+BD6+AO6+BI6+BN6 -> 389 | S6: =IF($G6>=5,IF(AC6="","",AC6),"") -> 80 | T6: =IF($G6>=5,IF(AH6="","",AH6),"") -> 50 | U6: =IF($G6>=5,IF(AR6="","",AR6),"") -> 0 | V6: =IF($G6>=5,IF(AW6="","",AW6),"") -> 29 | W6: =IF($G6>=5,IF(BB6="","",BB6),"") -> 45 | X6: =IF($G6>=5,IF(AM6="","",AM6),"") -> 50 | Y6: =IF($G6>=5,IF(BG6="","",BG6),"") -> 100 | Z6: =IF($G6>=5,IF(BL6="","",BL6),"") -> 0 | AB6: 2 | AC6: =IF(ISNUMBER(AB6),(VLOOKUP(AB6,$BP$6:$BQ$40,2)),0) -> 80 | AD6: =IF(AB6<>"",5,0) -> 5 | AE6: =AC6+AD6 -> 85 | AG6: 4 | AH6: =IF(ISNUMBER(AG6),(VLOOKUP(AG6,$BP$6:$BQ$40,2)),0) -> 50 | AI6: =IF(AG6<>"",5,0) -> 5 | AJ6: =AH6+AI6 -> 55 | AL6: 4 | AM6: =IF(ISNUMBER(AL6),(VLOOKUP(AL6,$BP$6:$BQ$40,2)),0) -> 50 | AN6: =IF(AL6<>"",5,0) -> 5 | AO6: =AM6+AN6 -> 55 | AR6: =IF(ISNUMBER(AQ6),(VLOOKUP(AQ6,$BP$6:$BQ$40,2)),0) -> 0 | AS6: =IF(AQ6<>"",5,0) -> 0 | AT6: =AR6+AS6 -> 0 | AV6: 9 | AW6: =IF(ISNUMBER(AV6),(VLOOKUP(AV6,$BP$6:$BQ$40,2)),0) -> 29 | AX6: =IF(AV6<>"",5,0) -> 5 | AY6: =AW6+AX6 -> 34 | BA6: 5 | BB6: =IF(ISNUMBER(BA6),(VLOOKUP(BA6,$BP$6:$BQ$40,2)),0) -> 45 | BC6: =IF(BA6<>"",5,0) -> 5 | BD6: =BB6+BC6 -> 50 | BF6: 1 | BG6: =IF(ISNUMBER(BF6),(VLOOKUP(BF6,$BP$6:$BQ$40,2)),0) -> 100 | BH6: =IF(BF6<>"",5,0) -> 5 | BI6: =BG6+BH6 -> 105 | BK6: DSQ | BL6: =IF(ISNUMBER(BK6),(VLOOKUP(BK6,$BP$6:$BQ$40,2)),0) -> 0 | BM6: =IF(BK6<>"",5,0) -> 5 | BN6: =BL6+BM6 -> 5 | BP6: 1 | BQ6: 100 | BR6: =IF($G6=8,1,0) -> 0 | BS6: =IF($G6=7,1,0) -> 1 | BT6: =IF($G6=6,1,0) -> 0 | BU6: =IF($G6=5,1,0) -> 0 | BV6: =IF($G6=4,1,0) -> 0 | BW6: =IF($G6=3,1,0) -> 0 | BX6: =IF($G6=2,1,0) -> 0 | BY6: =IF($G6=1,1,0) -> 0
A7: 2 | B7: 2 | C7: Falch | D7: Joachim | E7: Kjelsås | F7: =IF(G7<5,"",(R7-SUM(SMALL(S7:Z7,{1;2;3})))) -> 347 | G7: 5 | L7: 4 | M7: 8 | N7: 3 | O7: 2 | P7: 1 | R7: 347 | S7: 0 | T7: =IF($G7>=5,IF(AH7="","",AH7),"") -> 0 | U7: =IF($G7>=5,IF(AR7="","",AR7),"") -> 0 | V7: =IF($G7>=5,IF(AW7="","",AW7),"") -> 50 | W7: =IF($G7>=5,IF(BB7="","",BB7),"") -> 32 | X7: =IF($G7>=5,IF(AM7="","",AM7),"") -> 60 | Y7: =IF($G7>=5,IF(BG7="","",BG7),"") -> 80 | Z7: =IF($G7>=5,IF(BL7="","",BL7),"") -> 100 | AC7: 0 | AD7: =IF(AB7<>"",5,0) -> 0 | AE7: 0 | AH7: 0 | AI7: 0 | AJ7: 0 | AL7: 3 | AM7: 60 | AN7: 5 | AO7: 65 | AR7: 0 | AS7: 0 | AT7: 0 | AV7: 4 | AW7: 50 | AX7: 5 | AY7: 55 | BA7: 8 | BB7: 32 | BC7: 5 | BD7: 37 | BF7: 2 | BG7: 80 | BH7: 5 | BI7: 85 | BK7: 1 | BL7: 100 | BM7: 5 | BN7: 105 | BP7: 2 | BQ7: 80 | BR7: 0 | BS7: 0 | BT7: 0 | BU7: 1 | BV7: 0 | BW7: 0 | BX7: 0 | BY7: 0
A8: 3 | B8: 3 | C8: Aadnesen | D8: Jesper | E8: Heming | F8: =IF(G8<5,"",(R8-SUM(SMALL(S8:Z8,{1;2;3})))) -> 325 | G8: 5 | I8: DNS | J8: DNS | L8: 1 | M8: 1 | N8: 1 | O8: DNS | R8: 325 | S8: 0 | T8: 0 | U8: 0 | V8: 100 | W8: 100 | X8: 100 | Y8: 0 | Z8: 0 | AB8: DNS | AC8: 0 | AD8: =IF(AB7<>"",5,0) -> 0 | AE8: 0 | AG8: DNS | AH8: 0 | AI8: 5 | AJ8: 5 | AL8: 1 | AM8: 100 | AN8: 5 | AO8: 105 | AR8: 0 | AS8: 0 | AT8: 0 | AV8: 1 | AW8: 100 | AX8: 5 | AY8: 105 | BA8: 1 | BB8: 100 | BC8: 5 | BD8: 105 | BF8: DNS | BG8: 0 | BH8: 5 | BI8: 5 | BL8: 0 | BM8: 0 | BN8: 0 | BP8: 3 | BQ8: 60 | BR8: 0 | BS8: 0 | BT8: 0 | BU8: 1 | BV8: 0 | BW8: 0 | BX8: 0 | BY8: 0
A9: 3 | C9: Wigsnæs Ulrichsen | D9: Didrik | E9: Heming | F9: =IF(G9<5,"",(R9-SUM(SMALL(S9:Z9,{1;2;3})))) ->  | G9: 4 | I9: DSQ | J9: 1 | L9: 2 | M9: 2 | R9: 280 | AB9: DSQ | AC9: 0 | AD9: =IF(AB9<>"",5,0) -> 5 | AE9: 5 | AG9: 1 | AH9: 100 | AI9: 5 | AJ9: 105 | AM9: 0 | AN9: 0 | AO9: 0 | AR9: 0 | AS9: 0 | AT9: 0 | AV9: 2 | AW9: 80 | AX9: 5 | AY9: 85 | BA9: 2 | BB9: 80 | BC9: 5 | BD9: 85 | BG9: 0 | BH9: 0 | BI9: 0 | BL9: 0 | BM9: 0 | BN9: 0 | BP9: 4 | BQ9: 50 | BR9: 0 | BS9: 0 | BT9: 0 | BU9: 0 | BV9: 1 | BW9: 0 | BX9: 0 | BY9: 0
A10: 5 | B10: 4 | C10: Sandaas | D10: Terkel | E10: Heming | F10: =IF(G10<5,"",(R10-SUM(SMALL(S10:Z10,{1;2;3})))) -> 245 | G10: 5 | I10: DSQ | J10: 2 | L10: DNS | M10: 3 | N10: 2 | R10: 245 | S10: 0 | T10: 80 | U10: 0 | V10: 0 | W10: 60 | X10: 80 | Y10: 0 | Z10: 0 | AB10: DSQ | AC10: 0 | AD10: =IF(AB10<>"",5,0) -> 5 | AE10: 5 | AG10: 2 | AH10: 80 | AI10: 5 | AJ10: 85 | AL10: 2 | AM10: 80 | AN10: 5 | AO10: 85 | AR10: 0 | AS10: 0 | AT10: 0 | AV10: DNS | AW10: 0 | AX10: 5 | AY10: 5 | BA10: 3 | BB10: 60 | BC10: 5 | BD10: 65 | BG10: 0 | BH10: 0 | BI10: 0 | BL10: 0 | BM10: 0 | BN10: 0 | BP10: 5 | BQ10: 45 | BR10: 0 | BS10: 0 | BT10: 0 | BU10: 1 | BV10: 0 | BW10: 0 | BX10: 0 | BY10: 0
A11: 6 | B11: 5 | C11: Kulseng-Hanssen | D11: William | E11: Heming | F11: =IF(G11<5,"",(R11-SUM(SMALL(S11:Z11,{1;2;3})))) -> 231 | G11: 7 | I11: 1 | J11: DSQ | L11: DNS | M11: 7 | N11: DNS | O11: 3 | P11: DNS | R11: 231 | S11: 100 | T11: 0 | U11: 0 | V11: 0 | W11: 36 | X11: 0 | Y11: 60 | Z11: 0 | AB11: 1 | AC11: 100 | AD11: =IF(AB11<>"",5,0) -> 5 | AE11: 105 | AG11: DSQ | AH11: 0 | AI11: 5 | AJ11: 5 | AL11: DNS | AM11: 0 | AN11: 5 | AO11: 5 | AR11: 0 | AS11: 0 | AT11: 0 | AV11: DNS | AW11: 0 | AX11: 5 | AY11: 5 | BA11: 7 | BB11: 36 | BC11: 5 | BD11: 41 | BF11: 3 | BG11: 60 | BH11: 5 | BI11: 65 | BK11: DNS | BL11: 0 | BM11: 5 | BN11: 5 | BP11: 6 | BQ11: 40 | BR11: 0 | BS11: 1 | BT11: 0 | BU11: 0 | BV11: 0 | BW11: 0 | BX11: 0 | BY11: 0
A12: 7 | B12: 6 | C12: Swenson | D12: Otto | E12: Ljan | F12: =IF(G12<5,"",(R12-SUM(SMALL(S12:Z12,{1;2;3})))) -> 217 | G12: 7 | I12: 3 | J12: 5 | L12: 5 | M12: DNS | N12: 8 | O12: DNS | P12: DNS | R12: 217 | S12: 60 | T12: 45 | U12: 0 | V12: 45 | W12: 0 | X12: 32 | Y12: 0 | Z12: 0 | AB12: 3 | AC12: 60 | AD12: =IF(AB12<>"",5,0) -> 5 | AE12: 65 | AG12: 5 | AH12: 45 | AI12: 5 | AJ12: 50 | AL12: 8 | AM12: 32 | AN12: 5 | AO12: 37 | AR12: 0 | AS12: 0 | AT12: 0 | AV12: 5 | AW12: 45 | AX12: 5 | AY12: 50 | BA12: DNS | BB12: 0 | BC12: 5 | BD12: 5 | BF12: DNS | BG12: 0 | BH12: 5 | BI12: 5 | BK12: DNS | BL12: 0 | BM12: 5 | BN12: 5 | BP12: 7 | BQ12: 36 | BR12: 0 | BS12: 1 | BT12: 0 | BU12: 0 | BV12: 0 | BW12: 0 | BX12: 0 | BY12: 0
A13: 7 | B13: 7 | C13: Gautneb | D13: Axel | E13: Heming | F13: =IF(G13<5,"",(R13-SUM(SMALL(S13:Z13,{1;2;3})))) -> 250 | G13: 7 | I13: =IF(AB12="","",AB12) -> 3 | J13: DSQ | L13: 7 | M13: 11 | N13: 5 | O13: DSQ | P13: 4 | R13: 250 | S13: 60 | T13: 0 | U13: 0 | V13: 36 | W13: 24 | X13: 45 | Y13: 0 | Z13: 50 | AB13: DNS | AC13: =IF(ISNUMBER(AB12),(VLOOKUP(AB12,$BP$6:$BQ$40,2)),0) -> 60 | AD13: =IF(AB12<>"",5,0) -> 5 | AE13: 65 | AG13: DSQ | AH13: 0 | AI13: 5 | AJ13: 5 | AL13: 5 | AM13: 45 | AN13: 5 | AO13: 50 | AR13: 0 | AS13: 0 | AT13: 0 | AV13: 7 | AW13: 36 | AX13: 5 | AY13: 41 | BA13: 11 | BB13: 24 | BC13: 5 | BD13: 29 | BF13: DSQ | BG13: 0 | BH13: 5 | BI13: 5 | BK13: 4 | BL13: 50 | BM13: 5 | BN13: 55 | BP13: 8 | BQ13: 32 | BR13: 0 | BS13: 1 | BT13: 0 | BU13: 0 | BV13: 0 | BW13: 0 | BX13: 0 | BY13: 0
A14: 9 | B14: 8 | C14: Bang-Hansen | D14: Mats | E14: Kjelsås | F14: =IF(G14<5,"",(R14-SUM(SMALL(S14:Z14,{1;2;3})))) -> 181 | G14: 7 | I14: =IF(AB14="","",AB14) -> DSQ | J14: DSQ | L14: 13 | M14: 10 | N14: 6 | O14: DSQ | P14: 3 | R14: 181 | S14: 0 | T14: 0 | U14: 0 | V14: 20 | W14: 26 | X14: 40 | Y14: 0 | Z14: 60 | AB14: DSQ | AC14: =IF(ISNUMBER(AB14),(VLOOKUP(AB14,$BP$6:$BQ$40,2)),0) -> 0 | AD14: =IF(AB14<>"",5,0) -> 5 | AE14: 5 | AG14: DSQ | AH14: 0 | AI14: 5 | AJ14: 5 | AL14: 6 | AM14: 40 | AN14: 5 | AO14: 45 | AR14: 0 | AS14: 0 | AT14: 0 | AV14: 13 | AW14: 20 | AX14: 5 | AY14: 25 | BA14: 10 | BB14: 26 | BC14: 5 | BD14: 31 | BF14: DSQ | BG14: 0 | BH14: 5 | BI14: 5 | BK14: 3 | BL14: 60 | BM14: 5 | BN14: 65 | BP14: 9 | BQ14: 29 | BR14: 0 | BS14: 1 | BT14: 0 | BU14: 0 | BV14: 0 | BW14: 0 | BX14: 0 | BY14: 0
A15: 10 | B15: 9 | C15: Torvund | D15: Albert | E15: Ljan | F15: =IF(G15<5,"",(R15-SUM(SMALL(S15:Z15,{1;2;3})))) -> 156 | G15: 6 | I15: =IF(AB15="","",AB15) -> DSQ | J15: DSQ | L15: 6 | M15: DNS | N15: 7 | O15: 4 | R15: 156 | S15: 0 | T15: 0 | U15: 0 | V15: 40 | W15: 0 | X15: 36 | Y15: 50 | Z15: 0 | AB15: DSQ | AC15: =IF(ISNUMBER(AB15),(VLOOKUP(AB15,$BP$6:$BQ$40,2)),0) -> 0 | AD15: =IF(AB15<>"",5,0) -> 5 | AE15: 5 | AG15: DSQ | AH15: 0 | AI15: 5 | AJ15: 5 | AL15: 7 | AM15: 36 | AN15: 5 | AO15: 41 | AR15: 0 | AS15: 0 | AT15: 0 | AV15: 6 | AW15: 40 | AX15: 5 | AY15: 45 | BA15: DNS | BB15: 0 | BC15: 5 | BD15: 5 | BF15: 4 | BG15: 50 | BH15: 5 | BI15: 55 | BL15: 0 | BM15: 0 | BN15: 0 | BP15: 10 | BQ15: 26 | BR15: 0 | BS15: 0 | BT15: 1 | BU15: 0 | BV15: 0 | BW15: 0 | BX15: 0 | BY15: 0
A16: 11 | B16: 10 | C16: Helset | D16: Mads | E16: Heming | F16: =IF(G16<5,"",(R16-SUM(SMALL(S16:Z16,{1;2;3})))) -> 135 | G16: 7 | I16: =IF(AB16="","",AB16) -> 4 | J16: DSQ | L16: DNS | M16: 4 | N16: DSQ | O16: DNS | P16: DNS | R16: 135 | S16: 50 | T16: 0 | U16: 0 | V16: 0 | W16: 50 | X16: 0 | Y16: 0 | Z16: 0 | AB16: 4 | AC16: =IF(ISNUMBER(AB16),(VLOOKUP(AB16,$BP$6:$BQ$40,2)),0) -> 50 | AD16: =IF(AB16<>"",5,0) -> 5 | AE16: 55 | AG16: DSQ | AH16: 0 | AI16: 5 | AJ16: 5 | AL16: DSQ | AM16: 0 | AN16: 5 | AO16: 5 | AR16: 0 | AS16: 0 | AT16: 0 | AV16: DNS | AW16: 0 | AX16: 5 | AY16: 5 | BA16: 4 | BB16: 50 | BC16: 5 | BD16: 55 | BF16: DNS | BG16: 0 | BH16: 5 | BI16: 5 | BK16: DNS | BL16: 0 | BM16: 5 | BN16: 5 | BP16: 11 | BQ16: 24 | BR16: 0 | BS16: 1 | BT16: 0 | BU16: 0 | BV16: 0 | BW16: 0 | BX16: 0 | BY16: 0
A17: 12 | B17: 11 | C17: Kokkim | D17: Oscar | E17: Kjelsås | F17: =IF(G17<5,"",(R17-SUM(SMALL(S17:Z17,{1;2;3})))) -> 125 | G17: 5 | I17: =IF(AB17="","",AB17) -> DSQ | M17: 13 | N17: DSQ | O17: DSQ | P17: 2 | R17: 125 | S17: 0 | T17: 0 | U17: 0 | V17: 0 | W17: 20 | X17: 0 | Y17: 0 | Z17: 80 | AB17: DSQ | AC17: =IF(ISNUMBER(AB17),(VLOOKUP(AB17,$BP$6:$BQ$40,2)),0) -> 0 | AD17: =IF(AB17<>"",5,0) -> 5 | AE17: 5 | AH17: 0 | AI17: 0 | AJ17: 0 | AL17: DSQ | AM17: 0 | AN17: 5 | AO17: 5 | AR17: 0 | AS17: 0 | AT17: 0 | AW17: 0 | AX17: 0 | AY17: 0 | BA17: 13 | BB17: 20 | BC17: 5 | BD17: 25 | BF17: DSQ | BG17: 0 | BH17: 5 | BI17: 5 | BK17: 2 | BL17: 80 | BM17: 5 | BN17: 85 | BP17: 12 | BQ17: 22 | BR17: 0 | BS17: 0 | BT17: 0 | BU17: 1 | BV17: 0 | BW17: 0 | BX17: 0 | BY17: 0
A18: 13 | B18: 12 | C18: Røsjø | D18: Nicolai | E18: Heming | F18: =IF(G18<5,"",(R18-SUM(SMALL(S18:Z18,{1;2;3})))) -> 114 | G18: 5 | I18: =IF(AB18="","",AB18) -> DSQ | J18: 3 | L18: DNS | M18: 9 | N18: DNS | R18: 114 | S18: 0 | T18: 60 | U18: 0 | V18: 0 | W18: 29 | X18: 0 | Y18: 0 | Z18: 0 | AB18: DSQ | AC18: =IF(ISNUMBER(AB18),(VLOOKUP(AB18,$BP$6:$BQ$40,2)),0) -> 0 | AD18: =IF(AB18<>"",5,0) -> 5 | AE18: 5 | AG18: 3 | AH18: 60 | AI18: 5 | AJ18: 65 | AL18: DNS | AM18: 0 | AN18: 5 | AO18: 5 | AR18: 0 | AS18: 0 | AT18: 0 | AV18: DNS | AW18: 0 | AX18: 5 | AY18: 5 | BA18: 9 | BB18: 29 | BC18: 5 | BD18: 34 | BG18: 0 | BH18: 0 | BI18: 0 | BL18: 0 | BM18: 0 | BN18: 0 | BP18: 13 | BQ18: 20 | BR18: 0 | BS18: 0 | BT18: 0 | BU18: 1 | BV18: 0 | BW18: 0 | BX18: 0 | BY18: 0
A19: 14 | B19: 13 | C19: Wilhelmsen | D19: Morten | E19: Heming | F19: =IF(G19<5,"",(R19-SUM(SMALL(S19:Z19,{1;2;3})))) -> 110 | G19: 5 | I19: =IF(AB18="","",AB18) -> DSQ | J19: 6 | M19: DNS | O19: DNS | P19: 5 | R19: 110 | S19: 0 | T19: 40 | U19: 0 | V19: 0 | W19: 0 | X19: 0 | Y19: 0 | Z19: 45 | AC19: =IF(ISNUMBER(AB18),(VLOOKUP(AB18,$BP$6:$BQ$40,2)),0) -> 0 | AD19: =IF(AB18<>"",5,0) -> 5 | AE19: 5 | AG19: 6 | AH19: 40 | AI19: 5 | AJ19: 45 | AM19: 0 | AN19: 0 | AO19: 0 | AR19: 0 | AS19: 0 | AT19: 0 | AW19: 0 | AX19: 0 | AY19: 0 | BA19: DNS | BB19: 0 | BC19: 5 | BD19: 5 | BF19: DNS | BG19: 0 | BH19: 5 | BI19: 5 | BK19: 5 | BL19: 45 | BM19: 5 | BN19: 50 | BP19: 14 | BQ19: 18 | BR19: 0 | BS19: 0 | BT19: 0 | BU19: 1 | BV19: 0 | BW19: 0 | BX19: 0 | BY19: 0
A20: 15 | B20: 14 | C20: Lien | D20: Carl Oliver | E20: Heming | F20: =IF(G20<5,"",(R20-SUM(SMALL(S20:Z20,{1;2;3})))) -> 95 | G20: 7 | I20: =IF(AB20="","",AB20) -> DNS | J20: DNS | L20: 3 | M20: DNS | N20: DNS | O20: DNS | P20: DNS | R20: 95 | S20: 0 | T20: 0 | U20: 0 | V20: 60 | W20: 0 | X20: 0 | Y20: 0 | Z20: 0 | AB20: DNS | AC20: =IF(ISNUMBER(#REF!),(VLOOKUP(#REF!,$BP$6:$BQ$40,2)),0) -> 0 | AD20: =IF(AB20<>"",5,0) -> 5 | AE20: 5 | AG20: DNS | AH20: 0 | AI20: 5 | AJ20: 5 | AL20: DNS | AM20: 0 | AN20: 5 | AO20: 5 | AR20: 0 | AS20: 0 | AT20: 0 | AV20: 3 | AW20: 60 | AX20: 5 | AY20: 65 | BA20: DNS | BB20: 0 | BC20: 5 | BD20: 5 | BF20: DNS | BG20: 0 | BH20: 5 | BI20: 5 | BK20: DNS | BL20: 0 | BM20: 5 | BN20: 5 | BP20: 15 | BQ20: 16 | BR20: 0 | BS20: 1 | BT20: 0 | BU20: 0 | BV20: 0 | BW20: 0 | BX20: 0 | BY20: 0
A21: 15 | C21: Bratrud | D21: Amund | E21: Heming | F21: =IF(G21<5,"",(R21-SUM(SMALL(S21:Z21,{1;2;3})))) ->  | G21: 2 | I21: =IF(AB21="","",AB21) ->  | L21: 10 | M21: 6 | R21: 76 | AC21: =IF(ISNUMBER(AB21),(VLOOKUP(AB21,$BP$6:$BQ$40,2)),0) -> 0 | AD21: =IF(AB21<>"",5,0) -> 0 | AE21: 0 | AH21: 0 | AI21: 0 | AJ21: 0 | AM21: 0 | AN21: 0 | AO21: 0 | AR21: 0 | AS21: 0 | AT21: 0 | AV21: 10 | AW21: 26 | AX21: 5 | AY21: 31 | BA21: 6 | BB21: 40 | BC21: 5 | BD21: 45 | BG21: 0 | BH21: 0 | BI21: 0 | BL21: 0 | BM21: 0 | BN21: 0 | BP21: 16 | BQ21: 15 | BR21: 0 | BS21: 0 | BT21: 0 | BU21: 0 | BV21: 0 | BW21: 0 | BX21: 1 | BY21: 0
A22: 15 | C22: Rastad | D22: Peder | E22: Njård | F22: =IF(G22<5,"",(R22-SUM(SMALL(S22:Z22,{1;2;3})))) ->  | G22: 3 | I22: =IF(AB22="","",AB22) -> DSQ | L22: 8 | M22: 12 | R22: 69 | AB22: DSQ | AC22: =IF(ISNUMBER(AB22),(VLOOKUP(AB22,$BP$6:$BQ$40,2)),0) -> 0 | AD22: =IF(AB22<>"",5,0) -> 5 | AE22: 5 | AH22: 0 | AI22: 0 | AJ22: 0 | AM22: 0 | AN22: 0 | AO22: 0 | AR22: 0 | AS22: 0 | AT22: 0 | AV22: 8 | AW22: 32 | AX22: 5 | AY22: 37 | BA22: 12 | BB22: 22 | BC22: 5 | BD22: 27 | BG22: 0 | BH22: 0 | BI22: 0 | BL22: 0 | BM22: 0 | BN22: 0 | BP22: 17 | BQ22: 14 | BR22: 0 | BS22: 0 | BT22: 0 | BU22: 0 | BV22: 0 | BW22: 1 | BX22: 0 | BY22: 0
A23: 15 | C23: Krogsrud | D23: Sebastian | E23: Ready | F23: =IF(G23<5,"",(R23-SUM(SMALL(S23:Z23,{1;2;3})))) ->  | G23: 4 | I23: =IF(AB23="","",AB23) ->  | J23: DNS | L23: 14 | M23: 14 | N23: DNS | R23: 56 | AC23: =IF(ISNUMBER(AB23),(VLOOKUP(AB23,$BP$6:$BQ$40,2)),0) -> 0 | AD23: =IF(AB23<>"",5,0) -> 0 | AE23: 0 | AG23: DNS | AH23: 0 | AI23: 5 | AJ23: 5 | AL23: DNS | AM23: 0 | AN23: 5 | AO23: 5 | AR23: 0 | AS23: 0 | AT23: 0 | AV23: 14 | AW23: 18 | AX23: 5 | AY23: 23 | BA23: 14 | BB23: 18 | BC23: 5 | BD23: 23 | BG23: 0 | BH23: 0 | BI23: 0 | BL23: 0 | BM23: 0 | BN23: 0 | BP23: 18 | BQ23: 13 | BR23: 0 | BS23: 0 | BT23: 0 | BU23: 0 | BV23: 1 | BW23: 0 | BX23: 0 | BY23: 0
A24: 19 | B24: 15 | C24: Brekke | D24: Andreas | E24: Heming | F24: =IF(G24<5,"",(R24-SUM(SMALL(S24:Z24,{1;2;3})))) -> 54 | G24: 6 | I24: =IF(AB23="","",AB23) ->  | J24: DNS | L24: 11 | M24: DNS | N24: DSQ | O24: DNS | P24: DNS | R24: 54 | S24: 0 | T24: 0 | U24: 0 | V24: 24 | W24: 0 | X24: 0 | Y24: 0 | Z24: 0 | AB24: DNS | AC24: =IF(ISNUMBER(AB23),(VLOOKUP(AB23,$BP$6:$BQ$40,2)),0) -> 0 | AD24: =IF(AB23<>"",5,0) -> 0 | AE24: 0 | AG24: DNS | AH24: 0 | AI24: 5 | AJ24: 5 | AL24: DSQ | AM24: 0 | AN24: 5 | AO24: 5 | AR24: 0 | AS24: 0 | AT24: 0 | AV24: 11 | AW24: 24 | AX24: 5 | AY24: 29 | BA24: DNS | BB24: 0 | BC24: 5 | BD24: 5 | BF24: DNS | BG24: 0 | BH24: 5 | BI24: 5 | BK24: DNS | BL24: 0 | BM24: 5 | BN24: 5 | BP24: 19 | BQ24: 12 | BR24: 0 | BS24: 0 | BT24: 1 | BU24: 0 | BV24: 0 | BW24: 0 | BX24: 0 | BY24: 0
A25: 19 | C25: Sivle | D25: Victor | E25: Ready | F25: =IF(G25<5,"",(R25-SUM(SMALL(S25:Z25,{1;2;3})))) ->  | G25: 3 | I25: =IF(AB25="","",AB25) ->  | L25: 12 | M25: 15 | N25: DNS | R25: 53 | AC25: =IF(ISNUMBER(AB25),(VLOOKUP(AB25,$BP$6:$BQ$40,2)),0) -> 0 | AD25: =IF(AB25<>"",5,0) -> 0 | AE25: 0 | AH25: 0 | AI25: 0 | AJ25: 0 | AL25: DNS | AM25: 0 | AN25: 5 | AO25: 5 | AR25: 0 | AS25: 0 | AT25: 0 | AV25: 12 | AW25: 22 | AX25: 5 | AY25: 27 | BA25: 15 | BB25: 16 | BC25: 5 | BD25: 21 | BG25: 0 | BH25: 0 | BI25: 0 | BL25: 0 | BM25: 0 | BN25: 0 | BP25: 20 | BQ25: 11 | BR25: 0 | BS25: 0 | BT25: 0 | BU25: 0 | BV25: 0 | BW25: 1 | BX25: 0 | BY25: 0
A26: 19 | C26: Øgaard | D26: Milan | E26: Njård | F26: =IF(G26<5,"",(R26-SUM(SMALL(S26:Z26,{1;2;3})))) ->  | G26: 2 | L26: 15 | M26: 17 | R26: 40 | AC26: 0 | AD26: 0 | AE26: 0 | AH26: 0 | AI26: 0 | AJ26: 0 | AM26: 0 | AN26: 0 | AO26: 0 | AR26: 0 | AS26: 0 | AT26: 0 | AV26: 15 | AW26: 16 | AX26: 5 | AY26: 21 | BA26: 17 | BB26: 14 | BC26: 5 | BD26: 19 | BG26: 0 | BH26: 0 | BI26: 0 | BL26: 0 | BM26: 0 | BN26: 0 | BP26: 21 | BQ26: 10 | BR26: 0 | BS26: 0 | BT26: 0 | BU26: 0 | BV26: 0 | BW26: 0 | BX26: 1 | BY26: 0
A27: 19 | C27: Taugbøl | D27: Njård | E27: Njård | F27: =IF(G27<5,"",(R27-SUM(SMALL(S27:Z27,{1;2;3})))) ->  | G27: 3 | L27: 16 | M27: DNS | N27: DSQ | R27: 30 | AC27: 0 | AD27: 0 | AE27: 0 | AH27: 0 | AI27: 0 | AJ27: 0 | AL27: DSQ | AM27: 0 | AN27: 5 | AO27: 5 | AR27: 0 | AS27: 0 | AT27: 0 | AV27: 16 | AW27: 15 | AX27: 5 | AY27: 20 | BA27: DNS | BB27: 0 | BC27: 5 | BD27: 5 | BG27: 0 | BH27: 0 | BI27: 0 | BL27: 0 | BM27: 0 | BN27: 0 | BP27: 22 | BQ27: 9 | BR27: 0 | BS27: 0 | BT27: 0 | BU27: 0 | BV27: 0 | BW27: 1 | BX27: 0 | BY27: 0
A28: 19 | C28: Fure Andersen | D28: Sebastian | F28: =IF(G28<5,"",(R28-SUM(SMALL(S28:Z28,{1;2;3})))) ->  | G28: 1 | M28: 16 | R28: 20 | AC28: 0 | AD28: 0 | AE28: 0 | AH28: 0 | AI28: 0 | AJ28: 0 | AM28: 0 | AN28: 0 | AO28: 0 | AR28: 0 | AS28: 0 | AT28: 0 | AW28: 0 | AX28: 0 | AY28: 0 | BA28: 16 | BB28: 15 | BC28: 5 | BD28: 20 | BG28: 0 | BH28: 0 | BI28: 0 | BL28: 0 | BM28: 0 | BN28: 0 | BP28: 23 | BQ28: 8 | BR28: 0 | BS28: 0 | BT28: 0 | BU28: 0 | BV28: 0 | BW28: 0 | BX28: 0 | BY28: 1
A29: 19 | C29: Ingebrigtsen | D29: Ole Harald | E29: Ready | F29: =IF(G29<5,"",(R29-SUM(SMALL(S29:Z29,{1;2;3})))) ->  | G29: 3 | M29: DNF | O29: DNS | P29: DNS | R29: 15 | AC29: 0 | AD29: 0 | AE29: 0 | AH29: 0 | AI29: 0 | AJ29: 0 | AM29: 0 | AN29: 0 | AO29: 0 | AR29: 0 | AS29: 0 | AT29: 0 | AW29: 0 | AX29: 0 | AY29: 0 | BA29: DNF | BB29: 0 | BC29: 5 | BD29: 5 | BF29: DNS | BG29: 0 | BH29: 5 | BI29: 5 | BK29: DNS | BL29: 0 | BM29: 5 | BN29: 5 | BP29: 24 | BQ29: 7 | BR29: 0 | BS29: 0 | BT29: 0 | BU29: 0 | BV29: 0 | BW29: 1 | BX29: 0 | BY29: 0
A30: 19 | C30: Andersen | D30: Sebastian | E30: Heming | F30: =IF(G30<5,"",(R30-SUM(SMALL(S30:Z30,{1;2;3})))) ->  | G30: 1 | L30: DNS | R30: 5 | AC30: 0 | AD30: 0 | AE30: 0 | AH30: 0 | AI30: 0 | AJ30: 0 | AM30: 0 | AN30: 0 | AO30: 0 | AR30: 0 | AS30: 0 | AT30: 0 | AV30: DNS | AW30: 0 | AX30: 5 | AY30: 5 | BB30: 0 | BC30: 0 | BD30: 0 | BG30: 0 | BH30: 0 | BI30: 0 | BL30: 0 | BM30: 0 | BN30: 0 | BP30: 25 | BQ30: 6 | BR30: 0 | BS30: 0 | BT30: 0 | BU30: 0 | BV30: 0 | BW30: 0 | BX30: 0 | BY30: 1
A31: 19 | C31: Hunstad | D31: Magnus | E31: Heming | F31: =IF(G31<5,"",(R31-SUM(SMALL(S31:Z31,{1;2;3})))) ->  | G31: 1 | M31: DNS | R31: 5 | AC31: 0 | AD31: 0 | AE31: 0 | AH31: 0 | AI31: 0 | AJ31: 0 | AM31: 0 | AN31: 0 | AO31: 0 | AR31: 0 | AS31: 0 | AT31: 0 | AW31: 0 | AX31: 0 | AY31: 0 | BA31: DNS | BB31: 0 | BC31: 5 | BD31: 5 | BG31: 0 | BH31: 0 | BI31: 0 | BL31: 0 | BM31: 0 | BN31: 0 | BP31: 26 | BQ31: 5 | BR31: 0 | BS31: 0 | BT31: 0 | BU31: 0 | BV31: 0 | BW31: 0 | BX31: 0 | BY31: 1
A32: 19 | C32: Sandvik | D32: Philip | E32: Heming | F32: =IF(G32<5,"",(R32-SUM(SMALL(S32:Z32,{1;2;3})))) ->  | G32: 1 | M32: DSQ | R32: 5 | AC32: 0 | AD32: 0 | AE32: 0 | AH32: 0 | AI32: 0 | AJ32: 0 | AM32: 0 | AN32: 0 | AO32: 0 | AR32: 0 | AS32: 0 | AT32: 0 | AW32: 0 | AX32: 0 | AY32: 0 | BA32: DSQ | BB32: 0 | BC32: 5 | BD32: 5 | BG32: 0 | BH32: 0 | BI32: 0 | BL32: 0 | BM32: 0 | BN32: 0 | BP32: 27 | BQ32: 4 | BR32: 0 | BS32: 0 | BT32: 0 | BU32: 0 | BV32: 0 | BW32: 0 | BX32: 0 | BY32: 1
A33: 19 | C33: Weisæth-Andersen | D33: Lars | E33: Heming | F33: =IF(G33<5,"",(R33-SUM(SMALL(S33:Z33,{1;2;3})))) ->  | G33: 1 | M33: DSQ | R33: 5 | AC33: 0 | AD33: 0 | AE33: 0 | AH33: 0 | AI33: 0 | AJ33: 0 | AM33: 0 | AN33: 0 | AO33: 0 | AR33: 0 | AS33: 0 | AT33: 0 | AW33: 0 | AX33: 0 | AY33: 0 | BA33: DSQ | BB33: 0 | BC33: 5 | BD33: 5 | BG33: 0 | BH33: 0 | BI33: 0 | BL33: 0 | BM33: 0 | BN33: 0 | BP33: 28 | BQ33: 3 | BR33: 0 | BS33: 0 | BT33: 0 | BU33: 0 | BV33: 0 | BW33: 0 | BX33: 0 | BY33: 1
A34: 19 | F34: =IF(G34<5,"",(R34-SUM(SMALL(S34:Z34,{1;2;3})))) ->  | G34: 0 | R34: 0 | AC34: 0 | AD34: 0 | AE34: 0 | AH34: 0 | AI34: 0 | AJ34: 0 | AM34: 0 | AN34: 0 | AO34: 0 | AR34: 0 | AS34: 0 | AT34: 0 | AW34: 0 | AX34: 0 | AY34: 0 | BB34: 0 | BC34: 0 | BD34: 0 | BG34: 0 | BH34: 0 | BI34: 0 | BL34: 0 | BM34: 0 | BN34: 0 | BP34: 29 | BQ34: 2 | BR34: 0 | BS34: 0 | BT34: 0 | BU34: 0 | BV34: 0 | BW34: 0 | BX34: 0 | BY34: 0
A35: 19 | F35: =IF(G35<5,"",(R35-SUM(SMALL(S35:Z35,{1;2;3})))) ->  | G35: 0 | R35: 0 | AC35: 0 | AD35: 0 | AE35: 0 | AH35: 0 | AI35: 0 | AJ35: 0 | AM35: 0 | AN35: 0 | AO35: 0 | AR35: 0 | AS35: 0 | AT35: 0 | AW35: 0 | AX35: 0 | AY35: 0 | BB35: 0 | BC35: 0 | BD35: 0 | BG35: 0 | BH35: 0 | BI35: 0 | BL35: 0 | BM35: 0 | BN35: 0 | BP35: 30 | BQ35: 1 | BR35: 0 | BS35: 0 | BT35: 0 | BU35: 0 | BV35: 0 | BW35: 0 | BX35: 0 | BY35: 0
A36: 19 | F36: =IF(G36<5,"",(R36-SUM(SMALL(S36:Z36,{1;2;3})))) ->  | G36: 0 | R36: 0 | AC36: 0 | AD36: 0 | AE36: 0 | AH36: 0 | AI36: 0 | AJ36: 0 | AM36: 0 | AN36: 0 | AO36: 0 | AR36: 0 | AS36: 0 | AT36: 0 | AW36: 0 | AX36: 0 | AY36: 0 | BB36: 0 | BC36: 0 | BD36: 0 | BG36: 0 | BH36: 0 | BI36: 0 | BL36: 0 | BM36: 0 | BN36: 0 | BP36: 31 | BQ36: 0 | BR36: 0 | BS36: 0 | BT36: 0 | BU36: 0 | BV36: 0 | BW36: 0 | BX36: 0 | BY36: 0
A37: 19 | F37: =IF(G37<5,"",(R37-SUM(SMALL(S37:Z37,{1;2;3})))) ->  | G37: 0 | R37: 0 | AC37: 0 | AD37: 0 | AE37: 0 | AH37: 0 | AI37: 0 | AJ37: 0 | AM37: 0 | AN37: 0 | AO37: 0 | AR37: 0 | AS37: 0 | AT37: 0 | AW37: 0 | AX37: 0 | AY37: 0 | BB37: 0 | BC37: 0 | BD37: 0 | BG37: 0 | BH37: 0 | BI37: 0 | BL37: 0 | BM37: 0 | BN37: 0 | BP37: 32 | BQ37: 0 | BR37: 0 | BS37: 0 | BT37: 0 | BU37: 0 | BV37: 0 | BW37: 0 | BX37: 0 | BY37: 0
A38: 19 | F38: =IF(G38<5,"",(R38-SUM(SMALL(S38:Z38,{1;2;3})))) ->  | G38: =(IF(AD38=5,1,0)+IF(AI38=5,1,0)+IF(AS38=5,1,0)+IF(AX38=5,1,0)+IF(BC38=5,1,0)+IF(AN38=5,1,0)+IF(BH38=5,1,0)+IF(BM38=5,1,0)) -> 0 | R38: =AE38+AJ38+AT38+AY38+BD38+AO38+BI38+BN38 -> 0 | AC38: 0 | AD38: 0 | AE38: =AC38+AD38 -> 0 | AH38: 0 | AI38: =IF(AG38<>"",5,0) -> 0 | AJ38: =AH38+AI38 -> 0 | AM38: 0 | AN38: =IF(AL38<>"",5,0) -> 0 | AO38: =AM38+AN38 -> 0 | AR38: 0 | AS38: =IF(AQ38<>"",5,0) -> 0 | AT38: =AR38+AS38 -> 0 | AW38: 0 | AX38: =IF(AV38<>"",5,0) -> 0 | AY38: =AW38+AX38 -> 0 | BB38: 0 | BC38: =IF(BA38<>"",5,0) -> 0 | BD38: =BB38+BC38 -> 0 | BG38: 0 | BH38: =IF(BF38<>"",5,0) -> 0 | BI38: =BG38+BH38 -> 0 | BL38: 0 | BM38: =IF(BK38<>"",5,0) -> 0 | BN38: =BL38+BM38 -> 0 | BP38: 33 | BQ38: 0 | BR38: 0 | BS38: 0 | BT38: 0 | BU38: 0 | BV38: 0 | BW38: 0 | BX38: 0 | BY38: 0
A39: 19 | F39: =IF(G39<5,"",(R39-SUM(SMALL(S39:Z39,{1;2;3})))) ->  | G39: 0 | R39: 0 | AC39: 0 | AD39: 0 | AE39: 0 | AH39: 0 | AI39: 0 | AJ39: 0 | AM39: 0 | AN39: 0 | AO39: 0 | AR39: 0 | AS39: 0 | AT39: 0 | AW39: 0 | AX39: 0 | AY39: 0 | BB39: 0 | BC39: 0 | BD39: 0 | BG39: 0 | BH39: 0 | BI39: 0 | BL39: 0 | BM39: 0 | BN39: 0 | BP39: 34 | BQ39: 0 | BR39: 0 | BS39: 0 | BT39: 0 | BU39: 0 | BV39: 0 | BW39: 0 | BX39: 0 | BY39: 0
A40: 19 | F40: =IF(G40<5,"",(R40-SUM(SMALL(S40:Z40,{1;2;3})))) ->  | G40: 0 | R40: 0 | AC40: 0 | AD40: 0 | AE40: 0 | AH40: 0 | AI40: 0 | AJ40: 0 | AM40: 0 | AN40: 0 | AO40: 0 | AR40: 0 | AS40: 0 | AT40: 0 | AW40: 0 | AX40: 0 | AY40: 0 | BB40: 0 | BC40: 0 | BD40: 0 | BG40: 0 | BH40: 0 | BI40: 0 | BL40: 0 | BM40: 0 | BN40: 0 | BP40: 35 | BQ40: 0 | BR40: 0 | BS40: 0 | BT40: 0 | BU40: 0 | BV40: 0 | BW40: 0 | BX40: 0 | BY40: 0
I41: =IF(AB41="","",AB41) ->  | J41: =IF(AG41="","",AG41) ->  | K41: =IF(AQ41="","",AQ41) ->  | L41: =IF(AV41="","",AV41) ->  | M41: =IF(BA41="","",BA41) ->  | N41: =IF(AL41="","",AL41) ->  | O41: =IF(BF41="","",BF41) ->  | P41: =IF(BK41="","",BK41) ->  | S41: =IF($G41>=7,IF(AC41="","",AC41),"") ->  | T41: =IF($G41>=7,IF(AH41="","",AH41),"") ->  | U41: =IF($G41>=7,IF(AR41="","",AR41),"") ->  | V41: =IF($G41>=7,IF(AW41="","",AW41),"") ->  | W41: =IF($G41>=7,IF(BB41="","",BB41),"") ->  | X41: =IF($G41>=7,IF(AM41="","",AM41),"") ->  | Y41: =IF($G41>=7,IF(BG41="","",BG41),"") ->  | Z41: =IF($G41>=7,IF(BL41="","",BL41),"") -> 
S42: =IF($G42>=7,IF(AC42="","",AC42),"") ->  | T42: =IF($G42>=7,IF(AH42="","",AH42),"") ->  | U42: =IF($G42>=7,IF(AR42="","",AR42),"") ->  | V42: =IF($G42>=7,IF(AW42="","",AW42),"") ->  | W42: =IF($G42>=7,IF(BB42="","",BB42),"") ->  | X42: =IF($G42>=7,IF(AM42="","",AM42),"") ->  | Y42: =IF($G42>=7,IF(BG42="","",BG42),"") ->  | Z42: =IF($G42>=7,IF(BL42="","",BL42),"") -> 
S43: =IF($G43>=7,IF(AC43="","",AC43),"") ->  | T43: =IF($G43>=7,IF(AH43="","",AH43),"") ->  | U43: =IF($G43>=7,IF(AR43="","",AR43),"") ->  | V43: =IF($G43>=7,IF(AW43="","",AW43),"") ->  | W43: =IF($G43>=7,IF(BB43="","",BB43),"") ->  | X43: =IF($G43>=7,IF(AM43="","",AM43),"") ->  | Y43: =IF($G43>=7,IF(BG43="","",BG43),"") ->  | Z43: =IF($G43>=7,IF(BL43="","",BL43),"") -> 
S44: =IF($G44>=7,IF(AC44="","",AC44),"") ->  | T44: =IF($G44>=7,IF(AH44="","",AH44),"") ->  | U44: =IF($G44>=7,IF(AR44="","",AR44),"") ->  | V44: =IF($G44>=7,IF(AW44="","",AW44),"") ->  | W44: =IF($G44>=7,IF(BB44="","",BB44),"") ->  | X44: =IF($G44>=7,IF(AM44="","",AM44),"") ->  | Y44: =IF($G44>=7,IF(BG44="","",BG44),"") ->  | Z44: =IF($G44>=7,IF(BL44="","",BL44),"") -> 
S45: =IF($G45>=7,IF(AC45="","",AC45),"") ->  | T45: =IF($G45>=7,IF(AH45="","",AH45),"") ->  | U45: =IF($G45>=7,IF(AR45="","",AR45),"") ->  | V45: =IF($G45>=7,IF(AW45="","",AW45),"") ->  | W45: =IF($G45>=7,IF(BB45="","",BB45),"") ->  | X45: =IF($G45>=7,IF(AM45="","",AM45),"") ->  | Y45: =IF($G45>=7,IF(BG45="","",BG45),"") ->  | Z45: =IF($G45>=7,IF(BL45="","",BL45),"") -> 
